TRANSACTION No.,Service Area Categorisation,Service Division Categorisation,Responsible Unit,Unit Code,Expenses Type,Expenses Sub Type,Expense Code,Narrative,Amount,Invoice Date,Capital/Revenue,Supplier Name
1,Central Services,SupS Chief Execs,Local Involvement Network               ,A01039,Third Party Payments          ,Private Contractors           ,EH10,Contract Payments                       ,"43,148.33",09/07/2013,R,MERTON VOLUNTARY SERV COUNCIL 
2,Cultural Env Reg&Plan Services,Comm Safety (Crime Reduction),Crime and Strategy Team                 ,A01100,Third Party Payments          ,Private Contractors           ,EH02,Miscellaneous Hired Services            ,"19,000.00",24/06/2013,R,VICTIM SUPPORT                
3,Adult Social Care,Substance Abuse (Addictions),DAAT Commissioning                      ,A01300,Third Party Payments          ,Private Contractors           ,EH02,Miscellaneous Hired Services            ,900,08/08/2013,R,GLENCOT LIMITED               
4,Adult Social Care,Substance Abuse (Addictions),DAAT Commissioning                      ,A01300,Third Party Payments          ,Private Contractors           ,EH02,Miscellaneous Hired Services            ,600,16/08/2013,R,GLENCOT LIMITED               
5,Adult Social Care,Substance Abuse (Addictions),Retention in Drug Treatmt Srvs          ,A01303,Third Party Payments          ,Private Contractors           ,EH02,Miscellaneous Hired Services            ,"13,000.00",01/05/2013,R,THE SMALL BUSINESS CONSULTANCY
6,Central Services,SupS Chief Execs,NON-STATUTORY MARKETING & COMM ,A02019,Supplies & Services           ,Services                      ,DF02,Misc Advertising/Publicity              ,537.5,24/07/2013,R,JCDECAUX UNITED KINGDOM       
7,Central Services,SupS Chief Execs,NON-STATUTORY MARKETING & COMM ,A02019,Supplies & Services           ,Grants and Subscriptions      ,DJ04,Subscriptions                           ,600,03/06/2013,R,FLAME LIMITED                 
8,Central Services,SupS Chief Execs,Press and Public Relations.             ,A02026,Employees                     ,Direct Employee Expenses      ,AA17,Agency Staff & Casual Paymts            ,"1,130.00",05/08/2013,R,HAYS RECRUITING EXPERTS       
9,CS -Oth Operating Inc & Expend,T/A Corporate Services,Prtng Jobs - Ext Agncy                  ,A03041,Supplies & Services           ,Prntng Stnry Gen Off Exp      ,DE01,External Printing                       ,757,26/07/2013,R,IMPRESS PRINT SERVICES LTD    
10,CS -Oth Operating Inc & Expend,T/A Corporate Services,Prtng Jobs - Ext Agncy                  ,A03041,Supplies & Services           ,Prntng Stnry Gen Off Exp      ,DE01,External Printing                       ,775,31/07/2013,R,ENNISFIELD                    
11,CS -Oth Operating Inc & Expend,T/A Corporate Services,Prtng Jobs - Ext Agncy                  ,A03041,Supplies & Services           ,Prntng Stnry Gen Off Exp      ,DE01,External Printing                       ,"1,048.60",31/07/2013,R,BELMONT PRESS LIMITED         
12,CS -Oth Operating Inc & Expend,T/A Corporate Services,Prtng Jobs - Ext Agncy                  ,A03041,Supplies & Services           ,Prntng Stnry Gen Off Exp      ,DE01,External Printing                       ,550,23/08/2013,R,RECOGNITION EXPRESS           
13,CS -Oth Operating Inc & Expend,T/A Corporate Services,PrintUnit-HighVolPhtcopying             ,A03042,Supplies & Services           ,Equip Furniture/Materials     ,DA01,Equipment - R & M                       ,943,09/08/2013,R,DATA DESIGN SERVICES LTD      
14,CS -Oth Operating Inc & Expend,T/A Corporate Services,PrintUnit-HighVolPhtcopying             ,A03042,Supplies & Services           ,Equip Furniture/Materials     ,DA01,Equipment - R & M                       ,510,01/08/2013,R,HEIDELBERG GRAPHIC EQUIPM LTD 
15,CS -Oth Operating Inc & Expend,T/A Corporate Services,PrintUnit-HighVolPhtcopying             ,A03042,Supplies & Services           ,Equip Furniture/Materials     ,DA06,Paper-Internal Print Jobs               ,"5,200.00",07/08/2013,R,RAINBOW OFFICE SUPPLIES LTD   
16,CS -Oth Operating Inc & Expend,T/A Corporate Services,PrintUnit-HighVolPhtcopying             ,A03042,Supplies & Services           ,Prntng Stnry Gen Off Exp      ,DE01,External Printing                       ,"1,194.80",29/07/2013,R,TAURUS PRINT & DESIGN LTD     
17,CS -Oth Operating Inc & Expend,T/A Corporate Services,PrintUnit-HighVolPhtcopying             ,A03042,Supplies & Services           ,Prntng Stnry Gen Off Exp      ,DE01,External Printing                       ,596,30/07/2013,R,IMPRESS PRINT SERVICES LTD    
18,Central Services,SupS Comm and Member Services,PROGRAMME OFFICE                        ,A04068,Employees                     ,Direct Employee Expenses      ,AA17,AGENCY STAFF & CASUAL PAYMTS            ,"11,100.00",31/07/2013,R,PENNA PLC                     
19,Central Services,SupS Best Value,Merton Link                             ,A04070,Supplies & Services           ,Comms and Computing           ,DG15,Network Maintenance                     ,"1,114.90",01/08/2013,R,NORTHGATE INFORMATION SOLUTION
20,Central Services,SupS Comm and Member Services,COMMERICIAL SERVICES                    ,A04085,Employees                     ,Direct Employee Expenses      ,AA17,Agency Staff & Casual Paymts            ,"2,712.00",31/07/2013,R,HAYS RECRUITING EXPERTS       
21,Central Services,SupS Comm and Member Services,COMMERICIAL SERVICES                    ,A04085,Employees                     ,Direct Employee Expenses      ,AA17,Agency Staff & Casual Paymts            ,"3,390.00",24/07/2013,R,HAYS RECRUITING EXPERTS       
22,Central Services,SupS Comm and Member Services,COMMERICIAL SERVICES                    ,A04085,Employees                     ,Direct Employee Expenses      ,AA17,Agency Staff & Casual Paymts            ,"3,390.00",18/07/2013,R,HAYS RECRUITING EXPERTS       
23,Central Services,SupS Comm and Member Services,COMMERICIAL SERVICES                    ,A04085,Employees                     ,Direct Employee Expenses      ,AA17,Agency Staff & Casual Paymts            ,"3,390.00",07/08/2013,R,HAYS RECRUITING EXPERTS       
24,Central Services,SupS Comm and Member Services,Policy and Strategy                     ,A04086,Employees                     ,Indirect Employee Expenses    ,AB02,Recruitment Adverts                     ,940,20/08/2013,R,PENNA COMMUNICATIONS (NO 2 A/C
25,Central Services,Emergency Planning (Cent Serv),Emergency Planning                      ,B06138,Supplies & Services           ,Comms and Computing           ,DG05,Telephones - Gen-Creditors              ,"4,433.18",23/07/2013,R,AIRWAVE SOLUTIONS LTD         
26,Central Services,SupS Health & Safety,Learning and Development                ,B06146,Employees                     ,Indirect Employee Expenses    ,AB57,EXTERNAL TRAINING COSTS                 ,500,11/07/2013,R,GRANT RICHES COMM. CONSUL.    
27,Central Services,SupS Health & Safety,Learning and Development                ,B06146,Employees                     ,Indirect Employee Expenses    ,AB57,EXTERNAL TRAINING COSTS                 ,"1,204.99",25/07/2013,R,ILX GROUP PLC                 
28,Central Services,SupS Health & Safety,Learning and Development                ,B06146,Employees                     ,Indirect Employee Expenses    ,AB57,EXTERNAL TRAINING COSTS                 ,500,13/05/2013,R,GRANT RICHES COMM. CONSUL.    
81,,,Acquisitions Budget                     ,CA003MA,Acquisition of Land and Existing Buildings,,A1,Purchase                                ,"-2,000.00",24/07/2013,C,BARNARD MARCUS                
82,,,CCTV (match funding)                    ,CE002EA,Vehicles Plant Equipment and Machinery,,D3,Equipment                               ,"3,510.00",04/06/2013,C,EUROVIA INFRASTRUCTURE LTD    
83,,,Disabled Facilities Grant DCLG          ,CE004RA,Other Capital Expenditure,,E1,Grants                                  ,"4,732.00",07/08/2013,C,REDACTED
84,,,Disabled Facilities Grant DCLG          ,CE004RA,Other Capital Expenditure,,E1,Grants                                  ,"6,075.00",29/08/2013,C,ASCENDIT LIFTS LTD            
85,,,Disabled Facilities Grant DCLG          ,CE004RA,Other Capital Expenditure,,E1,Grants                                  ,"2,666.10",21/08/2013,C,ABLE 2 OCCUP.THERAPY SERV.LTD 
86,,,Disabled Facilities Grant DCLG          ,CE004RA,Other Capital Expenditure,,E1,Grants                                  ,"8,651.00",21/08/2013,C,V MAC CONSTRUCTION LTD        
87,,,Disabled Facilities Grant DCLG          ,CE004RA,Other Capital Expenditure,,E1,Grants                                  ,"2,908.76",19/08/2013,C,STAYING FIRST                 
88,,,Disabled Facilities Grant DCLG          ,CE004RA,Other Capital Expenditure,,E1,Grants                                  ,"4,565.00",29/08/2013,C,REDACTED
89,,,Disabled Facilities Grant DCLG          ,CE004RA,Other Capital Expenditure,,E1,Grants                                  ,"16,624.00",20/08/2013,C,ATRIUM DESIGN & INSTALLATION  
90,,,Disabled Facilities Grant DCLG          ,CE004RA,Other Capital Expenditure,,E1,Grants                                  ,"5,920.00",19/08/2013,C,EXCEL INTERIOR REFURBISHMENT  
91,,,Disabled Facilities Grant DCLG          ,CE004RA,Other Capital Expenditure,,E1,Grants                                  ,"1,778.81",21/08/2013,C,ABLE 2 OCCUP.THERAPY SERV.LTD 
92,,,Disabled Facilities Grant DCLG          ,CE004RA,Other Capital Expenditure,,E1,Grants                                  ,588,29/08/2013,C,STAYING FIRST                 
93,,,Disabled Facilities Grant DCLG          ,CE004RA,Other Capital Expenditure,,E1,Grants                                  ,"16,748.00",07/08/2013,C,REDACTED
94,,,Disabled Facilities Grant DCLG          ,CE004RA,Other Capital Expenditure,,E1,Grants                                  ,"9,750.00",07/08/2013,C,PREMIER ADAPTATIONS LTD       
95,,,Disabled Facilities Grant DCLG          ,CE004RA,Other Capital Expenditure,,E1,Grants                                  ,"6,045.00",29/08/2013,C,AQUANEED LIMITED              
96,,,Small Repairs Grant                     ,CE005RA,Other Capital Expenditure,,E1,Grants                                  ,"3,180.00",27/08/2013,C,OATLANDS GLASS                
97,,,Small Repairs Grant                     ,CE005RA,Other Capital Expenditure,,E1,Grants                                  ,"1,376.00",21/08/2013,C,KINGSBRIDGE LOCAL LIMITED     
98,,,Small Repairs Grant                     ,CE005RA,Other Capital Expenditure,,E1,Grants                                  ,545,27/08/2013,C,REDACTED
99,,,Small Repairs Grant                     ,CE005RA,Other Capital Expenditure,,E1,Grants                                  ,732,21/08/2013,C,ABBOTTSWAY ENGINEERING LTD    
100,,,Mitcham - Outer London Fund             ,CE006FC,New Construction Conversion and Renovation,,B3,Other Expenses D&S Structure            ,"3,500.00",28/06/2013,C,STUDIO WEAVE LTD              
101,,,Mitcham - Outer London Fund             ,CE006FC,New Construction Conversion and Renovation,,B3,Other Expenses D&S Structure            ,"3,000.00",15/08/2013,C,STUDIO WEAVE LTD              
102,,,Mitcham - Outer London Fund             ,CE006FC,New Construction Conversion and Renovation,,B3,Other Expenses D&S Structure            ,"7,500.00",15/08/2013,C,STUDIO WEAVE LTD              
103,,,B487 Landscape Ravensbury Park          ,CE009CA,New Construction Conversion and Renovation,,B4,Contractor - Site works                 ,"2,335.00",02/08/2013,C,REDACTED
104,,,Parks Investment                        ,CE013SA,New Construction Conversion and Renovation,,B4,Contractor - Site works                 ,"6,720.00",22/07/2013,C,TAYLOR BUILDING COMPANY LTD   
105,,,Parks Investment                        ,CE013SA,New Construction Conversion and Renovation,,B4,Contractor - Site works                 ,"2,040.00",13/08/2013,C,REDDINGTON & SONS             
106,,,Parks Investment                        ,CE013SA,New Construction Conversion and Renovation,,B4,Contractor - Site works                 ,709,07/08/2013,C,TAYLOR BUILDING COMPANY LTD   
107,,,Parks Investment                        ,CE013SA,New Construction Conversion and Renovation,,B4,Contractor - Site works                 ,"4,545.00",25/07/2013,C,RTC SAFETY SURFACE LTD        
108,,,Parks Investment                        ,CE013SA,New Construction Conversion and Renovation,,B4,Contractor - Site works                 ,"7,805.00",13/08/2013,C,REDDINGTON & SONS             
109,,,Parks Investment                        ,CE013SA,New Construction Conversion and Renovation,,B4,Contractor - Site works                 ,"5,820.00",09/07/2013,C,TAYLOR BUILDING COMPANY LTD   
110,,,Parks Investment                        ,CE013SA,New Construction Conversion and Renovation,,B4,Contractor - Site works                 ,556,07/08/2013,C,TAYLOR BUILDING COMPANY LTD   
111,,,Parks Investment                        ,CE013SA,New Construction Conversion and Renovation,,B4,Contractor - Site works                 ,"7,113.00",31/07/2013,C,RTC SAFETY SURFACE LTD        
112,,,Parks Investment                        ,CE013SA,New Construction Conversion and Renovation,,B4,Contractor - Site works                 ,"2,615.00",23/07/2013,C,THE CRESCENT FENCING CO.      
113,,,Parks Investment                        ,CE013SA,New Construction Conversion and Renovation,,B4,Contractor - Site works                 ,"15,260.00",31/07/2013,C,PROLUDIC LTD                  
114,,,Parks Investment                        ,CE013SA,New Construction Conversion and Renovation,,B4,Contractor - Site works                 ,790,31/07/2013,C,TAYLOR BUILDING COMPANY LTD   
115,,,Parks Investment                        ,CE013SA,New Construction Conversion and Renovation,,B4,Contractor - Site works                 ,"4,485.00",31/07/2013,C,TAYLOR BUILDING COMPANY LTD   
116,,,Parks Investment                        ,CE013SA,New Construction Conversion and Renovation,,B4,Contractor - Site works                 ,"5,173.00",31/07/2013,C,PROLUDIC LTD                  
117,,,S106 South Park Gardens B346            ,CE015CB,New Construction Conversion and Renovation,,B1,Consultants Fees D&S Structure          ,"1,000.00",15/07/2013,C,HB ARCHITECTS LTD             
118,,,S106 South Park Gardens B346            ,CE015CB,New Construction Conversion and Renovation,,B1,Consultants Fees D&S Structure          ,"1,000.00",12/08/2013,C,HB ARCHITECTS LTD             
119,,,Surface Water Drainage                  ,CE024FA,New Construction Conversion and Renovation,,B4,Contractor - Site works                 ,"1,956.61",09/08/2013,C,FM CONWAY LTD                 
120,,,Surface Water Drainage                  ,CE024FA,New Construction Conversion and Renovation,,B4,Contractor - Site works                 ,"6,066.08",29/07/2013,C,FM CONWAY LTD                 
121,,,Highways bridges & structures           ,CE025FA,New Construction Conversion and Renovation,,B1,Consultants Fees D&S Structure          ,"15,323.86",14/08/2013,C,AECOM LIMITED                 
122,,,Highways bridges & structures           ,CE025FA,New Construction Conversion and Renovation,,B1,Consultants Fees D&S Structure          ,"1,835.00",07/08/2013,C,HYDER CONSULTING (UK) LTD     
123,,,Highways bridges & structures           ,CE025FA,New Construction Conversion and Renovation,,B4,Contractor - Site works                 ,"181,647.61",29/07/2013,C,FM CONWAY LTD                 
124,,,Borough Roads Maintenance               ,CE026FA,New Construction Conversion and Renovation,,B4,Contractor - Site works                 ,"23,702.26",14/08/2013,C,FM CONWAY LTD                 
125,,,Borough Roads Maintenance               ,CE026FA,New Construction Conversion and Renovation,,B4,Contractor - Site works                 ,"95,000.00",14/08/2013,C,FM CONWAY LTD                 
126,,,Borough Roads Maintenance               ,CE026FA,New Construction Conversion and Renovation,,B4,Contractor - Site works                 ,"83,737.26",23/08/2013,C,FM CONWAY LTD                 
127,,,Maintain AntiSkid and Coloured          ,CE027FA,New Construction Conversion and Renovation,,B4,Contractor - Site works                 ,"1,786.67",09/08/2013,C,FM CONWAY LTD                 
128,,,Repairs to Footways                     ,CE029FA,New Construction Conversion and Renovation,,B4,Contractor - Site works                 ,"13,941.59",09/08/2013,C,FM CONWAY LTD                 
129,,,Repairs to Footways                     ,CE029FA,New Construction Conversion and Renovation,,B4,Contractor - Site works                 ,"30,000.00",09/08/2013,C,FM CONWAY LTD                 
130,,,Repairs to Footways                     ,CE029FA,New Construction Conversion and Renovation,,B4,Contractor - Site works                 ,"20,000.00",09/08/2013,C,FM CONWAY LTD                 
131,,,Repairs to Footways                     ,CE029FA,New Construction Conversion and Renovation,,B4,Contractor - Site works                 ,"30,000.00",09/08/2013,C,FM CONWAY LTD                 
132,,,Repairs to Footways                     ,CE029FA,New Construction Conversion and Renovation,,B4,Contractor - Site works                 ,"10,000.00",09/08/2013,C,FM CONWAY LTD                 
133,,,River Wandle Footbridge                 ,CE036FA,New Construction Conversion and Renovation,,B1,Consultants Fees D&S Structure          ,"2,588.00",31/07/2013,C,HYDER CONSULTING (UK) LTD     
134,,,Garth Rd Workshop                       ,CE041AA,New Construction Conversion and Renovation,,B4,Contractor - Site works                 ,"1,320.00",08/08/2013,C,PJ HARVEY & CO LTD            
135,,,Climate Change Initiatives              ,CE052MA,New Construction Conversion and Renovation,,B2,Site Surveys D&S Structure              ,"13,136.32",08/08/2013,C,MPM                           
136,,,Climate Change Initiatives              ,CE052MA,New Construction Conversion and Renovation,,B2,Site Surveys D&S Structure              ,"6,217.17",09/08/2013,C,MPM                           
137,,,Climate Change Initiatives              ,CE052MA,New Construction Conversion and Renovation,,B2,Site Surveys D&S Structure              ,840,31/07/2013,C,ORACLE SOLUTIONS UK LTD       
138,,,Climate Change Initiatives              ,CE052MA,New Construction Conversion and Renovation,,B2,Site Surveys D&S Structure              ,"6,456.25",01/08/2013,C,MPM                           
139,,,Climate Change Initiatives              ,CE052MA,New Construction Conversion and Renovation,,B2,Site Surveys D&S Structure              ,"5,214.60",23/08/2013,C,MPM                           
140,,,Improve markings & road signs           ,CE066EA,New Construction Conversion and Renovation,,B2,Site Surveys D&S Structure              ,"1,140.00",31/07/2013,C,TMS CONSULTANCY               
141,,,Improve markings & road signs           ,CE066EA,New Construction Conversion and Renovation,,B4,Contractor - Site works                 ,906.65,29/07/2013,C,FM CONWAY LTD                 
142,,,Improve markings & road signs           ,CE066EA,New Construction Conversion and Renovation,,B4,Contractor - Site works                 ,"8,012.18",29/07/2013,C,FM CONWAY LTD                 
143,,,Street scene enhancements               ,CE066FE,New Construction Conversion and Renovation,,B4,Contractor - Site works                 ,898,03/08/2013,C,LA BELLE ROOFING CO LTD       
144,,,Street scene enhancements               ,CE066FE,New Construction Conversion and Renovation,,B4,Contractor - Site works                 ,665,24/07/2013,C,REDACTED
145,,,Street scene enhancements               ,CE066FE,New Construction Conversion and Renovation,,B4,Contractor - Site works                 ,"6,500.00",03/08/2013,C,LA BELLE ROOFING CO LTD       
146,,,Street scene enhancements               ,CE066FE,New Construction Conversion and Renovation,,B4,Contractor - Site works                 ,650,24/07/2013,C,REDACTED
147,,,Street Lighting Replacement Pr          ,CE068FA,New Construction Conversion and Renovation,,B4,Contractor - Site works                 ,"2,137.42",29/07/2013,C,MAY GURNEY LTD T/A CARTLEDGE  
148,,,Street Lighting Replacement Pr          ,CE068FA,New Construction Conversion and Renovation,,B6,Other Costs - Site works                ,642,12/08/2013,C,UK POWER NETWORKS (OPERATIONS)
149,,,Street Lighting Replacement Pr          ,CE068FA,New Construction Conversion and Renovation,,B6,Other Costs - Site works                ,642,26/07/2013,C,UK POWER NETWORKS (OPERATIONS)
150,,,Street Lighting Replacement Pr          ,CE068FA,New Construction Conversion and Renovation,,B6,Other Costs - Site works                ,642,12/08/2013,C,UK POWER NETWORKS (OPERATIONS)
151,,,Replacement of Fleet Vehicles           ,CE082EA,Vehicles Plant Equipment and Machinery,,D1,Vehicles                                ,"14,450.32",02/08/2013,C,CITROEN LONDON WEST           
152,,,Alley Gating Scheme - Fly Tip           ,CE087FA,Other Capital Expenditure,,E1,Grants                                  ,"1,327.86",15/08/2013,C,MANOR ROAD GATING ASSOCIATION 
153,,,Alley Gating Scheme - Fly Tip           ,CE087FA,Other Capital Expenditure,,E1,Grants                                  ,"1,855.90",16/08/2013,C,FOWLGUY                       
154,,,Strategic corridor Mitcham              ,CE104FB,New Construction Conversion and Renovation,,B2,Site Surveys D&S Structure              ,"3,895.00",29/07/2013,C,LASER SURVEYS                 
155,,,Strategic corridor Mitcham              ,CE104FB,New Construction Conversion and Renovation,,B3,Other Expenses D&S Structure            ,780,05/08/2013,C,STUDIO WEAVE LTD              
156,,,Kingston/Hartfield Rd StratCor          ,CE104FC,New Construction Conversion and Renovation,,C3,Public Notices - Structure              ,603.9,10/08/2013,C,NEWSQUEST (LONDON)LTD         
157,,,Accesibility Programme                  ,CE104FD,New Construction Conversion and Renovation,,B2,Site Surveys D&S Structure              ,800,01/08/2013,C,TRAFFICWATCH (UK) LTD.        
158,,,Accesibility Programme                  ,CE104FD,New Construction Conversion and Renovation,,B2,Site Surveys D&S Structure              ,925,01/08/2013,C,TRAFFICWATCH (UK) LTD.        
159,,,Accesibility Programme                  ,CE104FD,New Construction Conversion and Renovation,,B4,Contractor - Site works                 ,540.78,23/08/2013,C,FM CONWAY LTD                 
160,,,Accesibility Programme                  ,CE104FD,New Construction Conversion and Renovation,,B4,Contractor - Site works                 ,"6,711.64",14/08/2013,C,FM CONWAY LTD                 
161,,,Victoria Rd Bus Access Impr             ,CE104FL,New Construction Conversion and Renovation,,B2,Site Surveys D&S Structure              ,"2,400.00",19/07/2013,C,REDACTED
162,,,Victoria Rd Bus Access Impr             ,CE104FL,New Construction Conversion and Renovation,,B2,Site Surveys D&S Structure              ,"4,650.00",01/08/2013,C,TRAFFICWATCH (UK) LTD.        
163,,,School & Road Safety Campaigns          ,CE104RC,Other Capital Expenditure,,E4,TFL Other                               ,"1,875.00",14/08/2013,C,BIKEWIZE MOTORCYCLE TRAINING  
164,,,School & Road Safety Campaigns          ,CE104RC,Other Capital Expenditure,,E4,TFL Other                               ,"1,200.00",12/08/2013,C,BLAKES DRIVER TRAINING        
165,,,School & Road Safety Campaigns          ,CE104RC,Other Capital Expenditure,,E4,TFL Other                               ,939,12/08/2013,C,BLAKES DRIVER TRAINING        
166,,,TFL Slippage - Corridors&Neigh          ,CE104RK,New Construction Conversion and Renovation,,B4,Contractor - Site works                 ,"8,709.83",14/08/2013,C,FM CONWAY LTD                 
167,,,Motorcycles in Bus Lanes                ,CE104RP,New Construction Conversion and Renovation,,B4,Contractor - Site works                 ,"11,228.84",29/07/2013,C,FM CONWAY LTD                 
168,,,Merton HS Victory to Norman             ,CE105FJ,New Construction Conversion and Renovation,,B4,Contractor - Site works                 ,"74,895.49",23/08/2013,C,FM CONWAY LTD                 
169,,,Biking Borough Project                  ,CE128FA,New Construction Conversion and Renovation,,B4,Contractor - Site works                 ,"2,354.33",23/08/2013,C,FM CONWAY LTD                 
170,,,Biking Borough Programme                ,CE128RA,Other Capital Expenditure,,E4,TFL Other                               ,"2,000.00",16/08/2013,C,PANDA HORSE                   
171,,,Improved parking- shop parades          ,CE132FA,New Construction Conversion and Renovation,,B4,Contractor - Site works                 ,"12,641.69",29/07/2013,C,FM CONWAY LTD                 
172,,,Garage For Mayor's Car,CE138BA,New Construction Conversion and Renovation,,B5,Suppliers - Site works                  ,"3,733.33",05/07/2013,C,HANSON GARAGES                
173,,,Civic Centre refurbishment              ,CF001AB,New Construction Conversion and Renovation,,B4,Contractor - Site works                 ,"2,709.25",14/08/2013,C,ALIPORT LTD T/A ALIPORT COMM. 
174,,,Civic Centre Windows                    ,CF001AK,New Construction Conversion and Renovation,,B4,Contractor - Site works                 ,"2,264.37",26/07/2013,C,NETWORK BLINDS LIMITED        
175,,,Civic Centre Windows                    ,CF001AK,New Construction Conversion and Renovation,,B4,Contractor - Site works                 ,789.91,06/08/2013,C,NETWORK BLINDS LIMITED        
176,,,Civic Centre Windows                    ,CF001AK,New Construction Conversion and Renovation,,B4,Contractor - Site works                 ,"266,782.80",31/07/2013,C,HAZLEMERE WINDOW CO LIMITED   
177,,,Civic Centre Windows                    ,CF001AK,New Construction Conversion and Renovation,,B4,Contractor - Site works                 ,"1,821.53",06/08/2013,C,NETWORK BLINDS LIMITED        
178,,,Repair and Maintenance                  ,CF004SA,New Construction Conversion and Renovation,,B4,Contractor - Site works                 ,"3,147.52",29/07/2013,C,SALTASH ENTERPRISES LTD       
179,,,Repair and Maintenance                  ,CF004SA,New Construction Conversion and Renovation,,B4,Contractor - Site works                 ,"5,000.00",29/07/2013,C,SALTASH ENTERPRISES LTD       
180,,,Repair and Maintenance                  ,CF004SA,New Construction Conversion and Renovation,,B4,Contractor - Site works                 ,"15,448.86",29/07/2013,C,SALTASH ENTERPRISES LTD       
181,,,Repair and Maintenance                  ,CF004SA,New Construction Conversion and Renovation,,B4,Contractor - Site works                 ,"39,947.42",29/01/2013,C,SALTASH ENTERPRISES LTD       
182,,,Repair and Maintenance                  ,CF004SA,New Construction Conversion and Renovation,,B4,Contractor - Site works                 ,"18,000.00",29/07/2013,C,SALTASH ENTERPRISES LTD       
183,,,Fire Risk Assessment Wrks               ,CF004SJ,New Construction Conversion and Renovation,,B4,Contractor - Site works                 ,"1,094.74",02/04/2013,C,SALTASH ENTERPRISES LTD       
184,,,Fire Risk Assessment Wrks               ,CF004SJ,New Construction Conversion and Renovation,,B4,Contractor - Site works                 ,500,02/04/2013,C,SALTASH ENTERPRISES LTD       
185,,,Gifford House Minor Refurb              ,CF058AC,Vehicles Plant Equipment and Machinery,,D5,Software                                ,735,08/07/2013,C,PRIORITY RISK LTD             
186,,,St Mary's expansion                     ,CS008RA,New Construction Conversion and Renovation,,B1,Consultants Fees D&S Structure          ,"13,943.00",08/05/2013,C,NPS PROPERTY CONSULTANTS LTD  
187,,,St Mary's expansion                     ,CS008RA,New Construction Conversion and Renovation,,B4,Contractor - Site works                 ,"7,405.05",22/08/2013,C,R DURTNELL & SONS LTD         
188,,,All Saints/ South Wim YCC exp           ,CS008SB,New Construction Conversion and Renovation,,B4,Contractor - Site works                 ,"6,258.53",31/07/2013,C,GEE CONSTRUCTION LTD          
189,,,Hollymount Permanent Expansion          ,CS011AA,New Construction Conversion and Renovation,,B1,Consultants Fees D&S Structure          ,"5,000.00",31/07/2013,C,HAVERSTOCK ASSOCIATES LLP     
190,,,Hollymount Permanent Expansion          ,CS011AA,New Construction Conversion and Renovation,,B3,Other Expenses D&S Structure            ,"1,400.00",29/07/2013,C,JESSOP ASSOCIATES (UK) LTD    
191,,,Garden PCP                              ,CS013AA,New Construction Conversion and Renovation,,B4,Contractor - Site works                 ,"108,059.53",24/07/2013,C,R DURTNELL & SONS LTD         
192,,,Gorringe Park expansion                 ,CS018AB,New Construction Conversion and Renovation,,B4,Contractor - Site works                 ,"15,000.00",21/08/2013,C,GEE CONSTRUCTION LTD          
193,,,Gorringe Park expansion                 ,CS018AB,New Construction Conversion and Renovation,,B4,Contractor - Site works                 ,"70,000.00",01/08/2013,C,GEE CONSTRUCTION LTD          
194,,,Hillcross School Expansion              ,CS020AC,New Construction Conversion and Renovation,,B1,Consultants Fees D&S Structure          ,925,31/07/2013,C,STACE LLP                     
195,,,Hillcross School Expansion              ,CS020AC,New Construction Conversion and Renovation,,B1,Consultants Fees D&S Structure          ,"4,500.00",26/07/2013,C,STACE LLP                     
196,,,Hillcross School Expansion              ,CS020AC,New Construction Conversion and Renovation,,B1,Consultants Fees D&S Structure          ,"4,500.00",31/07/2013,C,STACE LLP                     
197,,,Hillcross School Expansion              ,CS020AC,New Construction Conversion and Renovation,,B2,Site Surveys D&S Structure              ,"1,325.00",28/06/2013,C,REDHILLS ENVIRONMENTAL CONSUL.
198,,,Hillcross School Expansion              ,CS020AC,New Construction Conversion and Renovation,,B2,Site Surveys D&S Structure              ,700,31/07/2013,C,MIDDLEMARCH ENVIRONMENTAL LTD 
199,,,Merton Abbey Temp Accomodation          ,CS022AC,New Construction Conversion and Renovation,,B1,Consultants Fees D&S Structure          ,625,30/06/2013,C,EIGHT ASSOCIATES              
200,,,Merton Abbey Temp Accomodation          ,CS022AC,New Construction Conversion and Renovation,,B1,Consultants Fees D&S Structure          ,750,31/07/2013,C,STACE LLP                     
201,,,Merton Abbey Temp Accomodation          ,CS022AC,New Construction Conversion and Renovation,,B2,Site Surveys D&S Structure              ,"2,467.63",24/07/2013,C,JMP CONSULTANTS LTD           
202,,,Merton Abbey Temp Accomodation          ,CS022AC,New Construction Conversion and Renovation,,B2,Site Surveys D&S Structure              ,"2,091.05",29/07/2013,C,KEEGANS LIMITED               
203,,,Pelham School Expansion                 ,CS023AC,New Construction Conversion and Renovation,,B1,Consultants Fees D&S Structure          ,"5,000.00",26/07/2013,C,STACE LLP                     
204,,,Pelham School Expansion                 ,CS023AC,New Construction Conversion and Renovation,,B1,Consultants Fees D&S Structure          ,"25,189.00",31/07/2013,C,HAVERSTOCK ASSOCIATES LLP     
205,,,Pelham School Expansion                 ,CS023AC,New Construction Conversion and Renovation,,B1,Consultants Fees D&S Structure          ,"1,025.00",31/07/2013,C,STACE LLP                     
206,,,Pelham School Expansion                 ,CS023AC,New Construction Conversion and Renovation,,B1,Consultants Fees D&S Structure          ,"5,000.00",31/07/2013,C,STACE LLP                     
207,,,Pelham School Expansion                 ,CS023AC,New Construction Conversion and Renovation,,B2,Site Surveys D&S Structure              ,"2,200.00",19/08/2013,C,ADAMS ENVIRONMENTAL LTD       
208,,,Pelham School Expansion                 ,CS023AC,New Construction Conversion and Renovation,,B2,Site Surveys D&S Structure              ,517.5,31/07/2013,C,RSK ENVIRONMENT LTD           
209,,,Pelham School Expansion                 ,CS023AC,New Construction Conversion and Renovation,,B2,Site Surveys D&S Structure              ,"2,182.50",31/07/2013,C,RSK ENVIRONMENT LTD           
210,,,Pelham School Expansion                 ,CS023AC,New Construction Conversion and Renovation,,B2,Site Surveys D&S Structure              ,730,31/07/2013,C,SIMON JONES ASSOCIATES LTD    
211,,,Pelham School Expansion                 ,CS023AC,New Construction Conversion and Renovation,,B2,Site Surveys D&S Structure              ,"1,045.00",29/07/2013,C,JENKINS & POTTER LTD          
212,,,St Ann's Primary Phase                  ,CS032AA,Vehicles Plant Equipment and Machinery,,D3,Equipment                               ,"7,169.00",13/08/2013,C,ATOMWIDE LTD                  
213,,,St Ann's Primary Phase                  ,CS032AA,Vehicles Plant Equipment and Machinery,,D3,Equipment                               ,978.64,13/08/2013,C,ATOMWIDE LTD                  
214,,,Poplar Permanent Expansion              ,CS034AB,New Construction Conversion and Renovation,,B1,Consultants Fees D&S Structure          ,"36,404.37",31/07/2013,C,PELLINGS LLP                  
215,,,Poplar Permanent Expansion              ,CS034AB,New Construction Conversion and Renovation,,B1,Consultants Fees D&S Structure          ,"1,000.00",31/07/2013,C,STACE LLP                     
216,,,Poplar Permanent Expansion              ,CS034AB,New Construction Conversion and Renovation,,B2,Site Surveys D&S Structure              ,"2,000.00",31/07/2013,C,MLM MULTIDISCIPLINARY CONSULT.
217,,,Poplar Permanent Expansion              ,CS034AB,New Construction Conversion and Renovation,,B2,Site Surveys D&S Structure              ,"2,043.77",29/07/2013,C,KEEGANS LIMITED               
218,,,Poplar Permanent Expansion              ,CS034AB,New Construction Conversion and Renovation,,B2,Site Surveys D&S Structure              ,565,24/07/2013,C,JMP CONSULTANTS LTD           
219,,,Holy Trinity Expansion                  ,CS044RA,New Construction Conversion and Renovation,,B1,Consultants Fees D&S Structure          ,"3,195.80",12/08/2013,C,CURL LA TOURELLE ARCHITECTS   
220,,,Holy Trinity Expansion                  ,CS044RA,New Construction Conversion and Renovation,,B4,Contractor - Site works                 ,"77,785.59",20/08/2013,C,R DURTNELL & SONS LTD         
221,,,Wimbledon Park expansion                ,CS050AA,New Construction Conversion and Renovation,,B1,Consultants Fees D&S Structure          ,"1,062.00",31/07/2013,C,SYNERGY CPC LLP               
222,,,Wimbledon Park expansion                ,CS050AA,New Construction Conversion and Renovation,,B4,Contractor - Site works                 ,"243,086.91",02/08/2013,C,GEE CONSTRUCTION LTD          
223,,,Wimbledon Park expansion                ,CS050AA,Vehicles Plant Equipment and Machinery,,D3,Equipment                               ,"10,015.55",25/07/2013,C,KEYSTAGE LTD                  
224,,,Wimbledon Park expansion                ,CS050AA,Vehicles Plant Equipment and Machinery,,D3,Equipment                               ,"20,066.63",01/08/2013,C,KEYSTAGE LTD                  
225,,,Youth&Comm centres reprovision          ,CS083SA,New Construction Conversion and Renovation,,B4,Contractor - Site works                 ,"2,383.66",03/02/2013,C,STAMFORD CONTRACTS LIMITED    
226,,,Beecholme - Automated Gates             ,CS091AA,New Construction Conversion and Renovation,,B4,Contractor - Site works                 ,"19,157.00",19/08/2013,C,TONBRIDGE FENCING LTD         
227,,,St Marks Pri-Automated gates            ,CS091AE,New Construction Conversion and Renovation,,B4,Contractor - Site works                 ,"1,600.00",19/08/2013,C,TONBRIDGE FENCING LTD         
228,,,The Sherwood-Boiler&Perim Fnc           ,CS091AF,New Construction Conversion and Renovation,,B4,Contractor - Site works                 ,"14,631.00",19/08/2013,C,TONBRIDGE FENCING LTD         
229,,,West Wim-Boiler&Perim Fnc               ,CS091AG,New Construction Conversion and Renovation,,B4,Contractor - Site works                 ,"10,060.00",19/08/2013,C,TONBRIDGE FENCING LTD         
230,,,Disaster recovery                       ,CT003EA,Vehicles Plant Equipment and Machinery,,D3,Equipment                               ,"3,533.25",15/08/2013,C,ORGANISED COMPUTER SYSTEMS LTD
231,,,IT Equipment                            ,CT006EA,Vehicles Plant Equipment and Machinery,,D3,Equipment                               ,"3,644.00",26/07/2013,C,SCALABLE COMMUNICATIONS PLC   
232,,,IT Equipment                            ,CT006EA,Vehicles Plant Equipment and Machinery,,D3,Equipment                               ,"10,950.00",26/07/2013,C,SCALABLE COMMUNICATIONS PLC   
233,,,IT Equipment                            ,CT006EA,Vehicles Plant Equipment and Machinery,,D3,Equipment                               ,"24,661.00",26/07/2013,C,SCALABLE COMMUNICATIONS PLC   
234,,,IT Equipment                            ,CT006EA,Vehicles Plant Equipment and Machinery,,D3,Equipment                               ,"7,000.00",12/08/2013,C,COMPUTERLAND                  
235,,,IT Equipment                            ,CT006EA,Vehicles Plant Equipment and Machinery,,D3,Equipment                               ,909.42,30/07/2013,C,SPECIALIST COMPUTER CENT. PLC 
236,,,IT Equipment                            ,CT006EA,Vehicles Plant Equipment and Machinery,,D3,Equipment                               ,664,26/07/2013,C,SCALABLE COMMUNICATIONS PLC   
237,,,IT Equipment                            ,CT006EA,Vehicles Plant Equipment and Machinery,,D3,Equipment                               ,723.36,26/07/2013,C,SCALABLE COMMUNICATIONS PLC   
238,,,IT Equipment                            ,CT006EA,Vehicles Plant Equipment and Machinery,,D3,Equipment                               ,"1,245.00",26/07/2013,C,SCALABLE COMMUNICATIONS PLC   
239,,,IT Equipment                            ,CT006EA,Vehicles Plant Equipment and Machinery,,D3,Equipment                               ,"1,600.00",26/07/2013,C,SCALABLE COMMUNICATIONS PLC   
240,,,Cloud Computing - Cap Ambition          ,CT013EA,Other Capital Expenditure,,E3,Miscellaneous Capital Expendit          ,950,28/06/2013,C,FORDWAY LTD                   
241,Central Services,Council tax collection,Local Taxation Services                 ,E02100,Supplies & Services           ,Services                      ,DF09,Miscellaneous Fees                      ,"3,500.00",12/08/2013,R,WHITMORE LAW LLP              
242,Central Services,Council tax collection,Local Taxation Services                 ,E02100,Supplies & Services           ,Services                      ,DF11,Counsel's Fees                          ,975,28/06/2013,R,WORLD OF 1DA                  
243,Central Services,Council tax collection,Local Taxation Services                 ,E02100,Supplies & Services           ,Services                      ,DF11,Counsel's Fees                          ,518,04/06/2013,R,REDACTED
244,Central Services,Council tax collection,Local Taxation Services                 ,E02100,Supplies & Services           ,Services                      ,DF11,Counsel's Fees                          ,500,05/07/2013,R,GERALD GOURIET QC             
245,Central Services,Council tax collection,Local Taxation Services                 ,E02100,Supplies & Services           ,Comms and Computing           ,DG09,Computer Purchases - Misc               ,"3,445.00",07/08/2013,R,CIVICA UK LIMITED             
246,Central Services,Council tax collection,Local Taxation Services                 ,E02100,Supplies & Services           ,Comms and Computing           ,DG09,Computer Purchases - Misc               ,625,07/08/2013,R,CIVICA UK LIMITED             
247,Central Services,Council tax collection,Local Taxation Services                 ,E02100,Supplies & Services           ,Comms and Computing           ,DG09,Computer Purchases - Misc               ,500,15/08/2013,R,CIVICA UK LIMITED             
248,Central Services,Council tax collection,Local Taxation Bailiffs                 ,E02101,Supplies & Services           ,Services                      ,DF18,Bailiffs' fees                          ,668.1,31/07/2013,R,HPI LIMITED                   
249,Central Services,SupS Payroll,Payroll                                 ,E02140,Third Party Payments          ,Private Contractors           ,EH10,Contract Payments                       ,"8,321.28",30/07/2013,R,LONDON BOROUGH OF SUTTON      
250,Central Services,SupS Payroll,Payroll                                 ,E02140,Third Party Payments          ,Private Contractors           ,EH10,Contract Payments                       ,"18,441.77",19/07/2013,R,LONDON BOROUGH OF SUTTON      
251,Central Services,SupS Payroll,Trinity Project                         ,E02141,Third Party Payments          ,Private Contractors           ,EH02,Miscellaneous Hired Services            ,"124,809.50",21/05/2013,R,LONDON BOROUGH OF SUTTON      
252,Central Services,SupS Pensions,Pensions                                ,E02160,Supplies & Services           ,Comms and Computing           ,DG02,Software Licences                       ,"14,210.58",14/08/2013,R,HEYWOOD                       
253,Central Services,SupS Pensions,Pensions                                ,E02160,Supplies & Services           ,Comms and Computing           ,DG02,Software Licences                       ,"6,400.00",14/08/2013,R,HEYWOOD                       
254,Central Services,SupS Facilities,Post Room                               ,E02220,Supplies & Services           ,Comms and Computing           ,DG04,Postage - General                       ,"2,372.70",26/06/2013,R,DX NETWORK SERVICES LTD       
255,Central Services,SupS Facilities,Security Services                       ,E02221,Employees                     ,Direct Employee Expenses      ,AA17,Agency Staff & Casual Paymts            ,"2,152.80",16/08/2013,R,SIGHT & SOUND                 
256,Central Services,SupS Facilities,Security Services                       ,E02221,Employees                     ,Direct Employee Expenses      ,AA17,Agency Staff & Casual Paymts            ,"2,152.80",16/08/2013,R,SIGHT & SOUND                 
257,Central Services,SupS Facilities,Security Services                       ,E02221,Employees                     ,Direct Employee Expenses      ,AA17,Agency Staff & Casual Paymts            ,"1,123.20",16/08/2013,R,SIGHT & SOUND                 
258,Central Services,SupS Facilities,Civic Centre                            ,E02222,Premises Related Expenditure  ,Cleaning and Domestic Supplies,BH01,Cleaning Materials                      ,504,12/08/2013,R,GREENHAM TRADING LTD          
259,Central Services,SupS Facilities,Civic Centre                            ,E02222,Premises Related Expenditure  ,Cleaning and Domestic Supplies,BH03,Cleaning Services                       ,"1,395.29",31/07/2013,R,BIRKIN CLEANING SERVICES LTD  
260,Central Services,SupS Facilities,Civic Centre                            ,E02222,Premises Related Expenditure  ,Cleaning and Domestic Supplies,BH03,Cleaning Services                       ,"1,642.40",31/07/2013,R,BIRKIN CLEANING SERVICES LTD  
261,Central Services,SupS Facilities,Civic Centre                            ,E02222,Premises Related Expenditure  ,Cleaning and Domestic Supplies,BH03,Cleaning Services                       ,"6,473.18",31/07/2013,R,BIRKIN CLEANING SERVICES LTD  
262,Central Services,SupS Facilities,Civic Centre                            ,E02222,Premises Related Expenditure  ,Cleaning and Domestic Supplies,BH03,Cleaning Services                       ,"1,199.41",31/07/2013,R,BIRKIN CLEANING SERVICES LTD  
263,Central Services,SupS Facilities,Civic Centre                            ,E02222,Premises Related Expenditure  ,Cleaning and Domestic Supplies,BH03,Cleaning Services                       ,"1,511.31",31/07/2013,R,BIRKIN CLEANING SERVICES LTD  
264,Central Services,SupS Facilities,Civic Centre                            ,E02222,Premises Related Expenditure  ,Cleaning and Domestic Supplies,BH03,Cleaning Services                       ,819.47,31/07/2013,R,BIRKIN CLEANING SERVICES LTD  
265,Central Services,SupS Facilities,Civic Centre                            ,E02222,Premises Related Expenditure  ,Cleaning and Domestic Supplies,BH03,Cleaning Services                       ,"1,464.69",31/07/2013,R,BIRKIN CLEANING SERVICES LTD  
266,Central Services,SupS Facilities,Civic Centre                            ,E02222,Premises Related Expenditure  ,Cleaning and Domestic Supplies,BH03,Cleaning Services                       ,"3,035.93",31/07/2013,R,BIRKIN CLEANING SERVICES LTD  
267,Central Services,SupS Facilities,Civic Centre                            ,E02222,Premises Related Expenditure  ,Cleaning and Domestic Supplies,BH03,Cleaning Services                       ,"1,215.98",31/07/2013,R,BIRKIN CLEANING SERVICES LTD  
268,Central Services,SupS Facilities,Civic Centre                            ,E02222,Third Party Payments          ,Private Contractors           ,EH10,Contract Payments                       ,"3,185.73",26/07/2013,R,ISS COLLECTIONS LTD           
269,Central Services,SupS Facilities,Facilities                              ,E02231,Employees                     ,Indirect Employee Expenses    ,AB57,External Training Costs                 ,950,31/07/2013,R,REEF WATER SOLUTIONS          
270,Central Services,SupS Facilities,Facilities                              ,E02231,Premises Related Expenditure  ,RepairsAlterations&MtceOfBldgs,BA84,Asbestos                                ,"1,293.00",30/07/2013,R,LUCION ENVIRONMENTAL LTD      
271,Central Services,SupS Facilities,Facilities                              ,E02231,Premises Related Expenditure  ,RepairsAlterations&MtceOfBldgs,BA89,Fire Safety Risk Assessment             ,"1,308.00",31/07/2013,R,COFELY LIMITED                
272,Central Services,SupS Facilities,Facilities                              ,E02231,Premises Related Expenditure  ,RepairsAlterations&MtceOfBldgs,BA89,Fire Safety Risk Assessment             ,500,31/07/2013,R,COFELY LIMITED                
273,Central Services,SupS Facilities,Facilities                              ,E02231,Premises Related Expenditure  ,RepairsAlterations&MtceOfBldgs,BA90,Water Hygiene                           ,500,25/07/2013,R,HYDRO-X WATER TREATMENT LTD   
274,Central Services,SupS Facilities,Corporate Services Buildings            ,E02240,Premises Related Expenditure  ,RepairsAlterations&MtceOfBldgs,BA03,DDM - Mechanical                        ,"4,118.70",08/08/2013,R,COFELY LIMITED                
275,Central Services,SupS Facilities,Corporate Services Buildings            ,E02240,Premises Related Expenditure  ,RepairsAlterations&MtceOfBldgs,BA03,DDM - Mechanical                        ,"4,118.70",08/08/2013,R,COFELY LIMITED                
276,Central Services,SupS Facilities,Corporate Services Buildings            ,E02240,Premises Related Expenditure  ,RepairsAlterations&MtceOfBldgs,BA03,DDM - Mechanical                        ,"4,118.70",08/08/2013,R,COFELY LIMITED                
277,Central Services,SupS Facilities,Corporate Services Buildings            ,E02240,Premises Related Expenditure  ,RepairsAlterations&MtceOfBldgs,BA03,DDM - Mechanical                        ,"4,118.70",08/08/2013,R,COFELY LIMITED                
278,Central Services,SupS Facilities,Corporate Services Buildings            ,E02240,Premises Related Expenditure  ,RepairsAlterations&MtceOfBldgs,BA05,DDM - Electrical                        ,"1,720.95",02/07/2013,R,AXIS ELEVATORS LTD            
279,Central Services,SupS Facilities,Corporate Services Buildings            ,E02240,Premises Related Expenditure  ,RepairsAlterations&MtceOfBldgs,BA05,DDM - Electrical                        ,"1,264.00",31/07/2013,R,COFELY LIMITED                
280,Central Services,SupS Facilities,Corporate Services Buildings            ,E02240,Premises Related Expenditure  ,RepairsAlterations&MtceOfBldgs,BA05,DDM - Electrical                        ,"1,181.55",31/07/2013,R,COFELY LIMITED                
281,Central Services,SupS Facilities,Corporate Services Buildings            ,E02240,Premises Related Expenditure  ,RepairsAlterations&MtceOfBldgs,BA05,DDM - Electrical                        ,"1,240.00",31/07/2013,R,SUSCRAFT LTD(T/A OAKMEAD ELEC)
282,Central Services,SupS Facilities,Corporate Services Buildings            ,E02240,Premises Related Expenditure  ,RepairsAlterations&MtceOfBldgs,BA29,Build Maint Mgt Fees                    ,882,09/08/2013,R,UNIQUE OFFICE SOLUTIONS LTD   
283,Central Services,SupS Facilities,Corporate Services Buildings            ,E02240,Premises Related Expenditure  ,Energy Costs                  ,BB02,Electricity                             ,"17,049.54",07/08/2013,R,SCOTTISHPOWER                 
284,Central Services,SupS Facilities,Corporate Services Buildings            ,E02240,Premises Related Expenditure  ,Energy Costs                  ,BB03,Gas (incl. Butane)                      ,"-11,723.56",06/08/2013,R,GAZPROM MARKETING&TRADING LTD 
285,Central Services,SupS Facilities,Corporate Services Buildings            ,E02240,Premises Related Expenditure  ,Energy Costs                  ,BB03,Gas (incl. Butane)                      ,"-6,620.50",06/08/2013,R,GAZPROM MARKETING&TRADING LTD 
286,Central Services,SupS Facilities,Corporate Services Buildings            ,E02240,Premises Related Expenditure  ,Energy Costs                  ,BB03,Gas (incl. Butane)                      ,"-5,464.85",06/08/2013,R,GAZPROM MARKETING&TRADING LTD 
287,Central Services,SupS Facilities,Corporate Services Buildings            ,E02240,Premises Related Expenditure  ,Water Services                ,BE01,Use of Water (Metered)                  ,"1,180.86",26/07/2013,R,SUTTON AND EAST SURREY WATER  
288,Cultural Env Reg&Plan Services,Parks & Open Spaces,E & R Buildings                         ,E02344,Premises Related Expenditure  ,RepairsAlterations&MtceOfBldgs,BA01,DDM - General Building                  ,"1,560.55",02/04/2013,R,SALTASH ENTERPRISES LTD       
289,Cultural Env Reg&Plan Services,Parks & Open Spaces,E & R Buildings                         ,E02344,Premises Related Expenditure  ,RepairsAlterations&MtceOfBldgs,BA01,DDM - General Building                  ,500,02/04/2013,R,SALTASH ENTERPRISES LTD       
290,Cultural Env Reg&Plan Services,Parks & Open Spaces,E & R Buildings                         ,E02344,Premises Related Expenditure  ,RepairsAlterations&MtceOfBldgs,BA03,DDM - Mechanical                        ,"1,400.00",30/07/2013,R,MECSERVE                      
291,Cultural Env Reg&Plan Services,Parks & Open Spaces,E & R Buildings                         ,E02344,Premises Related Expenditure  ,RepairsAlterations&MtceOfBldgs,BA03,DDM - Mechanical                        ,572.3,08/08/2013,R,COFELY LIMITED                
292,Cultural Env Reg&Plan Services,Parks & Open Spaces,E & R Buildings                         ,E02344,Premises Related Expenditure  ,RepairsAlterations&MtceOfBldgs,BA03,DDM - Mechanical                        ,572.3,08/08/2013,R,COFELY LIMITED                
293,Cultural Env Reg&Plan Services,Parks & Open Spaces,E & R Buildings                         ,E02344,Premises Related Expenditure  ,RepairsAlterations&MtceOfBldgs,BA03,DDM - Mechanical                        ,572.3,08/08/2013,R,COFELY LIMITED                
294,Cultural Env Reg&Plan Services,Parks & Open Spaces,E & R Buildings                         ,E02344,Premises Related Expenditure  ,RepairsAlterations&MtceOfBldgs,BA03,DDM - Mechanical                        ,572.3,08/08/2013,R,COFELY LIMITED                
295,Cultural Env Reg&Plan Services,Parks & Open Spaces,E & R Buildings                         ,E02344,Premises Related Expenditure  ,RepairsAlterations&MtceOfBldgs,BA05,DDM - Electrical                        ,967.68,01/08/2013,R,COFELY LIMITED                
296,Cultural Env Reg&Plan Services,Parks & Open Spaces,E & R Buildings                         ,E02344,Premises Related Expenditure  ,RepairsAlterations&MtceOfBldgs,BA05,DDM - Electrical                        ,"1,413.24",07/08/2013,R,CHUBB ELECTRONIC SEC. SYSTEMS 
297,Adult Social Care,PS u65 Day Care,C & H Buildings                         ,E02345,Premises Related Expenditure  ,RepairsAlterations&MtceOfBldgs,BA01,DDM - General Building                  ,850,30/07/2013,R,LUCION ENVIRONMENTAL LTD      
298,Adult Social Care,PS u65 Day Care,C & H Buildings                         ,E02345,Premises Related Expenditure  ,RepairsAlterations&MtceOfBldgs,BA03,DDM - Mechanical                        ,600,30/07/2013,R,MECSERVE                      
299,Adult Social Care,PS u65 Day Care,C & H Buildings                         ,E02345,Premises Related Expenditure  ,RepairsAlterations&MtceOfBldgs,BA05,DDM - Electrical                        ,697.87,08/08/2013,R,COFELY LIMITED                
300,Adult Social Care,PS u65 Day Care,C & H Buildings                         ,E02345,Premises Related Expenditure  ,RepairsAlterations&MtceOfBldgs,BA05,DDM - Electrical                        ,697.87,08/08/2013,R,COFELY LIMITED                
301,Adult Social Care,PS u65 Day Care,C & H Buildings                         ,E02345,Premises Related Expenditure  ,RepairsAlterations&MtceOfBldgs,BA05,DDM - Electrical                        ,697.87,08/08/2013,R,COFELY LIMITED                
302,Adult Social Care,PS u65 Day Care,C & H Buildings                         ,E02345,Premises Related Expenditure  ,RepairsAlterations&MtceOfBldgs,BA05,DDM - Electrical                        ,697.87,08/08/2013,R,COFELY LIMITED                
303,Cultural Env Reg&Plan Services,Parks & Open Spaces,Leisure Buildings                       ,E02350,Premises Related Expenditure  ,RepairsAlterations&MtceOfBldgs,BA01,DDM - General Building                  ,715.5,02/04/2013,R,SALTASH ENTERPRISES LTD       
304,Central Services,SupS DOF,BUSINESS PARTNERS                       ,E04059,Employees                     ,Direct Employee Expenses      ,AA17,Agency Staff & Casual Paymts            ,"8,125.00",06/08/2013,R,REDACTED
305,Central Services,SupS DOF,Director of Corporate Services          ,E04060,Supplies & Services           ,Services                      ,DF11,Counsel's Fees                          ,911,22/07/2013,R,REDACTED
306,Central Services,SupS DOF,AD RESOURCES                            ,E04061,Supplies & Services           ,Services                      ,DF03,CONSULTANTS                             ,"4,156.15",07/05/2013,R,UNISERVE CONSULTING LIMITED   
307,Central Services,SupS DOF,AD RESOURCES                            ,E04061,Supplies & Services           ,Services                      ,DF03,CONSULTANTS                             ,"10,865.15",07/05/2013,R,UNISERVE CONSULTING LIMITED   
308,Central Services,SupS DOF,AD RESOURCES                            ,E04061,Supplies & Services           ,Services                      ,DF03,CONSULTANTS                             ,"10,580.00",01/08/2013,R,PUBLIC SECTOR CONSULTANTS     
309,Housing Services,Fraud Investigation,Benefits Investigation Section          ,E05103,Supplies & Services           ,Services                      ,DF05,Use of Pitches                          ,748.45,26/07/2013,R,VALUATION OFFICE AGENCY       
310,Central Services,SupS Corporate Finance,Corporate Accountancy                   ,E06209,Supplies & Services           ,Services                      ,DF58,Audit Fee                               ,"60,808.00",31/07/2013,R,ERNST & YOUNG LLP             
311,Central Services,GENERATED ACCOUNT,Establishments' Cash Collect'n          ,E06226,Third Party Payments          ,Private Contractors           ,EH02,Miscellaneous Hired Services            ,"3,299.66",17/06/2013,R,LOOMIS UK LTD                 
312,Central Services,SupS DOF,Service Accountancy                     ,E06227,Supplies & Services           ,Expenses                      ,DH02,Conferences                             ,580,08/07/2013,R,REDACTED
313,Central Services,SupS Legal,Legal Services                          ,E10282,Supplies & Services           ,Services                      ,DF28,Court Fees                              ,"1,250.00",27/08/2013,R,REDACTED
314,Central Services,SupS Legal,Legal Services                          ,E10282,Supplies & Services           ,Services                      ,DF28,Court Fees                              ,"12,465.00",18/07/2013,R,REDACTED
315,Central Services,Conducting elections,Election Expenses                       ,E10284,Supplies & Services           ,Prntng Stnry Gen Off Exp      ,DE50,Ballot Papers/Poll Cards Print          ,"1,361.96",31/07/2013,R,FINANCIAL DATA MANAGEMENT PLC 
316,Central Services,SupS Legal,Shared Legal Service                    ,E10288,Supplies & Services           ,Services                      ,DF04,Miscellaneous Expenses                  ,"106,425.00",18/06/2013,R,L.B.RICHMOND UPON THAMES      
317,Central Services,SupS Legal,Shared Legal Service                    ,E10288,Supplies & Services           ,Services                      ,DF09,Miscellaneous Fees                      ,"1,372.18",28/07/2013,R,WINCANTON RECORDS MANAGEMENT  
318,Central Services,SupS Legal,Shared Legal Service                    ,E10288,Supplies & Services           ,Comms and Computing           ,DG02,Software Licences                       ,"6,757.00",25/07/2013,R,ZYLPHA LIMITED                
319,Central Services,SupS Legal,Shared Legal Service                    ,E10288,Supplies & Services           ,Comms and Computing           ,DG14,Telephones - Mobile                     ,"1,301.70",26/04/2013,R,T MOBILE (UK)                 
320,Central Services,SupS Legal,Shared Legal Service                    ,E10288,Supplies & Services           ,Comms and Computing           ,DG50,Other IT Expenditure                    ,"7,365.00",30/07/2013,R,TWOFOLD LTD                   
321,Central Services,SupS Legal,Richmond Legal                          ,E10289,Supplies & Services           ,Services                      ,DF09,Miscellaneous Fees                      ,636,15/05/2013,R,JORDANS LTD                   
322,Central Services,SupS Legal,Richmond Legal                          ,E10289,Supplies & Services           ,Services                      ,DF11,Counsel's Fees                          ,700,28/06/2013,R,REDACTED
323,Central Services,SupS Legal,Richmond Legal                          ,E10289,Supplies & Services           ,Services                      ,DF11,Counsel's Fees                          ,"1,095.00",12/06/2013,R,REDACTED
324,Central Services,SupS Legal,Richmond Legal                          ,E10289,Supplies & Services           ,Services                      ,DF11,Counsel's Fees                          ,750,29/07/2013,R,REDACTED
325,Central Services,SupS Legal,Richmond Legal                          ,E10289,Supplies & Services           ,Services                      ,DF11,Counsel's Fees                          ,940,14/08/2013,R,REDACTED
326,Central Services,SupS Legal,Richmond Legal                          ,E10289,Supplies & Services           ,Services                      ,DF11,Counsel's Fees                          ,525,26/07/2013,R,REDACTED
327,Central Services,SupS Legal,Richmond Legal                          ,E10289,Supplies & Services           ,Services                      ,DF11,Counsel's Fees                          ,"2,250.00",26/07/2013,R,REDACTED
328,Central Services,SupS Legal,Richmond Legal                          ,E10289,Supplies & Services           ,Services                      ,DF11,Counsel's Fees                          ,"4,021.00",22/07/2013,R,REDACTED
329,Central Services,SupS Legal,Richmond Legal                          ,E10289,Supplies & Services           ,Services                      ,DF11,Counsel's Fees                          ,837.42,04/07/2013,R,REDACTED
330,Central Services,SupS Legal,Richmond Legal                          ,E10289,Supplies & Services           ,Services                      ,DF11,Counsel's Fees                          ,850,22/07/2013,R,REDACTED
331,Central Services,SupS Legal,Richmond Legal                          ,E10289,Supplies & Services           ,Services                      ,DF11,Counsel's Fees                          ,600,23/07/2013,R,REDACTED
332,Central Services,SupS Legal,Richmond Legal                          ,E10289,Supplies & Services           ,Services                      ,DF11,Counsel's Fees                          ,"1,375.00",18/07/2013,R,REDACTED
333,Central Services,SupS Legal,Richmond Legal                          ,E10289,Supplies & Services           ,Services                      ,DF11,Counsel's Fees                          ,570,06/08/2013,R,REDACTED
334,Central Services,SupS Legal,Richmond Legal                          ,E10289,Supplies & Services           ,Services                      ,DF11,Counsel's Fees                          ,750,26/06/2013,R,REDACTED
335,Central Services,SupS Legal,Richmond Legal                          ,E10289,Supplies & Services           ,Services                      ,DF11,Counsel's Fees                          ,730,25/07/2013,R,REDACTED
336,Central Services,SupS Legal,Richmond Legal                          ,E10289,Supplies & Services           ,Services                      ,DF11,Counsel's Fees                          ,"3,485.42",03/06/2013,R,REDACTED
337,Central Services,SupS Legal,Richmond Legal                          ,E10289,Supplies & Services           ,Services                      ,DF11,Counsel's Fees                          ,"1,000.00",27/06/2013,R,REDACTED
338,Central Services,SupS Legal,Richmond Legal                          ,E10289,Supplies & Services           ,Services                      ,DF11,Counsel's Fees                          ,"1,730.00",09/07/2013,R,REDACTED
339,Central Services,SupS Legal,Richmond Legal                          ,E10289,Supplies & Services           ,Services                      ,DF11,Counsel's Fees                          ,525,16/07/2013,R,REDACTED
340,Central Services,SupS Legal,Richmond Legal                          ,E10289,Supplies & Services           ,Services                      ,DF14,Doctors and Other Fees                  ,"-2,550.00",14/11/2012,R,REDACTED
341,Central Services,SupS Legal,Richmond Legal                          ,E10289,Supplies & Services           ,Services                      ,DF95,Services from Provider                  ,"4,250.00",26/07/2013,R,REDACTED
342,Central Services,SupS Legal,Richmond Legal                          ,E10289,Supplies & Services           ,Services                      ,DF95,Services from Provider                  ,"1,789.95",09/07/2013,R,RUSSELL -  COOKE LLP          
343,Central Services,SupS Legal,Richmond Legal                          ,E10289,Supplies & Services           ,Services                      ,DF95,Services from Provider                  ,"1,510.45",10/11/2012,R,REDACTED
344,Central Services,SupS Legal,Richmond Legal                          ,E10289,Supplies & Services           ,Services                      ,DF95,Services from Provider                  ,"1,767.75",26/07/2013,R,REDACTED
345,Central Services,SupS Legal,Richmond Legal                          ,E10289,Supplies & Services           ,Services                      ,DF95,Services from Provider                  ,500,31/07/2013,R,BLACKTHORN                    
346,Central Services,SupS Legal,4 Borough Legal Service                 ,E10290,Premises Related Expenditure  ,RepairsAlterations&MtceOfBldgs,BA01,DDM - General Building                  ,"1,100.00",30/07/2013,R,LUCION ENVIRONMENTAL LTD      
347,Central Services,SupS Legal,4 Borough Legal Service                 ,E10290,Supplies & Services           ,Comms and Computing           ,DG02,Software Licences                       ,"2,550.00",25/07/2013,R,ZYLPHA LIMITED                
348,Central Services,SupS Payroll,Coroners Courts                         ,E11300,Third Party Payments          ,Joint Authorities             ,EC11,SW Inner London Coroners Crt C          ,"64,997.00",16/07/2013,R,CITY OF WESTMINSTER           
349,Central Services,SupS IT,AD Business Improvement                 ,E14358,Employees                     ,Indirect Employee Expenses    ,AB57,External Training Costs                 ,993,23/05/2013,R,PITNEY BOWES SOFTWARE LTD     
350,Central Services,SupS IT,AD I&T                                  ,E14363,Employees                     ,Direct Employee Expenses      ,AA17,Agency Staff & Casual Paymts            ,"10,800.00",30/07/2013,R,GATENBY SANDERSON             
351,Central Services,SupS IT,Systems & Projects                      ,E14366,Employees                     ,Direct Employee Expenses      ,AA17,Agency Staff & Casual Paymts            ,882.17,17/07/2013,R,NUMBER 10 INTERIM LTD         
352,Central Services,SupS IT,Systems & Projects                      ,E14366,Employees                     ,Direct Employee Expenses      ,AA17,Agency Staff & Casual Paymts            ,"1,625.05",16/07/2013,R,NUMBER 10 INTERIM LTD         
353,Central Services,SupS IT,Systems & Projects                      ,E14366,Employees                     ,Direct Employee Expenses      ,AA17,Agency Staff & Casual Paymts            ,"2,925.09",10/06/2013,R,NUMBER 10 INTERIM LTD         
354,Central Services,SupS IT,Systems & Projects                      ,E14366,Employees                     ,Direct Employee Expenses      ,AA17,Agency Staff & Casual Paymts            ,"1,625.05",02/08/2013,R,NUMBER 10 INTERIM LTD         
355,Central Services,SupS IT,Systems & Projects                      ,E14366,Employees                     ,Direct Employee Expenses      ,AA17,Agency Staff & Casual Paymts            ,"1,044.68",07/08/2013,R,NUMBER 10 INTERIM LTD         
356,Central Services,SupS IT,Systems & Projects                      ,E14366,Employees                     ,Direct Employee Expenses      ,AA17,Agency Staff & Casual Paymts            ,"1,625.05",01/07/2013,R,NUMBER 10 INTERIM LTD         
357,Central Services,SupS IT,Systems & Projects                      ,E14366,Employees                     ,Direct Employee Expenses      ,AA17,Agency Staff & Casual Paymts            ,"1,625.05",26/06/2013,R,NUMBER 10 INTERIM LTD         
358,Central Services,SupS IT,Systems & Projects                      ,E14366,Employees                     ,Direct Employee Expenses      ,AA17,Agency Staff & Casual Paymts            ,"1,392.90",22/07/2013,R,NUMBER 10 INTERIM LTD         
359,Central Services,SupS IT,Systems & Projects                      ,E14366,Employees                     ,Direct Employee Expenses      ,AA17,Agency Staff & Casual Paymts            ,"1,625.05",26/06/2013,R,NUMBER 10 INTERIM LTD         
360,Central Services,SupS IT,Systems & Projects                      ,E14366,Employees                     ,Direct Employee Expenses      ,AA17,Agency Staff & Casual Paymts            ,"1,392.90",08/07/2013,R,NUMBER 10 INTERIM LTD         
361,Central Services,SupS IT,Systems & Projects                      ,E14366,Supplies & Services           ,Comms and Computing           ,DG02,Software Licences                       ,"2,400.00",08/07/2013,R,FIBONACCI LTD                 
362,Central Services,SupS IT,Systems & Projects                      ,E14366,Supplies & Services           ,Comms and Computing           ,DG50,Other IT Expenditure                    ,"1,000.00",25/07/2013,R,GEOINFORMATION GROUP          
363,Central Services,SupS IT,Systems & Projects                      ,E14366,Supplies & Services           ,Comms and Computing           ,DG50,Other IT Expenditure                    ,"43,809.80",25/07/2013,R,NORTHGATE INFORMATION SOLUTION
364,Central Services,SupS IT,Operations & Telecomms                  ,E14367,Premises Related Expenditure  ,RepairsAlterations&MtceOfBldgs,BA05,DDM - Electrical                        ,534.56,31/07/2013,R,DATA TECHNIQUES               
365,Central Services,SupS IT,Operations & Telecomms                  ,E14367,Supplies & Services           ,Comms and Computing           ,DG15,Network Maintenance                     ,"17,246.43",16/08/2013,R,AXIAL SYSTEMS                 
366,Central Services,SupS IT,Operations & Telecomms                  ,E14367,Supplies & Services           ,Comms and Computing           ,DG54,Corporate Telephones                    ,"9,876.54",04/08/2013,R,T MOBILE (UK)                 
367,Central Services,SupS IT,Operations & Telecomms                  ,E14367,Supplies & Services           ,Comms and Computing           ,DG54,Corporate Telephones                    ,"1,066.68",29/07/2013,R,O2 (UK) LIMITED               
368,Central Services,SupS IT,Operations & Telecomms                  ,E14367,Supplies & Services           ,Comms and Computing           ,DG54,Corporate Telephones                    ,"8,562.61",02/08/2013,R,COLT TELECOMMUNICATIONS       
369,Central Services,SupS IT,Distributed Services                    ,E14368,Supplies & Services           ,Comms and Computing           ,DG63,Software Licences - Data                ,707.04,11/07/2013,R,V-SUB SOLUTIONS               
370,Central Services,SupS IT,Distributed Services                    ,E14368,Supplies & Services           ,Comms and Computing           ,DG63,Software Licences - Data                ,706.8,11/07/2013,R,V-SUB SOLUTIONS               
371,Central Services,SupS IT,Customer Contact Programme              ,E14371,Supplies & Services           ,Services                      ,DF03,Consultants                             ,"10,700.00",01/08/2013,R,V4 SERVICES LIMITED           
372,Cultural Env Reg&Plan Services,BC Regs & Other not split,HoS - PP&D                              ,G00111,Supplies & Services           ,Services                      ,DF11,Counsel's Fees                          ,860,22/07/2013,R,REDACTED
373,Highways & Transport Services,Hwys/Rds (struct) not split,C'way & F'way Mtce                      ,G00121,Supplies & Services           ,Equip Furniture/Materials     ,DA09,Equip-Purchases                         ,"1,305.60",16/07/2013,R,MAGRATH SECURITY              
374,Highways & Transport Services,Hwys/Rds (struct) not split,C'way & F'way Mtce                      ,G00121,Supplies & Services           ,Services                      ,DF03,Consultants                             ,"2,960.00",16/05/2013,R,METIS CONSULTANTS LIMITED     
375,Highways & Transport Services,Hwys/Rds (struct) not split,C'way & F'way Mtce                      ,G00121,Third Party Payments          ,Private Contractors           ,EH56,CARRIAGEWAY/FWAY MAINT                  ,"1,305.60",16/07/2013,R,MAGRATH SECURITY              
376,Highways & Transport Services,Hwys/Rds (struct) not split,Surf Water Drainage                     ,G00123,Third Party Payments          ,Private Contractors           ,EH56,Carriageway/Fway Maint                  ,654.44,09/08/2013,R,FM CONWAY LTD                 
377,Highways & Transport Services,Repair prin/oth rds not split,Walk Sheets                             ,G00127,Third Party Payments          ,Private Contractors           ,EH56,Carriageway/Fway Maint                  ,836.56,09/08/2013,R,FM CONWAY LTD                 
378,Highways & Transport Services,Repair prin/oth rds not split,Walk Sheets                             ,G00127,Third Party Payments          ,Private Contractors           ,EH56,Carriageway/Fway Maint                  ,"7,840.57",29/07/2013,R,FM CONWAY LTD                 
379,Highways & Transport Services,Repair prin/oth rds not split,Walk Sheets                             ,G00127,Third Party Payments          ,Private Contractors           ,EH56,Carriageway/Fway Maint                  ,"15,000.00",01/08/2013,R,FM CONWAY LTD                 
380,Highways & Transport Services,Repair prin/oth rds not split,Walk Sheets                             ,G00127,Third Party Payments          ,Private Contractors           ,EH56,Carriageway/Fway Maint                  ,"5,025.33",23/08/2013,R,FM CONWAY LTD                 
381,Highways & Transport Services,Repair prin/oth rds not split,Walk Sheets                             ,G00127,Third Party Payments          ,Private Contractors           ,EH56,Carriageway/Fway Maint                  ,"9,599.76",14/08/2013,R,FM CONWAY LTD                 
382,Highways & Transport Services,Repair prin/oth rds not split,Walk Sheets                             ,G00127,Third Party Payments          ,Private Contractors           ,EH56,Carriageway/Fway Maint                  ,"1,278.25",01/08/2013,R,FM CONWAY LTD                 
383,Highways & Transport Services,Repair prin/oth rds not split,Walk Sheets                             ,G00127,Third Party Payments          ,Private Contractors           ,EH56,Carriageway/Fway Maint                  ,"6,865.27",09/08/2013,R,FM CONWAY LTD                 
384,Highways & Transport Services,Saf mtc prin/oth rds not split,Traffic Signs.                          ,G00160,Third Party Payments          ,Private Contractors           ,EH01,Miscellaneous Agency Services           ,"1,341.57",14/08/2013,R,FM CONWAY LTD                 
385,Highways & Transport Services,Saf mtc prin/oth rds not split,Traffic Signs.                          ,G00160,Third Party Payments          ,Private Contractors           ,EH01,Miscellaneous Agency Services           ,"1,124.68",29/07/2013,R,FM CONWAY LTD                 
386,Highways & Transport Services,Saf mtc prin/oth rds not split,Traffic Signs.                          ,G00160,Third Party Payments          ,Private Contractors           ,EH01,Miscellaneous Agency Services           ,"1,317.76",29/07/2013,R,MAY GURNEY LTD T/A CARTLEDGE  
387,Highways & Transport Services,Saf mtc prin/oth rds not split,Traffic Signs.                          ,G00160,Third Party Payments          ,Private Contractors           ,EH02,Miscellaneous Hired Services            ,"4,166.67",09/08/2013,R,FM CONWAY LTD                 
388,Highways & Transport Services,Transport Plg/Policy/Strategy,CPZ implementation & Consultat          ,G00211,Supplies & Services           ,Services                      ,DF03,Consultants                             ,"1,140.00",31/07/2013,R,TMS CONSULTANCY               
389,Highways & Transport Services,Transport Plg/Policy/Strategy,CPZ implementation & Consultat          ,G00211,Third Party Payments          ,Private Contractors           ,EH56,Carriageway/Fway Maint                  ,"3,439.37",01/08/2013,R,FM CONWAY LTD                 
390,Highways & Transport Services,Street Lighting.,Street Lighting .                       ,G00260,Third Party Payments          ,Private Contractors           ,EH01,Miscellaneous Agency Services           ,"3,241.05",29/07/2013,R,MAY GURNEY LTD T/A CARTLEDGE  
391,Highways & Transport Services,Street Lighting.,Street Lighting .                       ,G00260,Third Party Payments          ,Private Contractors           ,EH01,Miscellaneous Agency Services           ,642,12/08/2013,R,UK POWER NETWORKS (OPERATIONS)
392,Highways & Transport Services,Street Lighting.,Street Lighting .                       ,G00260,Third Party Payments          ,Private Contractors           ,EH01,Miscellaneous Agency Services           ,"13,947.98",26/07/2013,R,MAY GURNEY LTD T/A CARTLEDGE  
393,Highways & Transport Services,Off-street parking,York Close CP                           ,G00298,Premises Related Expenditure  ,Energy Costs                  ,BB02,Electricity                             ,558.45,06/08/2013,R,EDF ENERGY 1 LIMITED          
394,Highways & Transport Services,Off-street parking,St. Georges Car Park WEST M/S           ,G00302,Premises Related Expenditure  ,Energy Costs                  ,BB02,Electricity                             ,"1,172.18",01/07/2013,R,SCOTTISHPOWER                 
395,Highways & Transport Services,Off-street parking,"St. Mks Rd, Multi Sty                   ",G00308,Premises Related Expenditure  ,Energy Costs                  ,BB02,Electricity                             ,773.68,31/07/2013,R,EDF ENERGY 1 LIMITED          
396,Highways & Transport Services,On-street parking,On Street Parking.                      ,G00311,Premises Related Expenditure  ,RepairsAlterations&MtceOfBldgs,BA06,Repairs & Maintenance General           ,"1,543.57",07/08/2013,R,TEASDALE GROUP LTD            
397,Highways & Transport Services,Parking Enforcement not split,Civil Enforcement Officers              ,G00330,Employees                     ,Direct Employee Expenses      ,AA96,SALARY SACRIFICE (TEACHERS)             ,750,13/08/2013,R,F.W.EVANS CYCLES (UK) LTD.    
398,Highways & Transport Services,Parking Enforcement not split,Operational Running Costs               ,G00331,Supplies & Services           ,Prntng Stnry Gen Off Exp      ,DE01,External Printing                       ,"2,889.60",06/08/2013,R,NAGELS UK LTD                 
399,Highways & Transport Services,Repair prin/oth rds not split,Flood Risk Management                   ,G00350,Supplies & Services           ,Services                      ,DF03,Consultants                             ,"4,097.55",08/08/2013,R,URS INFRASTRUCTURE & ENV UK LT
400,Highways & Transport Services,Hwys/Rds (struct) not split,NRSWA Permitting (LoPS)                 ,G00385,Supplies & Services           ,Comms and Computing           ,DG61,Computer Servs Special                  ,"1,144.81",30/05/2013,R,PITNEY BOWES SOFTWARE LTD     
401,Highways & Transport Services,Hwys/Rds (struct) not split,NRSWA Permitting (LoPS)                 ,G00385,Supplies & Services           ,Comms and Computing           ,DG61,Computer Servs Special                  ,"11,113.44",30/05/2013,R,PITNEY BOWES SOFTWARE LTD     
402,Highways & Transport Services,Hwys/Rds (struct) not split,Footpath Crossings.                     ,G00390,Third Party Payments          ,Private Contractors           ,EH56,Carriageway/Fway Maint                  ,"3,093.24",29/07/2013,R,FM CONWAY LTD                 
403,Highways & Transport Services,Hwys/Rds (struct) not split,Footpath Crossings.                     ,G00390,Third Party Payments          ,Private Contractors           ,EH56,Carriageway/Fway Maint                  ,"5,591.79",09/08/2013,R,FM CONWAY LTD                 
404,Cultural Env Reg&Plan Services,Street Clean - Not highways,Street Cleansing (Inc. Gully)           ,G00492,Premises Related Expenditure  ,Energy Costs                  ,BB02,Electricity                             ,511.09,01/08/2013,R,EDF ENERGY 1 LIMITED          
405,Cultural Env Reg&Plan Services,Street Clean - Not highways,Street Cleansing (Inc. Gully)           ,G00492,Supplies & Services           ,Equip Furniture/Materials     ,DA01,Equipment - R & M                       ,711.9,31/07/2013,R,N A BROWN LTD                 
406,Cultural Env Reg&Plan Services,Street Clean - Not highways,Street Cleansing (Inc. Gully)           ,G00492,Supplies & Services           ,Equip Furniture/Materials     ,DA31,Waste Sacks & Bags                      ,"1,852.20",05/08/2013,R,POLARIS PLASTICS LTD          
407,Cultural Env Reg&Plan Services,Street Clean - Not highways,Street Cleansing (Inc. Gully)           ,G00492,Supplies & Services           ,Clothing Unfrms Laundry       ,DC02,Clothing & Uniforms                     ,755.58,18/07/2013,R,SAFETY MANAGEMENT             
408,Cultural Env Reg&Plan Services,Street Clean - Not highways,Graffiti                                ,G00495,Supplies & Services           ,Equip Furniture/Materials     ,DA04,Materials                               ,597.05,26/07/2013,R,DULUX DECORATOR CENTRES       
409,Cultural Env Reg&Plan Services,Waste Disposal (not separated),Waste Disposal .                        ,G00550,Third Party Payments          ,Private Contractors           ,EH01,Dog Bin Disposal - Biffa                ,536.54,26/07/2013,R,BIFFA WASTE SERVICES LTD      
410,Cultural Env Reg&Plan Services,Waste Disposal (not separated),Waste Disposal .                        ,G00550,Third Party Payments          ,Private Contractors           ,EH04,C1 Viridor SLWP Landfill Contract       ,"260,162.20",08/08/2013,R,KINGSTON CORPORATION          
411,Cultural Env Reg&Plan Services,Waste Disposal (not separated),Waste Disposal .                        ,G00550,Third Party Payments          ,Private Contractors           ,EH04,C1 Viridor SLWP Landfill Contract       ,"404,199.87",29/07/2013,R,KINGSTON CORPORATION          
412,Cultural Env Reg&Plan Services,Waste Disposal (not separated),Waste Disposal .                        ,G00550,Third Party Payments          ,Private Contractors           ,EH04,C1 Viridor SLWP Landfill Contract       ,"336,230.76",29/07/2013,R,KINGSTON CORPORATION          
413,Cultural Env Reg&Plan Services,Waste Disposal (not separated),Waste Disposal .                        ,G00550,Third Party Payments          ,Private Contractors           ,EH10,SLWP C1 HAULAGE DRY RECYCLABLES         ,"31,589.72",08/08/2013,R,KINGSTON CORPORATION          
414,Cultural Env Reg&Plan Services,Waste Disposal (not separated),Waste Disposal .                        ,G00550,Third Party Payments          ,Private Contractors           ,EH10,SLWP C1 HAULAGE DRY RECYCLABLES         ,"32,111.93",29/07/2013,R,KINGSTON CORPORATION          
415,Cultural Env Reg&Plan Services,Waste Disposal (not separated),Waste Disposal .                        ,G00550,Third Party Payments          ,Private Contractors           ,EH10,SLWP C1 HAULAGE DRY RECYCLABLES         ,"34,910.19",29/07/2013,R,KINGSTON CORPORATION          
416,Cultural Env Reg&Plan Services,Waste Disposal (not separated),Waste Disposal .                        ,G00550,Third Party Payments          ,Private Contractors           ,EH66,Clinical Waste Disposal                 ,964.96,31/07/2013,R,S.GRUNDON (WASTE) LTD.        
417,Cultural Env Reg&Plan Services,Waste Disposal (not separated),Waste Disposal .                        ,G00550,Third Party Payments          ,Private Contractors           ,EH91,Disposal of Asbestos                    ,"1,500.00",18/07/2013,R,CITY OF LONDON CORPORATION    
418,Cultural Env Reg&Plan Services,Waste Disposal (not separated),Waste Disposal .                        ,G00550,Third Party Payments          ,Private Contractors           ,EH91,Disposal of Asbestos                    ,811.29,18/07/2013,R,CITY OF LONDON CORPORATION    
419,Cultural Env Reg&Plan Services,Waste Disposal (not separated),Waste Disposal .                        ,G00550,Third Party Payments          ,Private Contractors           ,EH96,GULLY DISPOSAL                          ,"1,428.40",31/07/2013,R,CORY ENVIRONMENTAL LIMITED    
420,Cultural Env Reg&Plan Services,Civic Amenity Sites,Garth Road Site                         ,G00580,Third Party Payments          ,Private Contractors           ,EH01,MISCELLANEOUS AGENCY SERVICES           ,"36,324.96",29/07/2013,R,KINGSTON CORPORATION          
421,Cultural Env Reg&Plan Services,Civic Amenity Sites,Garth Road Site                         ,G00580,Third Party Payments          ,Private Contractors           ,EH01,MISCELLANEOUS AGENCY SERVICES           ,"36,324.96",29/07/2013,R,KINGSTON CORPORATION          
422,Cultural Env Reg&Plan Services,Civic Amenity Sites,Garth Road Site                         ,G00580,Third Party Payments          ,Private Contractors           ,EH01,MISCELLANEOUS AGENCY SERVICES           ,"36,324.96",29/07/2013,R,KINGSTON CORPORATION          
423,Highways & Transport Services,Hwys/Rds (struct) not split,Grass Cut/Tr Mtce                       ,G00600,Premises Related Expenditure  ,RepairsAlterations&MtceOfBldgs,BA59,Periodic Inspections                    ,"1,900.00",03/07/2013,R,A.COLEBROOK ARBORICULTURE CON.
424,Highways & Transport Services,Hwys/Rds (struct) not split,Grass Cut/Tr Mtce                       ,G00600,Premises Related Expenditure  ,Ground Maintenance Costs      ,BL03,Maintenance of Grounds                  ,"3,982.00",16/04/2013,R,VEOLIA ES (UK) LIMITED        
425,Highways & Transport Services,Hwys/Rds (struct) not split,Grass Cut/Tr Mtce                       ,G00600,Premises Related Expenditure  ,Ground Maintenance Costs      ,BL03,Maintenance of Grounds                  ,"1,148.87",25/03/2013,R,VEOLIA ES (UK) LIMITED        
426,Highways & Transport Services,Hwys/Rds (struct) not split,Grass Cut/Tr Mtce                       ,G00600,Premises Related Expenditure  ,Ground Maintenance Costs      ,BL03,Maintenance of Grounds                  ,526.05,16/04/2013,R,VEOLIA ES (UK) LIMITED        
427,Highways & Transport Services,Hwys/Rds (struct) not split,Grass Cut/Tr Mtce                       ,G00600,Premises Related Expenditure  ,Ground Maintenance Costs      ,BL03,Maintenance of Grounds                  ,"4,908.68",16/04/2013,R,VEOLIA ES (UK) LIMITED        
428,Cultural Env Reg&Plan Services,Recycling (Collection),Recycling Activities                    ,G00640,Supplies & Services           ,Equip Furniture/Materials     ,DA04,Materials                               ,754.8,16/08/2013,R,STRAIGHT PLC                  
429,Cultural Env Reg&Plan Services,Recycling (Collection),Recycling Activities                    ,G00640,Supplies & Services           ,Equip Furniture/Materials     ,DA31,Waste Sacks & Bags                      ,-501,31/07/2013,R,SPHERE PROFFESSIONAL          
430,Cultural Env Reg&Plan Services,Recycling (Collection),Recycling Activities                    ,G00640,Supplies & Services           ,Equip Furniture/Materials     ,DA32,Wheeled Bins                            ,"10,200.00",18/06/2013,R,SSI SCHAEFER LTD              
431,Cultural Env Reg&Plan Services,Recycling (Collection),Recycling Activities                    ,G00640,Third Party Payments          ,Private Contractors           ,EH03,C3 DRY RECYCLING GATE FEE               ,"44,303.60",08/08/2013,R,KINGSTON CORPORATION          
432,Cultural Env Reg&Plan Services,Recycling (Collection),Recycling Activities                    ,G00640,Third Party Payments          ,Private Contractors           ,EH03,C3 DRY RECYCLING GATE FEE               ,"4,456.50",29/07/2013,R,KINGSTON CORPORATION          
433,Cultural Env Reg&Plan Services,Recycling (Collection),Recycling Activities                    ,G00640,Third Party Payments          ,Private Contractors           ,EH10,SLWP C1 EFW HAULAGE                     ,"7,257.23",29/07/2013,R,KINGSTON CORPORATION          
434,Cultural Env Reg&Plan Services,Recycling (Collection),Recycling Activities                    ,G00640,Third Party Payments          ,Private Contractors           ,EH10,SLWP C1 EFW HAULAGE                     ,"7,257.05",29/07/2013,R,KINGSTON CORPORATION          
435,Cultural Env Reg&Plan Services,Recycling (Collection),Recycling Activities                    ,G00640,Third Party Payments          ,Private Contractors           ,EH18,C3 FOOD WASTE GATE FEE                  ,"23,544.93",08/08/2013,R,KINGSTON CORPORATION          
436,Cultural Env Reg&Plan Services,Recycling (Collection),Recycling Activities                    ,G00640,Third Party Payments          ,Private Contractors           ,EH18,C3 FOOD WASTE GATE FEE                  ,"9,850.53",08/08/2013,R,KINGSTON CORPORATION          
437,Cultural Env Reg&Plan Services,Recycling (Collection),Recycling Activities                    ,G00640,Third Party Payments          ,Private Contractors           ,EH19,C1 EFW ACCEPTANCE & BULK                ,"2,246.75",29/07/2013,R,KINGSTON CORPORATION          
438,Cultural Env Reg&Plan Services,Recycling (Collection),Recycling Activities                    ,G00640,Third Party Payments          ,Private Contractors           ,EH19,C1 EFW ACCEPTANCE & BULK                ,"2,246.75",29/07/2013,R,KINGSTON CORPORATION          
439,Cultural Env Reg&Plan Services,Recycling (Collection),Recycling Activities                    ,G00640,Third Party Payments          ,Private Contractors           ,EH61,Green Waste Disposal                    ,"19,118.27",31/07/2013,R,VIRIDOR WASTE KENT LTD        
440,Cultural Env Reg&Plan Services,Recycling (Collection),Recycling Activities                    ,G00640,Third Party Payments          ,Private Contractors           ,EH63,EFW C3 GATE FEES                        ,"4,967.42",08/08/2013,R,KINGSTON CORPORATION          
441,Cultural Env Reg&Plan Services,Recycling (Collection),Recycling Activities                    ,G00640,Third Party Payments          ,Private Contractors           ,EH90,ADDITIONAL EFW UNDER SUFFOLK SCHEME     ,"94,286.26",29/07/2013,R,KINGSTON CORPORATION          
442,Cultural Env Reg&Plan Services,Recycling (Collection),Recycling Activities                    ,G00640,Third Party Payments          ,Private Contractors           ,EH90,ADDITIONAL EFW UNDER SUFFOLK SCHEME     ,"63,654.00",08/08/2013,R,KINGSTON CORPORATION          
443,Cultural Env Reg&Plan Services,Recycling (Collection),Recycling Activities                    ,G00640,Third Party Payments          ,Private Contractors           ,EH90,ADDITIONAL EFW UNDER SUFFOLK SCHEME     ,"118,701.52",29/07/2013,R,KINGSTON CORPORATION          
444,Cultural Env Reg&Plan Services,Recycling (Collection),Recycling Activities                    ,G00640,Third Party Payments          ,Private Contractors           ,EH94,C1 DRY RECYCLING ACCEPTANCE & BULK      ,"7,283.49",29/07/2013,R,KINGSTON CORPORATION          
445,Cultural Env Reg&Plan Services,Recycling (Collection),Recycling Activities                    ,G00640,Third Party Payments          ,Private Contractors           ,EH94,C1 DRY RECYCLING ACCEPTANCE & BULK      ,"6,590.70",08/08/2013,R,KINGSTON CORPORATION          
446,Cultural Env Reg&Plan Services,Recycling (Collection),Recycling Activities                    ,G00640,Third Party Payments          ,Private Contractors           ,EH94,C1 DRY RECYCLING ACCEPTANCE & BULK      ,"6,783.27",29/07/2013,R,KINGSTON CORPORATION          
447,Cultural Env Reg&Plan Services,Recycling (Collection),Recycling Activities                    ,G00640,Third Party Payments          ,Private Contractors           ,EH97,Detritus - Alt. Contractor              ,"47,529.00",08/08/2013,R,KINGSTON CORPORATION          
448,Cultural Env Reg&Plan Services,Recycling (Collection),Recycling Collection                    ,G00645,Supplies & Services           ,Equip Furniture/Materials     ,DA32,Wheeled Bins                            ,"3,095.00",01/08/2013,R,ESE                           
449,Cultural Env Reg&Plan Services,Recycling (Collection),Recycling Collection                    ,G00645,Supplies & Services           ,Clothing Unfrms Laundry       ,DC02,Clothing & Uniforms                     ,755.58,18/07/2013,R,SAFETY MANAGEMENT             
450,Cultural Env Reg&Plan Services,Recycling (Collection),Food Waste Service                      ,G00648,Supplies & Services           ,Equip Furniture/Materials     ,DA32,Wheeled Bins                            ,"2,405.00",01/08/2013,R,ESE                           
451,Cultural Env Reg&Plan Services,Recycling (Collection),Food Waste Service                      ,G00648,Supplies & Services           ,Equip Furniture/Materials     ,DA32,Wheeled Bins                            ,"2,618.00",01/08/2013,R,ESE                           
452,Cultural Env Reg&Plan Services,Household Waste Collection,Refuse Collection (Operations)          ,G00661,Transport Related Expenditure ,Direct Transport Costs        ,CA52,Reps Vehicles Ins Claims                ,750,08/08/2013,R,S.E.T.S SERVICES              
453,Cultural Env Reg&Plan Services,Household Waste Collection,Refuse Collection (Operations)          ,G00661,Transport Related Expenditure ,Direct Transport Costs        ,CA52,Reps Vehicles Ins Claims                ,750,08/08/2013,R,S.E.T.S SERVICES              
454,Cultural Env Reg&Plan Services,Household Waste Collection,Refuse Collection (Operations)          ,G00661,Supplies & Services           ,Clothing Unfrms Laundry       ,DC02,Clothing & Uniforms                     ,755.59,18/07/2013,R,SAFETY MANAGEMENT             
455,Cultural Env Reg&Plan Services,Trade Waste Collection,Commercial Waste Collection             ,G00665,Supplies & Services           ,Equip Furniture/Materials     ,DA32,Wheeled Bins                            ,654.5,01/08/2013,R,ESE                           
456,Cultural Env Reg&Plan Services,Trade Waste Collection,Commercial Waste Collection             ,G00665,Supplies & Services           ,Equip Furniture/Materials     ,DA32,Wheeled Bins                            ,809.25,01/08/2013,R,ESE                           
457,Cultural Env Reg&Plan Services,Public Health,Merton Winter Warmer Programme          ,G00696,Supplies & Services           ,Equip Furniture/Materials     ,DA09,Equip-Purchases                         ,"2,894.00",02/05/2013,R,CLIMATE ENERGY LTD            
458,Cultural Env Reg&Plan Services,Food Safety,Health & Safety                         ,G00697,Third Party Payments          ,Private Contractors           ,EH10,Contract Payments                       ,"1,915.00",31/07/2013,R,PUBLIC ANALYST SCIENTIFIC SER.
459,Cultural Env Reg&Plan Services,Mortuaries,Mortuary                                ,G00700,Third Party Payments          ,Other Local Authorities       ,EB01,Payments to OLAs                        ,"6,326.00",31/07/2013,R,ST GEORGES HEALTHCARE TRUST   
460,Cultural Env Reg&Plan Services,Mortuaries,Mortuary                                ,G00700,Third Party Payments          ,Other Local Authorities       ,EB01,Payments to OLAs                        ,"15,128.00",31/07/2013,R,ST GEORGES HEALTHCARE TRUST   
461,Cultural Env Reg&Plan Services,Community Develop't (Plg),UNALLOCATED (VOL SECT FUND)           ,G10003,Supplies & Services           ,Grants and Subscriptions      ,DJ01,Grants                                  ,"60,000.00",20/06/2013,R,MERTON VOLUNTARY SERV COUNCIL 
462,Central Services,Grants - Voluntary Groups,Vestry Hall                             ,G19290,Employees                     ,Direct Employee Expenses      ,AA17,Agency Staff & Casual Paymts            ,722.51,31/07/2013,R,REDACTED
463,Central Services,Grants - Voluntary Groups,Vestry Hall                             ,G19290,Employees                     ,Direct Employee Expenses      ,AA17,Agency Staff & Casual Paymts            ,"4,611.35",10/08/2013,R,REDACTED
464,Central Services,Grants - Voluntary Groups,Vestry Hall                             ,G19290,Premises Related Expenditure  ,RepairsAlterations&MtceOfBldgs,BA06,Repairs & Maintenance General           ,"1,430.00",24/07/2013,R,REDACTED
465,Central Services,Grants - Voluntary Groups,Vestry Hall                             ,G19290,Premises Related Expenditure  ,RepairsAlterations&MtceOfBldgs,BA06,Repairs & Maintenance General           ,500,24/07/2013,R,REDACTED
466,Central Services,Grants - Voluntary Groups,Vestry Hall                             ,G19290,Premises Related Expenditure  ,Energy Costs                  ,BB02,Electricity                             ,"2,533.11",01/08/2013,R,EDF ENERGY 1 LIMITED          
467,Central Services,Grants - Voluntary Groups,Vestry Hall                             ,G19290,Premises Related Expenditure  ,Cleaning and Domestic Supplies,BH03,Cleaning Services                       ,"1,357.76",31/07/2013,R,BIRKIN CLEANING SERVICES LTD  
468,Cultural Env Reg&Plan Services,DC Advice Apps & Reg not split,Development Control                     ,H01130,Supplies & Services           ,Services                      ,DF11,Counsel's fees                          ,"1,300.00",18/07/2013,R,REDACTED
469,Cultural Env Reg&Plan Services,DC Advice Apps & Reg not split,Development Control                     ,H01130,Customer and client receipts  ,Fees                          ,RB03,Miscellaneous Fees S                    ,900,12/08/2013,R,REDACTED
470,CS -Oth Operating Inc & Expend,Extraordinary Items & PY Adj.,MILES RD GENERATOR                      ,H01203,Third Party Payments          ,Private Contractors           ,EH02,Miscellaneous Hired Services            ,"13,750.00",23/05/2013,R,MERTON CHAMBER OF COMMERCE    
471,Cultural Env Reg&Plan Services,Economic Dev (Not separated),BUSINESS SUPPORT                        ,H01210,Supplies & Services           ,Services                      ,DF03,Consultants                             ,"5,000.00",16/08/2013,R,WHITE LABEL CONSULTANTS       
472,Cultural Env Reg&Plan Services,Economic Dev (Not separated),BUSINESS SUPPORT                        ,H01210,Supplies & Services           ,Services                      ,DF35,Graphic Design                          ,"3,325.00",31/07/2013,R,BURROWS COMMUNICATIONS LTD    
473,Cultural Env Reg&Plan Services,Economic Dev (Not separated),BUSINESS SUPPORT SERVICE                ,H01219,Third Party Payments          ,Private Contractors           ,EH02,Miscellaneous Hired Services            ,"50,000.00",19/08/2013,R,MERTON CHAMBER OF COMMERCE    
474,CS -Oth Operating Inc & Expend,T/A Vehicle Maintenance etc,Transport-Contract Hire                 ,J01374,Employees                     ,Indirect Employee Expenses    ,AB57,Misc Training Expenses (AP)             ,"1,500.00",19/08/2013,R,JAUPT                         
475,CS -Oth Operating Inc & Expend,T/A Vehicle Maintenance etc,Transport-Contract Hire                 ,J01374,Premises Related Expenditure  ,Energy Costs                  ,BB02,Electricity                             ,"1,107.77",01/08/2013,R,EDF ENERGY 1 LIMITED          
476,CS -Oth Operating Inc & Expend,T/A Vehicle Maintenance etc,Transport-Contract Hire                 ,J01374,Transport Related Expenditure ,Direct Transport Costs        ,CA01,Petrol Derv & Oil                       ,"39,692.37",24/07/2013,R,EMO OILS LTD                  
477,CS -Oth Operating Inc & Expend,T/A Vehicle Maintenance etc,Transport-Contract Hire                 ,J01374,Transport Related Expenditure ,Direct Transport Costs        ,CA01,Petrol Derv & Oil                       ,"39,119.65",12/08/2013,R,EMO OILS LTD                  
478,CS -Oth Operating Inc & Expend,T/A Vehicle Maintenance etc,Transport-Contract Hire                 ,J01374,Transport Related Expenditure ,Direct Transport Costs        ,CA02,Tyres                                   ,990,06/08/2013,R,MORDEN TYRE SERVICES LTD      
479,CS -Oth Operating Inc & Expend,T/A Vehicle Maintenance etc,Transport-Contract Hire                 ,J01374,Transport Related Expenditure ,Direct Transport Costs        ,CA02,Tyres                                   ,710,29/07/2013,R,MORDEN TYRE SERVICES LTD      
480,CS -Oth Operating Inc & Expend,T/A Vehicle Maintenance etc,Transport-Contract Hire                 ,J01374,Transport Related Expenditure ,Direct Transport Costs        ,CA02,Tyres                                   ,840,22/08/2013,R,MORDEN TYRE SERVICES LTD      
481,CS -Oth Operating Inc & Expend,T/A Vehicle Maintenance etc,Transport-Contract Hire                 ,J01374,Transport Related Expenditure ,Direct Transport Costs        ,CA52,Reps Vehicles Ins Claims                ,500,31/07/2013,R,FLEETSPEED COACHWORKS LTD.    
482,CS -Oth Operating Inc & Expend,T/A Vehicle Maintenance etc,Transport-Contract Hire                 ,J01374,Transport Related Expenditure ,Direct Transport Costs        ,CA55,Specialist Maint. (Off Site)            ,"1,084.90",29/07/2013,R,GEESINK NORBA                 
483,CS -Oth Operating Inc & Expend,T/A Vehicle Maintenance etc,Transport-Contract Hire                 ,J01374,Transport Related Expenditure ,Direct Transport Costs        ,CA55,Specialist Maint. (Off Site)            ,505.74,12/07/2013,R,KINGSLEY COMM COMPONENTS LTD  
484,CS -Oth Operating Inc & Expend,T/A Vehicle Maintenance etc,Transport-Contract Hire                 ,J01374,Transport Related Expenditure ,Direct Transport Costs        ,CA55,Specialist Maint. (Off Site)            ,505.74,12/07/2013,R,KINGSLEY COMM COMPONENTS LTD  
485,CS -Oth Operating Inc & Expend,T/A Vehicle Maintenance etc,Transport-Contract Hire                 ,J01374,Transport Related Expenditure ,Direct Transport Costs        ,CA55,Specialist Maint. (Off Site)            ,578.65,02/08/2013,R,REDACTED
486,CS -Oth Operating Inc & Expend,T/A Vehicle Maintenance etc,Transport-Contract Hire                 ,J01374,Transport Related Expenditure ,Direct Transport Costs        ,CA55,Specialist Maint. (Off Site)            ,536.91,22/08/2013,R,BYRON GARAGES                 
487,CS -Oth Operating Inc & Expend,T/A Vehicle Maintenance etc,Transport-Contract Hire                 ,J01374,Transport Related Expenditure ,Direct Transport Costs        ,CA55,Specialist Maint. (Off Site)            ,"2,469.21",31/07/2013,R,FLEETSPEED COACHWORKS LTD.    
488,CS -Oth Operating Inc & Expend,T/A Vehicle Maintenance etc,Transport-Contract Hire                 ,J01374,Transport Related Expenditure ,Direct Transport Costs        ,CA55,Specialist Maint. (Off Site)            ,"1,236.58",31/07/2013,R,FLEETSPEED COACHWORKS LTD.    
489,CS -Oth Operating Inc & Expend,T/A Vehicle Maintenance etc,Transport-Contract Hire                 ,J01374,Transport Related Expenditure ,Direct Transport Costs        ,CA55,Specialist Maint. (Off Site)            ,"1,245.00",25/07/2013,R,COMMERCIAL SERV'S TRADING LTD 
490,CS -Oth Operating Inc & Expend,T/A Vehicle Maintenance etc,Transport-Contract Hire                 ,J01374,Transport Related Expenditure ,Direct Transport Costs        ,CA56,Specialist Maint. (On Site)             ,"1,312.50",19/08/2013,R,R.J.H.WELDING                 
491,CS -Oth Operating Inc & Expend,T/A Vehicle Maintenance etc,Transport-Contract Hire                 ,J01374,Transport Related Expenditure ,Direct Transport Costs        ,CA56,Specialist Maint. (On Site)             ,625,19/08/2013,R,ASHWOODS AUTOMOTIVE           
492,CS -Oth Operating Inc & Expend,T/A Vehicle Maintenance etc,Transport-Contract Hire                 ,J01374,Transport Related Expenditure ,Direct Transport Costs        ,CA56,Specialist Maint. (On Site)             ,645,19/08/2013,R,R.J.H.WELDING                 
493,CS -Oth Operating Inc & Expend,T/A Vehicle Maintenance etc,Transport-Contract Hire                 ,J01374,Transport Related Expenditure ,Direct Transport Costs        ,CA56,Specialist Maint. (On Site)             ,"1,245.61",19/08/2013,R,R.J.H.WELDING                 
494,CS -Oth Operating Inc & Expend,T/A Vehicle Maintenance etc,Transport-Contract Hire                 ,J01374,Transport Related Expenditure ,Direct Transport Costs        ,CA56,Specialist Maint. (On Site)             ,898.73,09/08/2013,R,FITZ AIR                      
495,CS -Oth Operating Inc & Expend,T/A Vehicle Maintenance etc,Transport-Contract Hire                 ,J01374,Transport Related Expenditure ,Direct Transport Costs        ,CA56,Specialist Maint. (On Site)             ,"1,273.75",19/08/2013,R,R.J.H.WELDING                 
496,CS -Oth Operating Inc & Expend,T/A Vehicle Maintenance etc,Transport-Contract Hire                 ,J01374,Transport Related Expenditure ,Direct Transport Costs        ,CA56,Specialist Maint. (On Site)             ,525,19/08/2013,R,R.J.H.WELDING                 
497,CS -Oth Operating Inc & Expend,T/A Vehicle Maintenance etc,Transport-Contract Hire                 ,J01374,Transport Related Expenditure ,Direct Transport Costs        ,CA72,Vehicle Parts                           ,843.61,06/08/2013,R,COMMERCIAL & PLANT LTD        
498,CS -Oth Operating Inc & Expend,T/A Vehicle Maintenance etc,Transport-Contract Hire                 ,J01374,Transport Related Expenditure ,Direct Transport Costs        ,CA72,Vehicle Parts                           ,"2,459.25",29/07/2013,R,GRAYS TRUCK CENTRE LIMITED    
499,CS -Oth Operating Inc & Expend,T/A Vehicle Maintenance etc,Transport-Contract Hire                 ,J01374,Transport Related Expenditure ,Direct Transport Costs        ,CA72,Vehicle Parts                           ,"1,218.15",30/07/2013,R,GEESINK NORBA                 
500,CS -Oth Operating Inc & Expend,T/A Vehicle Maintenance etc,Transport-Contract Hire                 ,J01374,Transport Related Expenditure ,Direct Transport Costs        ,CA72,Vehicle Parts                           ,"2,970.00",26/07/2013,R,OPTIMUM OILS LTD              
501,CS -Oth Operating Inc & Expend,T/A Vehicle Maintenance etc,Transport-Contract Hire                 ,J01374,Transport Related Expenditure ,Direct Transport Costs        ,CA72,Vehicle Parts                           ,680.86,19/08/2013,R,COMMERCIAL & PLANT LTD        
502,CS -Oth Operating Inc & Expend,T/A Vehicle Maintenance etc,Transport-Contract Hire                 ,J01374,Transport Related Expenditure ,Direct Transport Costs        ,CA72,Vehicle Parts                           ,581.88,01/08/2013,R,REDACTED
503,CS -Oth Operating Inc & Expend,T/A Vehicle Maintenance etc,Transport-Contract Hire                 ,J01374,Transport Related Expenditure ,Direct Transport Costs        ,CA72,Vehicle Parts                           ,576.64,15/08/2013,R,DENNIS EAGLE LIMITED          
504,CS -Oth Operating Inc & Expend,T/A Vehicle Maintenance etc,Transport-Contract Hire                 ,J01374,Transport Related Expenditure ,Contract Hire and Op Leasing  ,CC53,Plant Hire for MRCS                     ,850,16/08/2013,R,FIVEWAYS MUNICIPAL VEHICLE HIR
505,CS -Oth Operating Inc & Expend,T/A Vehicle Maintenance etc,Transport-Contract Hire                 ,J01374,Transport Related Expenditure ,Contract Hire and Op Leasing  ,CC53,Plant Hire for MRCS                     ,850,09/08/2013,R,FIVEWAYS MUNICIPAL VEHICLE HIR
506,CS -Oth Operating Inc & Expend,T/A Vehicle Maintenance etc,Transport-Contract Hire                 ,J01374,Transport Related Expenditure ,Contract Hire and Op Leasing  ,CC53,Plant Hire for MRCS                     ,759,31/07/2013,R,REDACTED
507,CS -Oth Operating Inc & Expend,T/A Vehicle Maintenance etc,Transport-Contract Hire                 ,J01374,Transport Related Expenditure ,Contract Hire and Op Leasing  ,CC56,Plant Hire for Leisure                  ,"1,755.00",31/07/2013,R,REDACTED
508,CS -Oth Operating Inc & Expend,T/A Vehicle Maintenance etc,Transport-Contract Hire                 ,J01374,Transport Related Expenditure ,Contract Hire and Op Leasing  ,CC57,Pland Hire for Housing                  ,759,31/07/2013,R,REDACTED
509,CS -Oth Operating Inc & Expend,T/A Vehicle Maintenance etc,Transport-Contract Hire                 ,J01374,Transport Related Expenditure ,Contract Hire and Op Leasing  ,CC57,Pland Hire for Housing                  ,940,31/07/2013,R,REDACTED
510,CS -Oth Operating Inc & Expend,T/A Vehicle Maintenance etc,Transport-Contract Hire                 ,J01374,Transport Related Expenditure ,Contract Hire and Op Leasing  ,CC59,HIRING TRANSPORT OPERATIONS             ,"1,518.00",31/07/2013,R,BURNT TREE VEHICLE RENTAL     
511,CS -Oth Operating Inc & Expend,T/A Vehicle Maintenance etc,Transport-Contract Hire                 ,J01374,Transport Related Expenditure ,Contract Hire and Op Leasing  ,CC59,HIRING TRANSPORT OPERATIONS             ,"1,518.00",31/07/2013,R,BURNT TREE VEHICLE RENTAL     
512,CS -Oth Operating Inc & Expend,T/A Vehicle Maintenance etc,Transport-Contract Hire                 ,J01374,Transport Related Expenditure ,Contract Hire and Op Leasing  ,CC59,HIRING TRANSPORT OPERATIONS             ,"2,238.32",31/07/2013,R,REDACTED
513,CS -Oth Operating Inc & Expend,T/A Vehicle Maintenance etc,Transport-Contract Hire                 ,J01374,Transport Related Expenditure ,Contract Hire and Op Leasing  ,CC59,HIRING TRANSPORT OPERATIONS             ,"1,518.00",31/07/2013,R,BURNT TREE VEHICLE RENTAL     
514,CS -Oth Operating Inc & Expend,T/A Vehicle Maintenance etc,Transport-Contract Hire                 ,J01374,Transport Related Expenditure ,Contract Hire and Op Leasing  ,CC64,HIRING TRANSPORT SEN CABS               ,"1,071.00",31/07/2013,R,CAPITAL CARS                  
515,CS -Oth Operating Inc & Expend,T/A Vehicle Maintenance etc,Transport-Contract Hire                 ,J01374,Transport Related Expenditure ,Contract Hire and Op Leasing  ,CC64,HIRING TRANSPORT SEN CABS               ,"1,336.50",31/07/2013,R,SHERWOOD TRANSPORT GROUP      
516,CS -Oth Operating Inc & Expend,T/A Vehicle Maintenance etc,Transport-Contract Hire                 ,J01374,Transport Related Expenditure ,Contract Hire and Op Leasing  ,CC64,HIRING TRANSPORT SEN CABS               ,"1,388.00",31/07/2013,R,BARCLAYS ASSET & SALES FINANCE
517,CS -Oth Operating Inc & Expend,T/A Vehicle Maintenance etc,Transport-Contract Hire                 ,J01374,Transport Related Expenditure ,Contract Hire and Op Leasing  ,CC64,HIRING TRANSPORT SEN CABS               ,660,31/07/2013,R,CHEAM STATION CARS            
518,CS -Oth Operating Inc & Expend,T/A Vehicle Maintenance etc,Transport-Contract Hire                 ,J01374,Transport Related Expenditure ,Contract Hire and Op Leasing  ,CC64,HIRING TRANSPORT SEN CABS               ,640,31/07/2013,R,GALPINS SERVICE               
519,CS -Oth Operating Inc & Expend,T/A Vehicle Maintenance etc,Transport-Contract Hire                 ,J01374,Transport Related Expenditure ,Contract Hire and Op Leasing  ,CC64,HIRING TRANSPORT SEN CABS               ,"1,470.00",31/07/2013,R,BARCLAYS ASSET & SALES FINANCE
520,CS -Oth Operating Inc & Expend,T/A Vehicle Maintenance etc,Transport-Contract Hire                 ,J01374,Transport Related Expenditure ,Contract Hire and Op Leasing  ,CC64,HIRING TRANSPORT SEN CABS               ,"3,060.00",28/07/2013,R,SILVERBURN FINANCE (UK) LTD   
521,CS -Oth Operating Inc & Expend,T/A Vehicle Maintenance etc,Transport-Contract Hire                 ,J01374,Transport Related Expenditure ,Contract Hire and Op Leasing  ,CC64,HIRING TRANSPORT SEN CABS               ,808.5,31/07/2013,R,SHERWOOD TRANSPORT GROUP      
522,CS -Oth Operating Inc & Expend,T/A Vehicle Maintenance etc,Transport-Contract Hire                 ,J01374,Transport Related Expenditure ,Contract Hire and Op Leasing  ,CC64,HIRING TRANSPORT SEN CABS               ,"1,410.00",31/07/2013,R,CAPITAL CARS                  
523,CS -Oth Operating Inc & Expend,T/A Vehicle Maintenance etc,Transport-Contract Hire                 ,J01374,Transport Related Expenditure ,Contract Hire and Op Leasing  ,CC64,HIRING TRANSPORT SEN CABS               ,"1,512.00",31/07/2013,R,CAPITAL CARS                  
524,CS -Oth Operating Inc & Expend,T/A Vehicle Maintenance etc,Transport-Contract Hire                 ,J01374,Transport Related Expenditure ,Contract Hire and Op Leasing  ,CC64,HIRING TRANSPORT SEN CABS               ,648,28/07/2013,R,SILVERBURN FINANCE (UK) LTD   
525,CS -Oth Operating Inc & Expend,T/A Vehicle Maintenance etc,Transport-Contract Hire                 ,J01374,Transport Related Expenditure ,Contract Hire and Op Leasing  ,CC64,HIRING TRANSPORT SEN CABS               ,"1,080.00",31/07/2013,R,NVCAR HIRE LTD                
526,CS -Oth Operating Inc & Expend,T/A Vehicle Maintenance etc,Transport-Contract Hire                 ,J01374,Transport Related Expenditure ,Contract Hire and Op Leasing  ,CC64,HIRING TRANSPORT SEN CABS               ,"2,676.48",28/07/2013,R,SILVERBURN FINANCE (UK) LTD   
527,CS -Oth Operating Inc & Expend,T/A Vehicle Maintenance etc,Transport-Contract Hire                 ,J01374,Transport Related Expenditure ,Contract Hire and Op Leasing  ,CC64,HIRING TRANSPORT SEN CABS               ,980,31/07/2013,R,SHERWOOD TRANSPORT GROUP      
528,CS -Oth Operating Inc & Expend,T/A Vehicle Maintenance etc,Transport-Contract Hire                 ,J01374,Transport Related Expenditure ,Contract Hire and Op Leasing  ,CC64,HIRING TRANSPORT SEN CABS               ,793,31/07/2013,R,BARCLAYS ASSET & SALES FINANCE
529,CS -Oth Operating Inc & Expend,T/A Vehicle Maintenance etc,Transport-Contract Hire                 ,J01374,Transport Related Expenditure ,Contract Hire and Op Leasing  ,CC64,HIRING TRANSPORT SEN CABS               ,"3,060.00",31/07/2013,R,BARCLAYS ASSET & SALES FINANCE
530,CS -Oth Operating Inc & Expend,T/A Vehicle Maintenance etc,Transport-Contract Hire                 ,J01374,Transport Related Expenditure ,Contract Hire and Op Leasing  ,CC64,HIRING TRANSPORT SEN CABS               ,"1,296.00",28/07/2013,R,SILVERBURN FINANCE (UK) LTD   
531,CS -Oth Operating Inc & Expend,T/A Vehicle Maintenance etc,Transport-Contract Hire                 ,J01374,Transport Related Expenditure ,Contract Hire and Op Leasing  ,CC64,HIRING TRANSPORT SEN CABS               ,"1,728.00",28/07/2013,R,SILVERBURN FINANCE (UK) LTD   
532,CS -Oth Operating Inc & Expend,T/A Vehicle Maintenance etc,Transport-Contract Hire                 ,J01374,Transport Related Expenditure ,Contract Hire and Op Leasing  ,CC64,HIRING TRANSPORT SEN CABS               ,"1,188.00",31/07/2013,R,CAPITAL CARS                  
533,CS -Oth Operating Inc & Expend,T/A Vehicle Maintenance etc,Transport-Contract Hire                 ,J01374,Transport Related Expenditure ,Contract Hire and Op Leasing  ,CC64,HIRING TRANSPORT SEN CABS               ,"1,890.00",31/07/2013,R,CAPITAL CARS                  
534,CS -Oth Operating Inc & Expend,T/A Vehicle Maintenance etc,Transport-Contract Hire                 ,J01374,Transport Related Expenditure ,Contract Hire and Op Leasing  ,CC64,HIRING TRANSPORT SEN CABS               ,840,31/07/2013,R,NVCAR HIRE LTD                
535,CS -Oth Operating Inc & Expend,T/A Vehicle Maintenance etc,Transport-Contract Hire                 ,J01374,Transport Related Expenditure ,Contract Hire and Op Leasing  ,CC64,HIRING TRANSPORT SEN CABS               ,"1,742.40",31/07/2013,R,SHERWOOD TRANSPORT GROUP      
536,CS -Oth Operating Inc & Expend,T/A Vehicle Maintenance etc,Transport-Contract Hire                 ,J01374,Transport Related Expenditure ,Contract Hire and Op Leasing  ,CC64,HIRING TRANSPORT SEN CABS               ,"1,008.00",28/07/2013,R,SILVERBURN FINANCE (UK) LTD   
537,CS -Oth Operating Inc & Expend,T/A Vehicle Maintenance etc,Transport-Contract Hire                 ,J01374,Transport Related Expenditure ,Contract Hire and Op Leasing  ,CC64,HIRING TRANSPORT SEN CABS               ,720,31/07/2013,R,GALPINS SERVICE               
538,CS -Oth Operating Inc & Expend,T/A Vehicle Maintenance etc,Transport-Contract Hire                 ,J01374,Transport Related Expenditure ,Contract Hire and Op Leasing  ,CC64,HIRING TRANSPORT SEN CABS               ,"2,862.00",31/07/2013,R,BRUNSWICK CARS LTD            
539,CS -Oth Operating Inc & Expend,T/A Vehicle Maintenance etc,Transport-Contract Hire                 ,J01374,Transport Related Expenditure ,Contract Hire and Op Leasing  ,CC64,HIRING TRANSPORT SEN CABS               ,780,31/07/2013,R,GALPINS SERVICE               
540,CS -Oth Operating Inc & Expend,T/A Vehicle Maintenance etc,Transport-Contract Hire                 ,J01374,Transport Related Expenditure ,Contract Hire and Op Leasing  ,CC64,HIRING TRANSPORT SEN CABS               ,-768,23/07/2013,R,SILVERBURN FINANCE (UK) LTD   
541,CS -Oth Operating Inc & Expend,T/A Vehicle Maintenance etc,Transport-Contract Hire                 ,J01374,Transport Related Expenditure ,Contract Hire and Op Leasing  ,CC64,HIRING TRANSPORT SEN CABS               ,"2,142.00",31/07/2013,R,SHERWOOD TRANSPORT GROUP      
542,CS -Oth Operating Inc & Expend,T/A Vehicle Maintenance etc,Transport-Contract Hire                 ,J01374,Transport Related Expenditure ,Contract Hire and Op Leasing  ,CC64,HIRING TRANSPORT SEN CABS               ,"2,945.00",31/07/2013,R,BARCLAYS ASSET & SALES FINANCE
543,CS -Oth Operating Inc & Expend,T/A Vehicle Maintenance etc,Transport-Contract Hire                 ,J01374,Transport Related Expenditure ,Contract Hire and Op Leasing  ,CC64,HIRING TRANSPORT SEN CABS               ,720,28/07/2013,R,SILVERBURN FINANCE (UK) LTD   
544,CS -Oth Operating Inc & Expend,T/A Vehicle Maintenance etc,Transport-Contract Hire                 ,J01374,Transport Related Expenditure ,Contract Hire and Op Leasing  ,CC64,HIRING TRANSPORT SEN CABS               ,520,31/07/2013,R,NVCAR HIRE LTD                
545,CS -Oth Operating Inc & Expend,T/A Vehicle Maintenance etc,Transport-Contract Hire                 ,J01374,Transport Related Expenditure ,Contract Hire and Op Leasing  ,CC64,HIRING TRANSPORT SEN CABS               ,948,31/07/2013,R,NVCAR HIRE LTD                
546,CS -Oth Operating Inc & Expend,T/A Vehicle Maintenance etc,Transport-Contract Hire                 ,J01374,Transport Related Expenditure ,Contract Hire and Op Leasing  ,CC64,HIRING TRANSPORT SEN CABS               ,"2,520.00",31/07/2013,R,CAPITAL CARS                  
547,CS -Oth Operating Inc & Expend,T/A Vehicle Maintenance etc,Transport-Contract Hire                 ,J01374,Transport Related Expenditure ,Contract Hire and Op Leasing  ,CC64,HIRING TRANSPORT SEN CABS               ,"2,125.00",27/07/2013,R,WALLINGTON CARS & COURIERS LTD
548,CS -Oth Operating Inc & Expend,T/A Vehicle Maintenance etc,Transport-Contract Hire                 ,J01374,Transport Related Expenditure ,Contract Hire and Op Leasing  ,CC64,HIRING TRANSPORT SEN CABS               ,578,31/07/2013,R,BRUNSWICK CARS LTD            
549,CS -Oth Operating Inc & Expend,T/A Vehicle Maintenance etc,Transport-Contract Hire                 ,J01374,Transport Related Expenditure ,Contract Hire and Op Leasing  ,CC64,HIRING TRANSPORT SEN CABS               ,"1,071.00",31/07/2013,R,SHERWOOD TRANSPORT GROUP      
550,CS -Oth Operating Inc & Expend,T/A Vehicle Maintenance etc,Transport-Contract Hire                 ,J01374,Transport Related Expenditure ,Contract Hire and Op Leasing  ,CC64,HIRING TRANSPORT SEN CABS               ,684,28/07/2013,R,SILVERBURN FINANCE (UK) LTD   
551,CS -Oth Operating Inc & Expend,T/A Vehicle Maintenance etc,Transport-Contract Hire                 ,J01374,Transport Related Expenditure ,Contract Hire and Op Leasing  ,CC64,HIRING TRANSPORT SEN CABS               ,"2,016.00",31/07/2013,R,CAPITAL CARS                  
552,CS -Oth Operating Inc & Expend,T/A Vehicle Maintenance etc,Transport-Contract Hire                 ,J01374,Transport Related Expenditure ,Contract Hire and Op Leasing  ,CC64,HIRING TRANSPORT SEN CABS               ,"1,080.00",31/07/2013,R,CHEAM STATION CARS            
553,CS -Oth Operating Inc & Expend,T/A Vehicle Maintenance etc,Transport-Contract Hire                 ,J01374,Transport Related Expenditure ,Contract Hire and Op Leasing  ,CC64,HIRING TRANSPORT SEN CABS               ,"1,292.00",31/07/2013,R,CAPITAL CARS                  
554,CS -Oth Operating Inc & Expend,T/A Vehicle Maintenance etc,Transport-Contract Hire                 ,J01374,Transport Related Expenditure ,Contract Hire and Op Leasing  ,CC64,HIRING TRANSPORT SEN CABS               ,"2,124.00",31/07/2013,R,SHERWOOD TRANSPORT GROUP      
555,CS -Oth Operating Inc & Expend,T/A Vehicle Maintenance etc,Transport-Contract Hire                 ,J01374,Transport Related Expenditure ,Contract Hire and Op Leasing  ,CC64,HIRING TRANSPORT SEN CABS               ,"1,344.00",31/07/2013,R,BARCLAYS ASSET & SALES FINANCE
556,CS -Oth Operating Inc & Expend,T/A Vehicle Maintenance etc,Transport-Contract Hire                 ,J01374,Transport Related Expenditure ,Contract Hire and Op Leasing  ,CC64,HIRING TRANSPORT SEN CABS               ,900,31/07/2013,R,GALPINS SERVICE               
557,CS -Oth Operating Inc & Expend,T/A Vehicle Maintenance etc,Transport-Contract Hire                 ,J01374,Transport Related Expenditure ,Contract Hire and Op Leasing  ,CC64,HIRING TRANSPORT SEN CABS               ,"1,209.00",31/07/2013,R,NVCAR HIRE LTD                
558,CS -Oth Operating Inc & Expend,T/A Vehicle Maintenance etc,Transport-Contract Hire                 ,J01374,Transport Related Expenditure ,Contract Hire and Op Leasing  ,CC64,HIRING TRANSPORT SEN CABS               ,559,31/07/2013,R,BARCLAYS ASSET & SALES FINANCE
559,CS -Oth Operating Inc & Expend,T/A Vehicle Maintenance etc,Transport-Contract Hire                 ,J01374,Transport Related Expenditure ,Contract Hire and Op Leasing  ,CC64,HIRING TRANSPORT SEN CABS               ,"1,632.00",31/07/2013,R,BARCLAYS ASSET & SALES FINANCE
560,CS -Oth Operating Inc & Expend,T/A Vehicle Maintenance etc,Transport-Contract Hire                 ,J01374,Transport Related Expenditure ,Contract Hire and Op Leasing  ,CC64,HIRING TRANSPORT SEN CABS               ,900,28/07/2013,R,SILVERBURN FINANCE (UK) LTD   
561,CS -Oth Operating Inc & Expend,T/A Vehicle Maintenance etc,Transport-Contract Hire                 ,J01374,Transport Related Expenditure ,Contract Hire and Op Leasing  ,CC64,HIRING TRANSPORT SEN CABS               ,"1,110.00",28/07/2013,R,SILVERBURN FINANCE (UK) LTD   
562,CS -Oth Operating Inc & Expend,T/A Vehicle Maintenance etc,Transport-Contract Hire                 ,J01374,Transport Related Expenditure ,Contract Hire and Op Leasing  ,CC64,HIRING TRANSPORT SEN CABS               ,580,31/07/2013,R,SHERWOOD TRANSPORT GROUP      
563,CS -Oth Operating Inc & Expend,T/A Vehicle Maintenance etc,Transport-Contract Hire                 ,J01374,Transport Related Expenditure ,Contract Hire and Op Leasing  ,CC64,HIRING TRANSPORT SEN CABS               ,638,01/08/2013,R,AERIAL CAR SERVICES LTD       
564,CS -Oth Operating Inc & Expend,T/A Vehicle Maintenance etc,Transport-Contract Hire                 ,J01374,Transport Related Expenditure ,Contract Hire and Op Leasing  ,CC64,HIRING TRANSPORT SEN CABS               ,624,31/07/2013,R,NVCAR HIRE LTD                
565,CS -Oth Operating Inc & Expend,T/A Vehicle Maintenance etc,Transport-Contract Hire                 ,J01374,Transport Related Expenditure ,Contract Hire and Op Leasing  ,CC64,HIRING TRANSPORT SEN CABS               ,"1,785.00",31/07/2013,R,SHERWOOD TRANSPORT GROUP      
566,CS -Oth Operating Inc & Expend,T/A Vehicle Maintenance etc,Transport-Contract Hire                 ,J01374,Transport Related Expenditure ,Contract Hire and Op Leasing  ,CC64,HIRING TRANSPORT SEN CABS               ,756,31/07/2013,R,BARCLAYS ASSET & SALES FINANCE
567,CS -Oth Operating Inc & Expend,T/A Vehicle Maintenance etc,Transport-Contract Hire                 ,J01374,Transport Related Expenditure ,Contract Hire and Op Leasing  ,CC64,HIRING TRANSPORT SEN CABS               ,735,31/07/2013,R,CAPITAL CARS                  
568,CS -Oth Operating Inc & Expend,T/A Vehicle Maintenance etc,Transport-Contract Hire                 ,J01374,Transport Related Expenditure ,Contract Hire and Op Leasing  ,CC64,HIRING TRANSPORT SEN CABS               ,727.5,31/07/2013,R,GALPINS SERVICE               
569,CS -Oth Operating Inc & Expend,T/A Vehicle Maintenance etc,Transport-Contract Hire                 ,J01374,Transport Related Expenditure ,Contract Hire and Op Leasing  ,CC64,HIRING TRANSPORT SEN CABS               ,"1,920.00",31/07/2013,R,SHERWOOD TRANSPORT GROUP      
570,CS -Oth Operating Inc & Expend,T/A Vehicle Maintenance etc,Transport-Contract Hire                 ,J01374,Transport Related Expenditure ,Contract Hire and Op Leasing  ,CC64,HIRING TRANSPORT SEN CABS               ,"2,014.00",31/07/2013,R,CAPITAL CARS                  
571,CS -Oth Operating Inc & Expend,T/A Vehicle Maintenance etc,Transport-Contract Hire                 ,J01374,Transport Related Expenditure ,Contract Hire and Op Leasing  ,CC64,HIRING TRANSPORT SEN CABS               ,"1,394.00",31/07/2013,R,CAPITAL CARS                  
572,CS -Oth Operating Inc & Expend,T/A Vehicle Maintenance etc,Transport-Contract Hire                 ,J01374,Transport Related Expenditure ,Contract Hire and Op Leasing  ,CC64,HIRING TRANSPORT SEN CABS               ,715.75,28/07/2013,R,SILVERBURN FINANCE (UK) LTD   
573,CS -Oth Operating Inc & Expend,T/A Vehicle Maintenance etc,Transport-Contract Hire                 ,J01374,Transport Related Expenditure ,Contract Hire and Op Leasing  ,CC64,HIRING TRANSPORT SEN CABS               ,"1,332.00",31/07/2013,R,CAPITAL CARS                  
574,CS -Oth Operating Inc & Expend,T/A Vehicle Maintenance etc,Transport-Contract Hire                 ,J01374,Transport Related Expenditure ,Contract Hire and Op Leasing  ,CC64,HIRING TRANSPORT SEN CABS               ,"1,260.00",31/07/2013,R,CAPITAL CARS                  
575,CS -Oth Operating Inc & Expend,T/A Vehicle Maintenance etc,Transport-Contract Hire                 ,J01374,Transport Related Expenditure ,Contract Hire and Op Leasing  ,CC64,HIRING TRANSPORT SEN CABS               ,660,31/07/2013,R,SHERWOOD TRANSPORT GROUP      
576,CS -Oth Operating Inc & Expend,T/A Vehicle Maintenance etc,Transport-Contract Hire                 ,J01374,Transport Related Expenditure ,Contract Hire and Op Leasing  ,CC64,HIRING TRANSPORT SEN CABS               ,"2,250.00",27/07/2013,R,WALLINGTON CARS & COURIERS LTD
577,CS -Oth Operating Inc & Expend,T/A Vehicle Maintenance etc,Transport-Contract Hire                 ,J01374,Transport Related Expenditure ,Contract Hire and Op Leasing  ,CC64,HIRING TRANSPORT SEN CABS               ,504,31/07/2013,R,BARCLAYS ASSET & SALES FINANCE
578,CS -Oth Operating Inc & Expend,T/A Vehicle Maintenance etc,Transport-Contract Hire                 ,J01374,Transport Related Expenditure ,Contract Hire and Op Leasing  ,CC64,HIRING TRANSPORT SEN CABS               ,578,28/07/2013,R,SILVERBURN FINANCE (UK) LTD   
579,CS -Oth Operating Inc & Expend,T/A Vehicle Maintenance etc,Transport-Contract Hire                 ,J01374,Transport Related Expenditure ,Contract Hire and Op Leasing  ,CC64,HIRING TRANSPORT SEN CABS               ,620,31/07/2013,R,GALPINS SERVICE               
580,CS -Oth Operating Inc & Expend,T/A Vehicle Maintenance etc,Transport-Contract Hire                 ,J01374,Transport Related Expenditure ,Contract Hire and Op Leasing  ,CC64,HIRING TRANSPORT SEN CABS               ,"2,040.00",31/07/2013,R,BARCLAYS ASSET & SALES FINANCE
581,CS -Oth Operating Inc & Expend,T/A Vehicle Maintenance etc,Transport-Contract Hire                 ,J01374,Transport Related Expenditure ,Contract Hire and Op Leasing  ,CC64,HIRING TRANSPORT SEN CABS               ,"1,168.20",31/07/2013,R,SHERWOOD TRANSPORT GROUP      
582,CS -Oth Operating Inc & Expend,T/A Vehicle Maintenance etc,Transport-Contract Hire                 ,J01374,Transport Related Expenditure ,Contract Hire and Op Leasing  ,CC64,HIRING TRANSPORT SEN CABS               ,700,31/07/2013,R,SHERWOOD TRANSPORT GROUP      
583,CS -Oth Operating Inc & Expend,T/A Vehicle Maintenance etc,Transport-Contract Hire                 ,J01374,Transport Related Expenditure ,Contract Hire and Op Leasing  ,CC64,HIRING TRANSPORT SEN CABS               ,880,31/07/2013,R,CAPITAL CARS                  
584,CS -Oth Operating Inc & Expend,T/A Vehicle Maintenance etc,Transport-Contract Hire                 ,J01374,Transport Related Expenditure ,Contract Hire and Op Leasing  ,CC64,HIRING TRANSPORT SEN CABS               ,"1,512.00",28/07/2013,R,SILVERBURN FINANCE (UK) LTD   
585,CS -Oth Operating Inc & Expend,T/A Vehicle Maintenance etc,Transport-Contract Hire                 ,J01374,Transport Related Expenditure ,Contract Hire and Op Leasing  ,CC64,HIRING TRANSPORT SEN CABS               ,"1,692.00",31/07/2013,R,CAPITAL CARS                  
586,CS -Oth Operating Inc & Expend,T/A Vehicle Maintenance etc,Transport-Contract Hire                 ,J01374,Transport Related Expenditure ,Contract Hire and Op Leasing  ,CC64,HIRING TRANSPORT SEN CABS               ,"2,484.00",02/08/2013,R,NVCAR HIRE LTD                
587,CS -Oth Operating Inc & Expend,T/A Vehicle Maintenance etc,Transport-Contract Hire                 ,J01374,Transport Related Expenditure ,Contract Hire and Op Leasing  ,CC64,HIRING TRANSPORT SEN CABS               ,"1,957.50",31/07/2013,R,SHERWOOD TRANSPORT GROUP      
588,CS -Oth Operating Inc & Expend,T/A Vehicle Maintenance etc,Transport-Contract Hire                 ,J01374,Transport Related Expenditure ,Contract Hire and Op Leasing  ,CC64,HIRING TRANSPORT SEN CABS               ,"1,440.00",28/07/2013,R,SILVERBURN FINANCE (UK) LTD   
589,CS -Oth Operating Inc & Expend,T/A Vehicle Maintenance etc,Transport-Contract Hire                 ,J01374,Transport Related Expenditure ,Contract Hire and Op Leasing  ,CC64,HIRING TRANSPORT SEN CABS               ,840,31/07/2013,R,NVCAR HIRE LTD                
590,CS -Oth Operating Inc & Expend,T/A Vehicle Maintenance etc,Transport-Contract Hire                 ,J01374,Transport Related Expenditure ,Contract Hire and Op Leasing  ,CC64,HIRING TRANSPORT SEN CABS               ,"1,188.00",28/07/2013,R,SILVERBURN FINANCE (UK) LTD   
591,CS -Oth Operating Inc & Expend,T/A Vehicle Maintenance etc,Transport-Contract Hire                 ,J01374,Transport Related Expenditure ,Contract Hire and Op Leasing  ,CC64,HIRING TRANSPORT SEN CABS               ,"2,952.00",31/07/2013,R,BARCLAYS ASSET & SALES FINANCE
592,CS -Oth Operating Inc & Expend,T/A Vehicle Maintenance etc,Transport-Contract Hire                 ,J01374,Transport Related Expenditure ,Contract Hire and Op Leasing  ,CC64,HIRING TRANSPORT SEN CABS               ,"1,224.00",31/07/2013,R,NVCAR HIRE LTD                
593,CS -Oth Operating Inc & Expend,T/A Vehicle Maintenance etc,Transport-Contract Hire                 ,J01374,Transport Related Expenditure ,Contract Hire and Op Leasing  ,CC64,HIRING TRANSPORT SEN CABS               ,"1,287.00",28/07/2013,R,SILVERBURN FINANCE (UK) LTD   
594,CS -Oth Operating Inc & Expend,T/A Vehicle Maintenance etc,Transport-Contract Hire                 ,J01374,Transport Related Expenditure ,Contract Hire and Op Leasing  ,CC64,HIRING TRANSPORT SEN CABS               ,"2,340.00",31/07/2013,R,BARCLAYS ASSET & SALES FINANCE
595,CS -Oth Operating Inc & Expend,T/A Vehicle Maintenance etc,Transport-Contract Hire                 ,J01374,Transport Related Expenditure ,Contract Hire and Op Leasing  ,CC64,HIRING TRANSPORT SEN CABS               ,"2,466.00",31/07/2013,R,NVCAR HIRE LTD                
596,CS -Oth Operating Inc & Expend,T/A Vehicle Maintenance etc,Transport-Contract Hire                 ,J01374,Transport Related Expenditure ,Contract Hire and Op Leasing  ,CC64,HIRING TRANSPORT SEN CABS               ,"1,102.00",31/07/2013,R,BARCLAYS ASSET & SALES FINANCE
597,CS -Oth Operating Inc & Expend,T/A Vehicle Maintenance etc,Transport-Contract Hire                 ,J01374,Transport Related Expenditure ,Contract Hire and Op Leasing  ,CC66,HIRING TRANSPORT H&SS CAB CHILDREN      ,668.33,31/07/2013,R,GALPINS SERVICE               
598,CS -Oth Operating Inc & Expend,T/A Vehicle Maintenance etc,Transport-Contract Hire                 ,J01374,Transport Related Expenditure ,Contract Hire and Op Leasing  ,CC66,HIRING TRANSPORT H&SS CAB CHILDREN      ,"1,520.00",31/07/2013,R,BARCLAYS ASSET & SALES FINANCE
599,CS -Oth Operating Inc & Expend,T/A Vehicle Maintenance etc,Transport-Contract Hire                 ,J01374,Transport Related Expenditure ,Contract Hire and Op Leasing  ,CC66,HIRING TRANSPORT H&SS CAB CHILDREN      ,680,31/07/2013,R,BARCLAYS ASSET & SALES FINANCE
600,CS -Oth Operating Inc & Expend,T/A Vehicle Maintenance etc,Transport-Contract Hire                 ,J01374,Transport Related Expenditure ,Contract Hire and Op Leasing  ,CC66,HIRING TRANSPORT H&SS CAB CHILDREN      ,"1,080.00",31/07/2013,R,CAPITAL CARS                  
601,CS -Oth Operating Inc & Expend,T/A Vehicle Maintenance etc,Transport-Contract Hire                 ,J01374,Transport Related Expenditure ,Contract Hire and Op Leasing  ,CC66,HIRING TRANSPORT H&SS CAB CHILDREN      ,648,31/07/2013,R,BARCLAYS ASSET & SALES FINANCE
602,CS -Oth Operating Inc & Expend,T/A Vehicle Maintenance etc,Transport-Contract Hire                 ,J01374,Transport Related Expenditure ,Contract Hire and Op Leasing  ,CC66,HIRING TRANSPORT H&SS CAB CHILDREN      ,952,31/07/2013,R,NVCAR HIRE LTD                
603,CS -Oth Operating Inc & Expend,T/A Vehicle Maintenance etc,Transport-Contract Hire                 ,J01374,Transport Related Expenditure ,Contract Hire and Op Leasing  ,CC66,HIRING TRANSPORT H&SS CAB CHILDREN      ,"2,520.00",31/07/2013,R,BARCLAYS ASSET & SALES FINANCE
604,CS -Oth Operating Inc & Expend,T/A Vehicle Maintenance etc,Transport-Contract Hire                 ,J01374,Transport Related Expenditure ,Contract Hire and Op Leasing  ,CC66,HIRING TRANSPORT H&SS CAB CHILDREN      ,504,31/07/2013,R,NVCAR HIRE LTD                
605,CS -Oth Operating Inc & Expend,T/A Vehicle Maintenance etc,Transport-Contract Hire                 ,J01374,Transport Related Expenditure ,Contract Hire and Op Leasing  ,CC66,HIRING TRANSPORT H&SS CAB CHILDREN      ,672,31/07/2013,R,BARCLAYS ASSET & SALES FINANCE
606,CS -Oth Operating Inc & Expend,T/A Vehicle Maintenance etc,Transport-Contract Hire                 ,J01374,Transport Related Expenditure ,Contract Hire and Op Leasing  ,CC67,HIRING TRANSPORT H&SS CAB ADULTS        ,504,31/07/2013,R,BARCLAYS ASSET & SALES FINANCE
607,CS -Oth Operating Inc & Expend,T/A Vehicle Maintenance etc,Transport-Contract Hire                 ,J01374,Transport Related Expenditure ,Contract Hire and Op Leasing  ,CC67,HIRING TRANSPORT H&SS CAB ADULTS        ,782,31/07/2013,R,NVCAR HIRE LTD                
608,CS -Oth Operating Inc & Expend,T/A Vehicle Maintenance etc,Transport-Contract Hire                 ,J01374,Transport Related Expenditure ,Contract Hire and Op Leasing  ,CC67,HIRING TRANSPORT H&SS CAB ADULTS        ,864,28/07/2013,R,SILVERBURN FINANCE (UK) LTD   
609,CS -Oth Operating Inc & Expend,T/A Vehicle Maintenance etc,Transport-Contract Hire                 ,J01374,Transport Related Expenditure ,Contract Hire and Op Leasing  ,CC67,HIRING TRANSPORT H&SS CAB ADULTS        ,672,31/07/2013,R,BARCLAYS ASSET & SALES FINANCE
610,CS -Oth Operating Inc & Expend,T/A Vehicle Maintenance etc,Transport-Contract Hire                 ,J01374,Transport Related Expenditure ,Contract Hire and Op Leasing  ,CC67,HIRING TRANSPORT H&SS CAB ADULTS        ,"1,175.00",31/07/2013,R,CAPITAL CARS                  
611,CS -Oth Operating Inc & Expend,T/A Vehicle Maintenance etc,Transport-Contract Hire                 ,J01374,Transport Related Expenditure ,Contract Hire and Op Leasing  ,CC67,HIRING TRANSPORT H&SS CAB ADULTS        ,760,31/07/2013,R,NVCAR HIRE LTD                
612,CS -Oth Operating Inc & Expend,T/A Vehicle Maintenance etc,Transport-Contract Hire                 ,J01374,Transport Related Expenditure ,Contract Hire and Op Leasing  ,CC67,HIRING TRANSPORT H&SS CAB ADULTS        ,"1,432.00",31/07/2013,R,NVCAR HIRE LTD                
613,CS -Oth Operating Inc & Expend,T/A Vehicle Maintenance etc,Transport-Contract Hire                 ,J01374,Transport Related Expenditure ,Contract Hire and Op Leasing  ,CC67,HIRING TRANSPORT H&SS CAB ADULTS        ,"1,158.00",31/07/2013,R,CAPITAL CARS                  
614,CS -Oth Operating Inc & Expend,T/A Vehicle Maintenance etc,Transport-Contract Hire                 ,J01374,Transport Related Expenditure ,Contract Hire and Op Leasing  ,CC67,HIRING TRANSPORT H&SS CAB ADULTS        ,"1,792.00",31/07/2013,R,NVCAR HIRE LTD                
615,CS -Oth Operating Inc & Expend,T/A Vehicle Maintenance etc,Transport-Contract Hire                 ,J01374,Transport Related Expenditure ,Contract Hire and Op Leasing  ,CC67,HIRING TRANSPORT H&SS CAB ADULTS        ,928,31/07/2013,R,BARCLAYS ASSET & SALES FINANCE
616,CS -Oth Operating Inc & Expend,T/A Vehicle Maintenance etc,Transport-Contract Hire                 ,J01374,Transport Related Expenditure ,Contract Hire and Op Leasing  ,CC67,HIRING TRANSPORT H&SS CAB ADULTS        ,920,01/08/2013,R,AERIAL CAR SERVICES LTD       
617,CS -Oth Operating Inc & Expend,T/A Vehicle Maintenance etc,Transport-Contract Hire                 ,J01374,Transport Related Expenditure ,Contract Hire and Op Leasing  ,CC67,HIRING TRANSPORT H&SS CAB ADULTS        ,"1,180.00",31/07/2013,R,CAPITAL CARS                  
618,CS -Oth Operating Inc & Expend,T/A Vehicle Maintenance etc,Transport-Contract Hire                 ,J01374,Transport Related Expenditure ,Contract Hire and Op Leasing  ,CC67,HIRING TRANSPORT H&SS CAB ADULTS        ,580,31/07/2013,R,SHERWOOD TRANSPORT GROUP      
619,CS -Oth Operating Inc & Expend,T/A Vehicle Maintenance etc,Transport-Contract Hire                 ,J01374,Transport Related Expenditure ,Contract Hire and Op Leasing  ,CC67,HIRING TRANSPORT H&SS CAB ADULTS        ,768,31/07/2013,R,BARCLAYS ASSET & SALES FINANCE
620,CS -Oth Operating Inc & Expend,T/A Vehicle Maintenance etc,Transport-Contract Hire                 ,J01374,Transport Related Expenditure ,Contract Hire and Op Leasing  ,CC68,HIRING TRANSPORT SEN COLLEGES CABS      ,884,28/07/2013,R,SILVERBURN FINANCE (UK) LTD   
621,CS -Oth Operating Inc & Expend,T/A Vehicle Maintenance etc,Transport-Contract Hire                 ,J01374,Transport Related Expenditure ,Contract Hire and Op Leasing  ,CC68,HIRING TRANSPORT SEN COLLEGES CABS      ,-635.6,31/07/2013,R,KINGSTON ACCESSIBILITY TRAN LT
622,CS -Oth Operating Inc & Expend,T/A Vehicle Maintenance etc,Transport-Contract Hire                 ,J01374,Transport Related Expenditure ,Contract Hire and Op Leasing  ,CC68,HIRING TRANSPORT SEN COLLEGES CABS      ,-540.26,31/07/2013,R,KINGSTON ACCESSIBILITY TRAN LT
623,CS -Oth Operating Inc & Expend,T/A Vehicle Maintenance etc,Transport-Contract Hire                 ,J01374,Transport Related Expenditure ,Contract Hire and Op Leasing  ,CC68,HIRING TRANSPORT SEN COLLEGES CABS      ,800,01/08/2013,R,KENDALL CARS                  
624,CS -Oth Operating Inc & Expend,T/A Vehicle Maintenance etc,Transport-Contract Hire                 ,J01374,Transport Related Expenditure ,Contract Hire and Op Leasing  ,CC68,HIRING TRANSPORT SEN COLLEGES CABS      ,"1,761.24",31/07/2013,R,BARCLAYS ASSET & SALES FINANCE
625,CS -Oth Operating Inc & Expend,T/A Vehicle Maintenance etc,Transport-Workshop                      ,J01376,Premises Related Expenditure  ,RepairsAlterations&MtceOfBldgs,BA01,DDM - General Building                  ,971.67,02/04/2013,R,SALTASH ENTERPRISES LTD       
626,CS -Oth Operating Inc & Expend,T/A Vehicle Maintenance etc,Transport-Workshop                      ,J01376,Premises Related Expenditure  ,Energy Costs                  ,BB02,Electricity                             ,"1,107.77",01/08/2013,R,EDF ENERGY 1 LIMITED          
627,CS -Oth Operating Inc & Expend,T/A Vehicle Maintenance etc,Transport-Workshop                      ,J01376,Transport Related Expenditure ,Direct Transport Costs        ,CA04,R & M of Veh - General                  ,"2,212.86",27/06/2013,R,FREIGHT TRANSPORT ASSOCIATION 
628,CS -Oth Operating Inc & Expend,T/A Vehicle Maintenance etc,Transport-Workshop                      ,J01376,Transport Related Expenditure ,Contract Hire and Op Leasing  ,CC01,Hired Transport                         ,740,30/07/2013,R,PC COACHES                    
629,CS -Oth Operating Inc & Expend,T/A Vehicle Maintenance etc,Transport-Workshop                      ,J01376,Transport Related Expenditure ,Contract Hire and Op Leasing  ,CC60,Vehicle Hire for LB Sutton              ,"2,142.00",31/07/2013,R,BRUNSWICK CARS LTD            
630,CS -Oth Operating Inc & Expend,T/A Vehicle Maintenance etc,Transport-Workshop                      ,J01376,Transport Related Expenditure ,Contract Hire and Op Leasing  ,CC60,Vehicle Hire for LB Sutton              ,"1,890.00",01/08/2013,R,CALVERTON FACTORS LTD         
631,CS -Oth Operating Inc & Expend,T/A Vehicle Maintenance etc,Transport-Workshop                      ,J01376,Transport Related Expenditure ,Contract Hire and Op Leasing  ,CC60,Vehicle Hire for LB Sutton              ,"1,470.00",31/07/2013,R,BARCLAYS ASSET & SALES FINANCE
632,CS -Oth Operating Inc & Expend,T/A Vehicle Maintenance etc,Transport-Workshop                      ,J01376,Transport Related Expenditure ,Contract Hire and Op Leasing  ,CC60,Vehicle Hire for LB Sutton              ,"1,440.00",01/08/2013,R,CALVERTON FACTORS LTD         
633,CS -Oth Operating Inc & Expend,T/A Vehicle Maintenance etc,Transport-Workshop                      ,J01376,Transport Related Expenditure ,Contract Hire and Op Leasing  ,CC60,Vehicle Hire for LB Sutton              ,"1,978.00",02/08/2013,R,BARCLAYS ASSET & SALES FINANCE
634,CS -Oth Operating Inc & Expend,T/A Vehicle Maintenance etc,Transport-Workshop                      ,J01376,Transport Related Expenditure ,Contract Hire and Op Leasing  ,CC60,Vehicle Hire for LB Sutton              ,"2,380.00",31/07/2013,R,BRUNSWICK CARS LTD            
635,CS -Oth Operating Inc & Expend,T/A Vehicle Maintenance etc,Transport-Workshop                      ,J01376,Transport Related Expenditure ,Contract Hire and Op Leasing  ,CC60,Vehicle Hire for LB Sutton              ,"4,712.00",31/07/2013,R,BARCLAYS ASSET & SALES FINANCE
636,CS -Oth Operating Inc & Expend,T/A Vehicle Maintenance etc,Transport-Workshop                      ,J01376,Transport Related Expenditure ,Contract Hire and Op Leasing  ,CC60,Vehicle Hire for LB Sutton              ,"1,854.00",31/07/2013,R,BRUNSWICK CARS LTD            
637,CS -Oth Operating Inc & Expend,T/A Vehicle Maintenance etc,Transport-Workshop                      ,J01376,Transport Related Expenditure ,Contract Hire and Op Leasing  ,CC60,Vehicle Hire for LB Sutton              ,960,01/08/2013,R,CALVERTON FACTORS LTD         
638,CS -Oth Operating Inc & Expend,T/A Vehicle Maintenance etc,Transport-Workshop                      ,J01376,Transport Related Expenditure ,Contract Hire and Op Leasing  ,CC60,Vehicle Hire for LB Sutton              ,666,31/07/2013,R,CAPITAL CARS                  
639,CS -Oth Operating Inc & Expend,T/A Vehicle Maintenance etc,Transport-Workshop                      ,J01376,Transport Related Expenditure ,Contract Hire and Op Leasing  ,CC65,Vehicle Hire for Education              ,"1,465.00",23/07/2013,R,G T INTERNATIONAL             
640,CS -Oth Operating Inc & Expend,T/A Vehicle Maintenance etc,Transport-Workshop                      ,J01376,Supplies & Services           ,Equip Furniture/Materials     ,DA01,Equipment - R & M                       ,687.08,24/08/2013,R,SUNLIGHT SERVICE GROUP LTD    
641,CS -Oth Operating Inc & Expend,T/A Vehicle Maintenance etc,Transport-Workshop                      ,J01376,Supplies & Services           ,Equip Furniture/Materials     ,DA09,Equip-Purchases                         ,839.97,07/08/2013,R,RAEVAN SUPPLIES LTD           
642,Central Services,NDC Unused Office Accomodation,Montgomery Close                        ,J02044,Premises Related Expenditure  ,RepairsAlterations&MtceOfBldgs,BA03,DDM - MECHANICAL                        ,620.33,08/08/2013,R,COFELY LIMITED                
643,Central Services,NDC Unused Office Accomodation,Montgomery Close                        ,J02044,Premises Related Expenditure  ,RepairsAlterations&MtceOfBldgs,BA03,DDM - MECHANICAL                        ,620.33,08/08/2013,R,COFELY LIMITED                
644,Central Services,NDC Unused Office Accomodation,Montgomery Close                        ,J02044,Premises Related Expenditure  ,RepairsAlterations&MtceOfBldgs,BA03,DDM - MECHANICAL                        ,620.33,08/08/2013,R,COFELY LIMITED                
645,Central Services,NDC Unused Office Accomodation,Montgomery Close                        ,J02044,Premises Related Expenditure  ,RepairsAlterations&MtceOfBldgs,BA03,DDM - MECHANICAL                        ,620.33,08/08/2013,R,COFELY LIMITED                
646,CS -Oth Operating Inc & Expend,Extraordinary Items & PY Adj.,CHAPEL ORCHARD/WORSFOLD HOUSE ,J03029,Premises Related Expenditure  ,RepairsAlterations&MtceOfBldgs,BA01,DDM - General Building                  ,"19,000.00",30/07/2013,R,SLOANE DEMOLITION LIMITED     
647,CS -Oth Operating Inc & Expend,Extraordinary Items & PY Adj.,Pollards Hill Comm Cntre                ,J08074,Premises Related Expenditure  ,RepairsAlterations&MtceOfBldgs,BA03,DDM - Mechanical                        ,695.47,08/08/2013,R,COFELY LIMITED                
648,CS -Oth Operating Inc & Expend,Extraordinary Items & PY Adj.,Pollards Hill Comm Cntre                ,J08074,Premises Related Expenditure  ,RepairsAlterations&MtceOfBldgs,BA03,DDM - Mechanical                        ,695.47,08/08/2013,R,COFELY LIMITED                
649,CS -Oth Operating Inc & Expend,Extraordinary Items & PY Adj.,Pollards Hill Comm Cntre                ,J08074,Premises Related Expenditure  ,RepairsAlterations&MtceOfBldgs,BA03,DDM - Mechanical                        ,695.47,08/08/2013,R,COFELY LIMITED                
650,CS -Oth Operating Inc & Expend,Extraordinary Items & PY Adj.,Pollards Hill Comm Cntre                ,J08074,Premises Related Expenditure  ,RepairsAlterations&MtceOfBldgs,BA03,DDM - Mechanical                        ,695.47,08/08/2013,R,COFELY LIMITED                
651,Childrens & Education Services,Statutory & Regulatory Duties,Senior Mngt & Support Services          ,K01005,Supplies & Services           ,Services                      ,DF03,CONSULTANTS                             ,"2,250.00",01/08/2013,R,MILTONCOX LIMITED             
652,Childrens & Education Services,Statutory & Regulatory Duties,Senior Mngt & Support Services          ,K01005,Supplies & Services           ,Services                      ,DF11,Counsel's Fees                          ,"1,120.00",13/05/2013,R,REDACTED
653,Childrens & Education Services,Statutory & Regulatory Duties,Senior Mngt & Support Services          ,K01005,Supplies & Services           ,Services                      ,DF11,Counsel's Fees                          ,"2,390.00",30/07/2013,R,REDACTED
654,Childrens & Education Services,Statutory & Regulatory Duties,Senior Mngt & Support Services          ,K01005,Supplies & Services           ,Services                      ,DF11,Counsel's Fees                          ,885,21/05/2013,R,REDACTED
655,Childrens & Education Services,Statutory & Regulatory Duties,Senior Mngt & Support Services          ,K01005,Supplies & Services           ,Services                      ,DF11,Counsel's Fees                          ,625,21/05/2013,R,REDACTED
656,Childrens & Education Services,Statutory & Regulatory Duties,Senior Mngt & Support Services          ,K01005,Supplies & Services           ,Services                      ,DF11,Counsel's Fees                          ,530,08/07/2013,R,REDACTED
657,Childrens & Education Services,Statutory & Regulatory Duties,Senior Mngt & Support Services          ,K01005,Supplies & Services           ,Services                      ,DF11,Counsel's Fees                          ,"2,145.00",04/04/2013,R,REDACTED
658,Childrens & Education Services,Statutory & Regulatory Duties,Senior Mngt & Support Services          ,K01005,Supplies & Services           ,Services                      ,DF11,Counsel's Fees                          ,"1,070.00",26/07/2013,R,REDACTED
659,Childrens & Education Services,Statutory & Regulatory Duties,Senior Mngt & Support Services          ,K01005,Supplies & Services           ,Services                      ,DF11,Counsel's Fees                          ,850,26/07/2013,R,REDACTED
660,Childrens & Education Services,Statutory & Regulatory Duties,Research and Statistics                 ,K03016,Supplies & Services           ,Services                      ,DF03,Consultants                             ,"12,500.00",31/07/2013,R,TRI-X                         
661,Childrens & Education Services,Statutory & Regulatory Duties,Research and Statistics                 ,K03016,Supplies & Services           ,Services                      ,DF09,Miscellaneous Fees                      ,"1,750.00",30/07/2013,R,CIPFA BUSINESS LTD            
662,Childrens & Education Services,Asset Management,PFI Unitary Charges                     ,K03023,Third Party Payments          ,Private Contractors           ,EH02,Miscellaneous Hired Services            ,"5,573.41",31/07/2013,R,NEWSCHOOLS (MERTON) LIMITED   
663,Childrens & Education Services,Asset Management,PFI Unitary Charges                     ,K03023,Third Party Payments          ,Private Contractors           ,EH02,Miscellaneous Hired Services            ,"1,133.02",28/06/2013,R,NEWSCHOOLS (MERTON) LIMITED   
664,Childrens & Education Services,Statutory & Regulatory Duties,Head of Special Educatn Needs           ,K04017,Supplies & Services           ,Services                      ,DF03,Consultants                             ,"1,700.00",05/08/2013,R,ANAIRO SOLUTIONS LIMITED      
665,Childrens & Education Services,Statutory & Regulatory Duties,Head of Special Educatn Needs           ,K04017,Supplies & Services           ,Comms and Computing           ,DG14,Telephones - Mobile                     ,987.68,15/03/2013,R,T MOBILE (UK)                 
666,Childrens & Education Services,Support for SEN Pupils,Statementing-Transport                  ,K04023,Transport Related Expenditure ,Public Transport              ,CD50,Home Sch/Coll Trans(Trav Exps)          ,560,23/07/2013,R,REDACTED
667,Childrens & Education Services,Behavioural Support,Statement Support Team                  ,K04034,Employees                     ,Direct Employee Expenses      ,AA17,Agency Staff & Casual Paymts            ,"2,080.00",03/08/2013,R,REDACTED
668,Childrens & Education Services,Behavioural Support,Statement Support Team                  ,K04034,Employees                     ,Direct Employee Expenses      ,AA17,Agency Staff & Casual Paymts            ,"2,080.00",10/08/2013,R,REDACTED
669,Childrens & Education Services,Behavioural Support,Statement Support Team                  ,K04034,Employees                     ,Direct Employee Expenses      ,AA17,Agency Staff & Casual Paymts            ,"2,600.00",17/08/2013,R,REDACTED
670,Childrens & Education Services,Ensuring Attendance At School,Education Welfare Service               ,K05033,Supplies & Services           ,Comms and Computing           ,DG14,Telephones - Mobile                     ,780.57,26/06/2013,R,T MOBILE (UK)                 
671,Childrens & Education Services,Pupil Referral Units,Expanded Pupil Referral Unit            ,K05099,Third Party Payments          ,Private Contractors           ,EH01,Miscellaneous Agency Services           ,"4,840.92",26/07/2013,R,SW LONDON ST GEORGES NHS TRUST
672,Childrens & Education Services,Pupil Referral Units,Expanded Pupil Referral Unit            ,K05099,Third Party Payments          ,Private Contractors           ,EH01,Miscellaneous Agency Services           ,"9,896.02",27/06/2013,R,SW LONDON ST GEORGES NHS TRUST
673,Childrens & Education Services,Oth U5s Provn Not Prim or Spec,GSSG Workforce Development              ,K05111,Employees                     ,Indirect Employee Expenses    ,AB56,Internal Training Costs                 ,800,10/06/2013,R,ACTUAL FIRST AID LTD          
674,Childrens & Education Services,Oth U5s Provn Not Prim or Spec,GSSG Workforce Development              ,K05111,Employees                     ,Indirect Employee Expenses    ,AB56,Internal Training Costs                 ,500,01/07/2013,R,REDACTED
675,Childrens & Education Services,Oth U5s Provn Not Prim or Spec,GSSG Workforce Development              ,K05111,Employees                     ,Indirect Employee Expenses    ,AB56,Internal Training Costs                 ,600,23/05/2013,R,ACTUAL FIRST AID LTD          
676,Childrens & Education Services,Oth U5s Provn Not Prim or Spec,GSSG Workforce Development              ,K05111,Employees                     ,Indirect Employee Expenses    ,AB57,External Training Costs                 ,"19,900.00",20/06/2013,R,NATIONAL CHILDMINDING ASSOC.  
677,Childrens & Education Services,Nursery schools,EY Business Support                     ,K05400,Supplies & Services           ,Comms and Computing           ,DG14,Telephones - Mobile                     ,"6,173.00",21/03/2013,R,T MOBILE (UK)                 
678,Childrens & Education Services,GENERATED ACCOUNT,Mitcham MAT (Premises)                  ,K05412,Premises Related Expenditure  ,RepairsAlterations&MtceOfBldgs,BA03,DDM - Mechanical                        ,650.06,31/07/2013,R,COFELY LIMITED                
679,Childrens & Education Services,GENERATED ACCOUNT,Mitcham MAT (Premises)                  ,K05412,Premises Related Expenditure  ,Energy Costs                  ,BB02,Electricity                             ,"2,586.76",02/08/2013,R,EDF ENERGY 1 LIMITED          
680,Childrens & Education Services,GENERATED ACCOUNT,Mitcham MAT (Premises)                  ,K05412,Premises Related Expenditure  ,Cleaning and Domestic Supplies,BH03,Cleaning Services                       ,"1,186.24",31/07/2013,R,BIRKIN CLEANING SERVICES LTD  
681,Childrens & Education Services,Nursery schools,Lavender CC Non Childcare               ,K05415,Premises Related Expenditure  ,Cleaning and Domestic Supplies,BH03,Cleaning Services                       ,"1,189.54",31/07/2013,R,BIRKIN CLEANING SERVICES LTD  
682,Childrens & Education Services,Nursery schools,E.Years-Intergenerational Cntr          ,K05416,Premises Related Expenditure  ,Energy Costs                  ,BB02,Electricity                             ,933.62,07/08/2013,R,SCOTTISHPOWER                 
683,Childrens & Education Services,Nursery schools,E.Years-Intergenerational Cntr          ,K05416,Premises Related Expenditure  ,Cleaning and Domestic Supplies,BH03,Cleaning Services                       ,796.82,31/07/2013,R,BIRKIN CLEANING SERVICES LTD  
684,Childrens & Education Services,Nursery schools,E.Years-Intergenerational Cntr          ,K05416,Supplies & Services           ,Services                      ,DF03,Consultants                             ,"3,000.48",03/08/2013,R,REDACTED
685,Childrens & Education Services,Vocational - Adult Education,AE-Familiy Learning                     ,K06041,Supplies & Services           ,Services                      ,DF30,Activities Programme                    ,800,26/07/2013,R,SS PETER & PAUL RC PRIMARY SCH
686,Childrens & Education Services,Vocational - Adult Education,AE-Adult Education Main                 ,K06049,Premises Related Expenditure  ,Energy Costs                  ,BB02,Electricity                             ,"5,145.87",01/08/2013,R,EDF ENERGY 1 LIMITED          
687,Childrens & Education Services,Vocational - Adult Education,AE-Adult Education Main                 ,K06049,Premises Related Expenditure  ,Water Services                ,BE01,Use of Water (Metered)                  ,"2,480.00",29/07/2013,R,THAMES WATER UTILITIES LTD.   
688,Childrens & Education Services,Vocational - Adult Education,AE-Adult Education Main                 ,K06049,Supplies & Services           ,Comms and Computing           ,DG04,Postage - General                       ,600,15/07/2013,R,NEOPOST FINANCE LIMITED       
689,Childrens & Education Services,Vocational - Adult Education,AE-Adult Education Main                 ,K06049,Supplies & Services           ,Comms and Computing           ,DG04,Postage - General                       ,757.96,12/08/2013,R,ROYAL MAIL GROUP LTD          
690,Childrens & Education Services,Vocational - Adult Education,MAE- CATERING SERVICES 2011>           ,K06052,Supplies & Services           ,Catering                      ,DB01,Contract Catering                       ,520,18/07/2013,R,INVESTEC ASSET FINANCE PLC    
691,Childrens & Education Services,Youth Centres (Residential),Youth Service                           ,K06053,Employees                     ,Indirect Employee Expenses    ,AB57,External Training Costs                 ,720,31/07/2013,R,REDACTED
692,Childrens & Education Services,Youth Centres (Residential),Youth Service                           ,K06053,Supplies & Services           ,Expenses                      ,DH12,Young Peoples Expenses                  ,"1,500.00",15/07/2013,R,REDACTED
693,Childrens & Education Services,Youth Centres (Residential),Youth Office Premises Cost              ,K06073,Premises Related Expenditure  ,Ground Maintenance Costs      ,BL03,Maintenance of Grounds                  ,800,29/07/2013,R,FLYNN TREE CARE               
694,Childrens & Education Services,Asset Management,Premises and Contracts                  ,K08069,Supplies & Services           ,Services                      ,DF03,Consultants                             ,"7,870.00",31/07/2013,R,I-CLEAN                       
695,Childrens & Education Services,Asset Management,Premises and Contracts                  ,K08069,Supplies & Services           ,Services                      ,DF03,Consultants                             ,"23,400.00",31/07/2013,R,CAPITA SYMONDS LTD            
696,Childrens & Education Services,Asset Management,Revenuisation & S106 Proj               ,K08077,Premises Related Expenditure  ,RepairsAlterations&MtceOfBldgs,BA05,DDM - Electrical                        ,761.66,16/07/2013,R,COFELY LIMITED                
697,Childrens & Education Services,Asset Management,Revenuisation & S106 Proj               ,K08077,Premises Related Expenditure  ,RepairsAlterations&MtceOfBldgs,BA79,Security of Premises                    ,720.5,01/08/2013,R,SIGHT & SOUND                 
698,Childrens & Education Services,Asset Management,Revenuisation & S106 Proj               ,K08077,Premises Related Expenditure  ,RepairsAlterations&MtceOfBldgs,BA79,Security of Premises                    ,"5,710.30",01/08/2013,R,SIGHT & SOUND                 
699,Childrens & Education Services,Asset Management,Revenuisation & S106 Proj               ,K08077,Premises Related Expenditure  ,Rents                         ,BC01,Miscellaneous Rents                     ,"3,714.23",05/08/2013,R,BOSHIRE LTD                   
700,Childrens & Education Services,Asset Management,Revenuisation & S106 Proj               ,K08077,Premises Related Expenditure  ,Rents                         ,BC03,Room/venue rental hire                  ,680.34,01/08/2013,R,PORTAKABIN LIMITED            
701,Childrens & Education Services,Asset Management,Centre Commissioned Servs               ,K08078,Supplies & Services           ,Grants and Subscriptions      ,DJ01,Grants                                  ,"10,000.00",09/07/2013,R,MERTON VOLUNTARY SERV COUNCIL 
702,Childrens & Education Services,Asset Management,Centre Commissioned Servs               ,K08078,Supplies & Services           ,Grants and Subscriptions      ,DJ01,Grants                                  ,"9,000.00",10/07/2013,R,BARNARDOS                     
703,Childrens & Education Services,Asset Management,Centre Commissioned Servs               ,K08078,Supplies & Services           ,Grants and Subscriptions      ,DJ01,Grants                                  ,"19,541.00",14/08/2013,R,JIGSAW4U                      
704,Childrens & Education Services,Asset Management,Centre Commissioned Servs               ,K08078,Supplies & Services           ,Grants and Subscriptions      ,DJ01,Grants                                  ,"7,500.00",30/07/2013,R,COMMONSIDE COMMUNITY DEV TRUST
705,Childrens & Education Services,Asset Management,Centre Commissioned Servs               ,K08078,Supplies & Services           ,Grants and Subscriptions      ,DJ01,Grants                                  ,"24,623.50",08/07/2013,R,HOME-START MERTON             
706,Childrens & Education Services,Asset Management,Centre Commissioned Servs               ,K08078,Supplies & Services           ,Grants and Subscriptions      ,DJ01,Grants                                  ,"19,560.00",30/07/2013,R,ST TERESA'S                   
707,Childrens & Education Services,Asset Management,Centre Commissioned Servs               ,K08078,Supplies & Services           ,Grants and Subscriptions      ,DJ01,Grants                                  ,"6,250.00",08/07/2013,R,JIGSAW4U                      
708,Childrens & Education Services,Asset Management,Centre Commissioned Servs               ,K08078,Supplies & Services           ,Grants and Subscriptions      ,DJ01,Grants                                  ,"7,500.00",08/07/2013,R,JIGSAW4U                      
709,Childrens & Education Services,Facilitating School Improvemnt,SSQ                                     ,K09077,Supplies & Services           ,Equip Furniture/Materials     ,DA58,Educn Matrls (Grant Aided)              ,601.2,24/07/2013,R,OXFORD UNIVERSITY PRESS       
710,Childrens & Education Services,Facilitating School Improvemnt,SSQ                                     ,K09077,Supplies & Services           ,Services                      ,DF03,Consultants                             ,"2,400.00",22/07/2013,R,REDACTED
711,Childrens & Education Services,Admissions & Planning Sch Prov,Schools Admin & Pupil Benefits          ,K90001,Transport Related Expenditure ,Public Transport              ,CD50,Home Sch/Coll Trans(Trav Exps)          ,622.2,17/08/2013,R,TRANSPORT TRADING LTD         
712,Childrens & Education Services,Facilitating School Improvemnt,Virtual Schools - Home Tutors           ,K90015,Employees                     ,Direct Employee Expenses      ,AA17,Agency Staff & Casual Paymts            ,546,18/07/2013,R,REDACTED
713,Childrens & Education Services,Support for SEN Pupils,Non-Delegated Statements                ,K90024,Employees                     ,Direct Employee Expenses      ,AA17,Agency Staff & Casual Paymts            ,520,31/07/2013,R,REDACTED
714,Childrens & Education Services,Support for SEN Pupils,Non-Delegated Statements                ,K90024,Employees                     ,Direct Employee Expenses      ,AA17,Agency Staff & Casual Paymts            ,520,31/07/2013,R,REDACTED
715,Childrens & Education Services,Support for SEN Pupils,Non-Delegated Statements                ,K90024,Employees                     ,Direct Employee Expenses      ,AA17,Agency Staff & Casual Paymts            ,"1,920.00",24/07/2013,R,REDACTED
716,Childrens & Education Services,Support for SEN Pupils,Non-Delegated Statements                ,K90024,Employees                     ,Direct Employee Expenses      ,AA17,Agency Staff & Casual Paymts            ,"1,313.64",31/07/2013,R,REDACTED
717,Childrens & Education Services,Support for SEN Pupils,Non-Delegated Statements                ,K90024,Employees                     ,Direct Employee Expenses      ,AA17,Agency Staff & Casual Paymts            ,520.09,31/07/2013,R,REDACTED
718,Childrens & Education Services,Support for SEN Pupils,Non-Delegated Statements                ,K90024,Employees                     ,Direct Employee Expenses      ,AA17,Agency Staff & Casual Paymts            ,"1,147.50",23/07/2013,R,RED
719,Childrens & Education Services,Support for SEN Pupils,Non-Delegated Statements                ,K90024,Supplies & Services           ,Services                      ,DF09,Miscellaneous Fees                      ,"20,520.00",26/07/2013,R,BEORMUND PRIMARY SCHOOL       
720,Childrens & Education Services,Support for SEN Pupils,Non-Delegated Statements                ,K90024,Supplies & Services           ,Services                      ,DF09,Miscellaneous Fees                      ,943.8,01/08/2013,R,INDEPENDENT BUSINESS SERV.LTD 
721,Childrens & Education Services,Support for SEN Pupils,Non-Delegated Statements                ,K90024,Supplies & Services           ,Services                      ,DF09,Miscellaneous Fees                      ,990,01/07/2013,R,INDEPENDENT BUSINESS SERV.LTD 
722,Childrens & Education Services,Support for SEN Pupils,Non-Delegated Statements                ,K90024,Supplies & Services           ,Services                      ,DF09,Miscellaneous Fees                      ,"5,000.00",15/07/2013,R,ST DOMINIC'S SCHOOL           
723,Childrens & Education Services,Support for SEN Pupils,Non-Delegated Statements                ,K90024,Supplies & Services           ,Services                      ,DF09,Miscellaneous Fees                      ,"5,054.00",23/07/2013,R,THE LINK SECONDARY SCHOOL     
724,Childrens & Education Services,Support for SEN Pupils,Non-Delegated Statements                ,K90024,Supplies & Services           ,Services                      ,DF11,Counsel's Fees                          ,626.67,27/06/2013,R,REDACTED
725,Childrens & Education Services,Support for SEN Pupils,Non-Delegated Statements                ,K90024,Third Party Payments          ,Other Establishments          ,EG01,Alternative SEN Provision               ,"1,897.85",12/08/2013,R,REDACTED
726,Childrens & Education Services,Support for SEN Pupils,Non-Delegated Statements                ,K90024,Third Party Payments          ,Other Establishments          ,EG01,Alternative SEN Provision               ,913.5,31/07/2013,R,HA TUTORS LTD                 
727,Childrens & Education Services,Support for SEN Pupils,Non-Delegated Statements                ,K90024,Third Party Payments          ,Other Establishments          ,EG50,Ind Day Schs Payments                   ,"32,379.33",18/07/2013,R,KISIMUL SCHOOL                
728,Childrens & Education Services,Support for SEN Pupils,Non-Delegated Statements                ,K90024,Third Party Payments          ,Other Establishments          ,EG50,Ind Day Schs Payments                   ,"9,073.97",08/07/2013,R,CANBURY SCHOOL LIMITED        
729,Childrens & Education Services,Support for SEN Pupils,Non-Delegated Statements                ,K90024,Third Party Payments          ,Other Establishments          ,EG50,Ind Day Schs Payments                   ,"6,692.00",13/08/2013,R,THE LINK PRIMARY DAY SCHOOL   
730,Childrens & Education Services,Support for SEN Pupils,Non-Delegated Statements                ,K90024,Third Party Payments          ,Other Establishments          ,EG50,Ind Day Schs Payments                   ,"3,320.00",15/07/2013,R,MORE HOUSE SCHOOL             
731,Childrens & Education Services,Support for SEN Pupils,Non-Delegated Statements                ,K90024,Third Party Payments          ,Other Establishments          ,EG50,Ind Day Schs Payments                   ,"36,866.00",15/07/2013,R,ST JOSEPHS SCHOOL             
732,Childrens & Education Services,Support for SEN Pupils,Non-Delegated Statements                ,K90024,Third Party Payments          ,Other Establishments          ,EG50,Ind Day Schs Payments                   ,"5,353.00",13/08/2013,R,THE LINK PRIMARY DAY SCHOOL   
733,Childrens & Education Services,Support for SEN Pupils,Non-Delegated Statements                ,K90024,Third Party Payments          ,Other Establishments          ,EG50,Ind Day Schs Payments                   ,"6,692.00",13/08/2013,R,THE LINK PRIMARY DAY SCHOOL   
734,Childrens & Education Services,Support for SEN Pupils,Non-Delegated Statements                ,K90024,Third Party Payments          ,Other Establishments          ,EG50,Ind Day Schs Payments                   ,"9,437.00",07/04/2013,R,BLOSSOM LOWER SCHOOL LTD      
735,Childrens & Education Services,Support for SEN Pupils,Non-Delegated Statements                ,K90024,Third Party Payments          ,Other Establishments          ,EG50,Ind Day Schs Payments                   ,"5,490.00",15/07/2013,R,MORE HOUSE SCHOOL             
736,Childrens & Education Services,Support for SEN Pupils,Non-Delegated Statements                ,K90024,Third Party Payments          ,Other Establishments          ,EG50,Ind Day Schs Payments                   ,"-19,998.00",15/07/2013,R,ST JOSEPHS SCHOOL             
737,Childrens & Education Services,Support for SEN Pupils,Non-Delegated Statements                ,K90024,Third Party Payments          ,Other Establishments          ,EG50,Ind Day Schs Payments                   ,"6,692.00",13/08/2013,R,THE LINK PRIMARY DAY SCHOOL   
738,Childrens & Education Services,Support for SEN Pupils,Non-Delegated Statements                ,K90024,Third Party Payments          ,Other Establishments          ,EG50,Ind Day Schs Payments                   ,"8,615.00",01/08/2013,R,THE MOAT SCHOOL               
739,Childrens & Education Services,Support for SEN Pupils,Non-Delegated Statements                ,K90024,Third Party Payments          ,Other Establishments          ,EG50,Ind Day Schs Payments                   ,"8,722.67",01/07/2013,R,BLOSSOM LOWER SCHOOL LTD      
740,Childrens & Education Services,Support for SEN Pupils,Non-Delegated Statements                ,K90024,Third Party Payments          ,Other Establishments          ,EG50,Ind Day Schs Payments                   ,"12,200.00",26/07/2013,R,CRESSEY OASIS EDUCATION       
741,Childrens & Education Services,Support for SEN Pupils,Non-Delegated Statements                ,K90024,Third Party Payments          ,Other Establishments          ,EG50,Ind Day Schs Payments                   ,"18,584.00",15/07/2013,R,ST JOSEPHS SCHOOL             
742,Childrens & Education Services,Support for SEN Pupils,Non-Delegated Statements                ,K90024,Third Party Payments          ,Other Establishments          ,EG50,Ind Day Schs Payments                   ,"3,913.98",22/07/2013,R,THE STUDY(WIMBLEDON)LTD       
743,Childrens & Education Services,Support for SEN Pupils,Non-Delegated Statements                ,K90024,Third Party Payments          ,Other Establishments          ,EG50,Ind Day Schs Payments                   ,"18,584.00",15/07/2013,R,ST JOSEPHS SCHOOL             
744,Childrens & Education Services,Support for SEN Pupils,Non-Delegated Statements                ,K90024,Third Party Payments          ,Other Establishments          ,EG50,Ind Day Schs Payments                   ,"2,485.00",18/07/2013,R,BRIT SCHOOL                   
745,Childrens & Education Services,Support for SEN Pupils,Non-Delegated Statements                ,K90024,Third Party Payments          ,Other Establishments          ,EG50,Ind Day Schs Payments                   ,"19,302.00",15/07/2013,R,ST JOSEPHS SCHOOL             
746,Childrens & Education Services,Support for SEN Pupils,Non-Delegated Statements                ,K90024,Third Party Payments          ,Other Establishments          ,EG50,Ind Day Schs Payments                   ,"5,490.00",31/07/2013,R,MORE HOUSE SCHOOL             
747,Childrens & Education Services,Support for SEN Pupils,Non-Delegated Statements                ,K90024,Third Party Payments          ,Other Establishments          ,EG50,Ind Day Schs Payments                   ,"13,575.00",06/08/2013,R,BLOSSOM HOUSE SCHOOL          
748,Childrens & Education Services,Support for SEN Pupils,Non-Delegated Statements                ,K90024,Third Party Payments          ,Other Establishments          ,EG50,Ind Day Schs Payments                   ,"10,855.00",15/07/2013,R,ST JOSEPHS SCHOOL             
749,Childrens & Education Services,Support for SEN Pupils,Non-Delegated Statements                ,K90024,Third Party Payments          ,Other Establishments          ,EG50,Ind Day Schs Payments                   ,"12,350.00",26/07/2013,R,CRESSEY OASIS EDUCATION       
750,Childrens & Education Services,Support for SEN Pupils,Non-Delegated Statements                ,K90024,Third Party Payments          ,Other Establishments          ,EG50,Ind Day Schs Payments                   ,"21,558.00",04/07/2013,R,THE LINK SECONDARY SCHOOL     
751,Childrens & Education Services,Support for SEN Pupils,Non-Delegated Statements                ,K90024,Third Party Payments          ,Other Establishments          ,EG50,Ind Day Schs Payments                   ,"3,840.00",15/07/2013,R,MORE HOUSE SCHOOL             
752,Childrens & Education Services,Support for SEN Pupils,Non-Delegated Statements                ,K90024,Third Party Payments          ,Other Establishments          ,EG50,Ind Day Schs Payments                   ,"36,866.00",19/06/2013,R,ST JOSEPHS SCHOOL             
753,Childrens & Education Services,Support for SEN Pupils,Non-Delegated Statements                ,K90024,Third Party Payments          ,Other Establishments          ,EG50,Ind Day Schs Payments                   ,"17,038.00",15/07/2013,R,ST JOSEPHS SCHOOL             
754,Childrens & Education Services,Support for SEN Pupils,Non-Delegated Statements                ,K90024,Third Party Payments          ,Other Establishments          ,EG50,Ind Day Schs Payments                   ,"-9,999.00",15/07/2013,R,ST DOMINIC'S SCHOOL           
755,Childrens & Education Services,Support for SEN Pupils,Non-Delegated Statements                ,K90024,Third Party Payments          ,Other Establishments          ,EG50,Ind Day Schs Payments                   ,"2,400.00",15/07/2013,R,MORE HOUSE SCHOOL             
756,Childrens & Education Services,Support for SEN Pupils,Non-Delegated Statements                ,K90024,Third Party Payments          ,Other Establishments          ,EG50,Ind Day Schs Payments                   ,"18,333.33",26/07/2013,R,CRESSEY OASIS EDUCATION       
757,Childrens & Education Services,Support for SEN Pupils,Non-Delegated Statements                ,K90024,Third Party Payments          ,Other Establishments          ,EG50,Ind Day Schs Payments                   ,"36,866.00",15/07/2013,R,ST JOSEPHS SCHOOL             
758,Childrens & Education Services,Support for SEN Pupils,Non-Delegated Statements                ,K90024,Third Party Payments          ,Other Establishments          ,EG50,Ind Day Schs Payments                   ,"29,712.67",12/07/2013,R,KISIMUL SCHOOL                
759,Childrens & Education Services,Support for SEN Pupils,Non-Delegated Statements                ,K90024,Third Party Payments          ,Other Establishments          ,EG50,Ind Day Schs Payments                   ,"5,623.00",13/08/2013,R,THE LINK PRIMARY DAY SCHOOL   
760,Childrens & Education Services,Promoting Improved SEN Support,Therapy in School-SEN(PCT Sals          ,K90029,Employees                     ,Direct Employee Expenses      ,AA17,Agency Staff & Casual Paymts            ,720,06/08/2013,R,REDACTED
761,Childrens & Education Services,Admissions & Planning Sch Prov,Retained Schools Budgets                ,K90030,Supplies & Services           ,Prntng Stnry Gen Off Exp      ,DE22,Marketing                               ,"1,750.00",31/07/2013,R,GREBOT DONNELLY  ASSOCIAT. LTD
762,Childrens & Education Services,Admissions & Planning Sch Prov,Retained Schools Budgets                ,K90030,Supplies & Services           ,Prntng Stnry Gen Off Exp      ,DE22,Marketing                               ,"11,175.00",31/07/2013,R,GREBOT DONNELLY  ASSOCIAT. LTD
763,Childrens & Education Services,Admissions & Planning Sch Prov,Retained Schools Budgets                ,K90030,Supplies & Services           ,Services                      ,DF03,Consultants                             ,"5,200.00",24/07/2013,R,END USER LTD                  
764,Childrens & Education Services,Nursery schools,EARLY YEARS NURSERY GRANTS           ,K90042,Supplies & Services           ,Grants and Subscriptions      ,DJ57,Nursery Grant Payment-4yr olds          ,907.2,30/08/2013,R,REDACTED
765,Childrens & Education Services,Nursery schools,EARLY YEARS NURSERY GRANTS           ,K90042,Supplies & Services           ,Grants and Subscriptions      ,DJ57,Nursery Grant Payment-4yr olds          ,"7,546.00",30/08/2013,R,CROWN KINDERGARTEN            
766,Childrens & Education Services,Nursery schools,EARLY YEARS NURSERY GRANTS           ,K90042,Supplies & Services           ,Grants and Subscriptions      ,DJ57,Nursery Grant Payment-4yr olds          ,"1,940.40",30/08/2013,R,REDACTED
767,Childrens & Education Services,Nursery schools,EARLY YEARS NURSERY GRANTS           ,K90042,Supplies & Services           ,Grants and Subscriptions      ,DJ57,Nursery Grant Payment-4yr olds          ,"8,192.80",30/08/2013,R,BRIGHT CHOICE DAY NURSERY     
768,Childrens & Education Services,Nursery schools,EARLY YEARS NURSERY GRANTS           ,K90042,Supplies & Services           ,Grants and Subscriptions      ,DJ57,Nursery Grant Payment-4yr olds          ,"1,293.60",30/08/2013,R,BOW LANE PRE-SCHOOL           
769,Childrens & Education Services,Nursery schools,EARLY YEARS NURSERY GRANTS           ,K90042,Supplies & Services           ,Grants and Subscriptions      ,DJ57,Nursery Grant Payment-4yr olds          ,646.8,30/08/2013,R,BUTTERFLIES CHILDCARE LIMITED 
770,Childrens & Education Services,Nursery schools,EARLY YEARS NURSERY GRANTS           ,K90042,Supplies & Services           ,Grants and Subscriptions      ,DJ57,Nursery Grant Payment-4yr olds          ,907.2,30/08/2013,R,REDACTED
771,Childrens & Education Services,Nursery schools,EARLY YEARS NURSERY GRANTS           ,K90042,Supplies & Services           ,Grants and Subscriptions      ,DJ57,Nursery Grant Payment-4yr olds          ,"5,821.20",30/08/2013,R,CAROUSEL LTD                  
772,Childrens & Education Services,Nursery schools,EARLY YEARS NURSERY GRANTS           ,K90042,Supplies & Services           ,Grants and Subscriptions      ,DJ57,Nursery Grant Payment-4yr olds          ,"7,761.60",30/08/2013,R,CAROUSEL DAY NURSERY          
773,Childrens & Education Services,Nursery schools,EARLY YEARS NURSERY GRANTS           ,K90042,Supplies & Services           ,Grants and Subscriptions      ,DJ57,Nursery Grant Payment-4yr olds          ,"3,234.00",30/08/2013,R,COOPERATIVE CHILDCARE         
774,Childrens & Education Services,Nursery schools,EARLY YEARS NURSERY GRANTS           ,K90042,Supplies & Services           ,Grants and Subscriptions      ,DJ57,Nursery Grant Payment-4yr olds          ,"7,114.80",30/08/2013,R,DICKY BIRDS DAY NURSERIES     
775,Childrens & Education Services,Nursery schools,EARLY YEARS NURSERY GRANTS           ,K90042,Supplies & Services           ,Grants and Subscriptions      ,DJ57,Nursery Grant Payment-4yr olds          ,"1,360.80",30/08/2013,R,CHERUBS @ NEWMINSTER          
776,Childrens & Education Services,Nursery schools,EARLY YEARS FUNDING                     ,K90046,Premises Related Expenditure  ,RepairsAlterations&MtceOfBldgs,BA79,Security of Premises                    ,"2,312.00",17/07/2013,R,ACE CONSULT UK LTD            
777,Childrens & Education Services,Nursery schools,EARLY YEARS FUNDING                     ,K90046,Premises Related Expenditure  ,RepairsAlterations&MtceOfBldgs,BA79,Security of Premises                    ,"2,384.00",12/08/2013,R,ACE CONSULT UK LTD            
778,Childrens & Education Services,Support for SEN Pupils,ART SEN Residential (DSG)               ,K90050,Third Party Payments          ,Other Establishments          ,EG51,Ind Resid Schs Payments                 ,"59,644.54",28/06/2013,R,ACORN PARK SCHOOL             
779,Childrens & Education Services,Support for SEN Pupils,ART SEN Residential (DSG)               ,K90050,Third Party Payments          ,Other Establishments          ,EG51,Ind Resid Schs Payments                 ,"42,520.26",15/07/2013,R,CAMBIAN ASPERGER SYNDROME SERV
780,Childrens & Education Services,Support for SEN Pupils,ART SEN Residential (DSG)               ,K90050,Third Party Payments          ,Other Establishments          ,EG51,Ind Resid Schs Payments                 ,"43,430.33",15/07/2013,R,CAMBIAN ASPERGER SYNDROME SERV
781,Childrens & Education Services,Support for SEN Pupils,ART SEN Residential (DSG)               ,K90050,Third Party Payments          ,Other Establishments          ,EG51,Ind Resid Schs Payments                 ,"6,608.00",08/07/2013,R,ST JOSEPHS SCHOOL             
782,Childrens & Education Services,Support for SEN Pupils,ART SEN Residential (DSG)               ,K90050,Third Party Payments          ,Other Establishments          ,EG51,Ind Resid Schs Payments                 ,"41,961.66",15/07/2013,R,ST JOSEPHS SCHOOL             
783,Childrens & Education Services,Support for SEN Pupils,ART SEN Residential (DSG)               ,K90050,Third Party Payments          ,Other Establishments          ,EG51,Ind Resid Schs Payments                 ,"54,749.00",15/07/2013,R,ST JOSEPHS SCHOOL             
784,Childrens & Education Services,Support for SEN Pupils,ART SEN Residential (DSG)               ,K90050,Third Party Payments          ,Other Establishments          ,EG51,Ind Resid Schs Payments                 ,"18,372.00",29/05/2013,R,PHILPOTS MANOR SCHOOL         
785,Childrens & Education Services,Support for SEN Pupils,ART SEN Residential (DSG)               ,K90050,Third Party Payments          ,Other Establishments          ,EG51,Ind Resid Schs Payments                 ,"62,250.00",15/05/2013,R,THE HESLEY GROUP LTD          
786,Childrens & Education Services,Support for SEN Pupils,ART SEN Residential (DSG)               ,K90050,Third Party Payments          ,Other Establishments          ,EG51,Ind Resid Schs Payments                 ,"15,851.66",15/07/2013,R,ST JOSEPHS SCHOOL             
787,Childrens & Education Services,Support for SEN Pupils,ART SEN Residential (DSG)               ,K90050,Third Party Payments          ,Other Establishments          ,EG51,Ind Resid Schs Payments                 ,"46,550.00",15/07/2013,R,COXLEASE SCHOOL PRIORY        
788,Childrens & Education Services,Nursery schools,2Year Old Offer                         ,K90051,Supplies & Services           ,Grants and Subscriptions      ,DJ01,Grants                                  ,720,06/08/2013,R,ACTIVE LEARNING KINGSTON      
789,Childrens & Education Services,Nursery schools,2Year Old Offer                         ,K90051,Supplies & Services           ,Grants and Subscriptions      ,DJ01,Grants                                  ,540,29/08/2013,R,KINGSWOOD DAYCARE NURSERY     
790,Cultural Env Reg&Plan Services,Library DoS not split,Libraries Service-Civic Centre          ,L50001,Premises Related Expenditure  ,RepairsAlterations&MtceOfBldgs,BA79,Security of Premises                    ,"7,126.46",01/08/2013,R,SIGHT & SOUND                 
791,Cultural Env Reg&Plan Services,Library DoS not split,Libraries Service-Civic Centre          ,L50001,Premises Related Expenditure  ,RepairsAlterations&MtceOfBldgs,BA79,Security of Premises                    ,"4,351.80",01/07/2013,R,SIGHT & SOUND                 
792,Cultural Env Reg&Plan Services,Library DoS not split,Libraries Service-Civic Centre          ,L50001,Supplies & Services           ,Comms and Computing           ,DG04,Postage - General                       ,588.5,31/07/2013,R,AXIELL                        
793,Cultural Env Reg&Plan Services,Library DoS not split,Mitcham Library                         ,L83071,Premises Related Expenditure  ,Cleaning and Domestic Supplies,BH03,Cleaning Services                       ,973.81,31/07/2013,R,BIRKIN CLEANING SERVICES LTD  
794,Cultural Env Reg&Plan Services,Library DoS not split,Pollards Hill Library                   ,L83073,Premises Related Expenditure  ,Cleaning and Domestic Supplies,BH03,Cleaning Services                       ,943.91,31/07/2013,R,BIRKIN CLEANING SERVICES LTD  
795,Cultural Env Reg&Plan Services,Library DoS not split,VOLUNTEER CENTER -MERTON               ,L83080,Third Party Payments          ,Private Contractors           ,EH68,Management Contract                     ,"37,750.00",23/07/2013,R,VOLUNTEER CENTRE MERTON       
796,Cultural Env Reg&Plan Services,Library DoS not split,Media Fund                              ,L83081,Supplies & Services           ,Comms and Computing           ,DG04,Postage - General                       ,"1,534.00",31/07/2013,R,EXCEL GROUP SERVICES          
797,Cultural Env Reg&Plan Services,Library DoS not split,Morden Library                          ,L84081,Premises Related Expenditure  ,Cleaning and Domestic Supplies,BH03,Cleaning Services                       ,964.35,31/07/2013,R,BIRKIN CLEANING SERVICES LTD  
798,Cultural Env Reg&Plan Services,Library DoS not split,Raynes Park Library                     ,L84083,Premises Related Expenditure  ,Cleaning and Domestic Supplies,BH03,Cleaning Services                       ,574.82,31/07/2013,R,BIRKIN CLEANING SERVICES LTD  
799,Cultural Env Reg&Plan Services,Library DoS not split,Wimbledon Library                       ,L85091,Premises Related Expenditure  ,Cleaning and Domestic Supplies,BH03,Cleaning Services                       ,"1,161.91",31/07/2013,R,BIRKIN CLEANING SERVICES LTD  
800,Housing Services,Bed / breakfast accommodation,Bed & Breakfast - accomm                ,N47160,Third Party Payments          ,Private Contractors           ,EH01,Miscellaneous Agency Services           ,"30,306.00",31/07/2013,R,VENTURE HOUSING(LONDON)LTD    
801,Housing Services,Bed / breakfast accommodation,Bed & Breakfast - accomm                ,N47160,Third Party Payments          ,Private Contractors           ,EH01,Miscellaneous Agency Services           ,"1,860.00",31/07/2013,R,EURO HOTELS (CLAPHAM STH) LTD 
802,Housing Services,Bed / breakfast accommodation,Bed & Breakfast - accomm                ,N47160,Third Party Payments          ,Private Contractors           ,EH01,Miscellaneous Agency Services           ,930,01/08/2013,R,HOLMESDALE LTD                
803,Housing Services,Bed / breakfast accommodation,Bed & Breakfast - accomm                ,N47160,Third Party Payments          ,Private Contractors           ,EH01,Miscellaneous Agency Services           ,"1,110.00",23/07/2013,R,NORMANTON PARK HOTEL          
804,Housing Services,Bed / breakfast accommodation,Homelessness Prevention                 ,N47171,Transfer Payments             ,Housing Benefits              ,FA12,Rent Deposits                           ,"3,000.00",09/08/2013,R,REDACTED
805,Housing Services,Bed / breakfast accommodation,Homelessness Prevention                 ,N47171,Transfer Payments             ,Housing Benefits              ,FA12,Rent Deposits                           ,780,13/08/2013,R,VISION HOUSING                
806,Housing Services,Bed / breakfast accommodation,Homelessness Prevention                 ,N47171,Transfer Payments             ,Housing Benefits              ,FA12,Rent Deposits                           ,"2,000.00",16/08/2013,R,REDACTED
807,Housing Services,Bed / breakfast accommodation,Homelessness Prevention                 ,N47171,Transfer Payments             ,Housing Benefits              ,FA12,Rent Deposits                           ,"2,784.56",09/08/2013,R,CAPITOL HOMES MANAGEMENT LTD  
808,Housing Services,Bed / breakfast accommodation,Homelessness Prevention                 ,N47171,Transfer Payments             ,Housing Benefits              ,FA12,Rent Deposits                           ,500,13/08/2013,R,VISION HOUSING                
809,Housing Services,Bed / breakfast accommodation,Homelessness Prevention                 ,N47171,Transfer Payments             ,Housing Benefits              ,FA12,Rent Deposits                           ,"2,000.00",22/08/2013,R,AD INTERIM LTD                
810,Housing Services,Bed / breakfast accommodation,Homelessness Prevention                 ,N47171,Transfer Payments             ,Housing Benefits              ,FA12,Rent Deposits                           ,500,13/08/2013,R,VISION HOUSING                
811,Housing Services,Bed / breakfast accommodation,Homelessness Prevention                 ,N47171,Transfer Payments             ,Housing Benefits              ,FA12,Rent Deposits                           ,"2,000.00",22/08/2013,R,AD INTERIM LTD                
812,Housing Services,Bed / breakfast accommodation,Homelessness Prevention                 ,N47171,Transfer Payments             ,Housing Benefits              ,FA12,Rent Deposits                           ,500,13/08/2013,R,VISION HOUSING                
813,Housing Services,Bed / breakfast accommodation,Homelessness Prevention                 ,N47171,Transfer Payments             ,Housing Benefits              ,FA12,Rent Deposits                           ,"1,943.46",12/08/2013,R,FISHNEEDWATER                 
814,Housing Services,Bed / breakfast accommodation,Homelessness Prevention                 ,N47171,Transfer Payments             ,Housing Benefits              ,FA12,Rent Deposits                           ,"2,000.00",22/08/2013,R,AD INTERIM LTD                
815,Housing Services,Bed / breakfast accommodation,Homelessness Prevention                 ,N47171,Transfer Payments             ,Housing Benefits              ,FA12,Rent Deposits                           ,"1,190.00",19/08/2013,R,REDACTED
816,Housing Services,Bed / breakfast accommodation,Homelessness Prevention                 ,N47171,Transfer Payments             ,Housing Benefits              ,FA12,Rent Deposits                           ,500,19/07/2013,R,VISION HOUSING                
817,Housing Services,Bed / breakfast accommodation,Homelessness Prevention                 ,N47171,Transfer Payments             ,Housing Benefits              ,FA12,Rent Deposits                           ,747.96,08/08/2013,R,REDACTED
818,Housing Services,Bed / breakfast accommodation,Homelessness Prevention                 ,N47171,Transfer Payments             ,Housing Benefits              ,FA12,Rent Deposits                           ,"1,400.00",09/08/2013,R,REDACTED
819,Housing Services,Bed / breakfast accommodation,Homelessness Prevention                 ,N47171,Transfer Payments             ,Housing Benefits              ,FA12,Rent Deposits                           ,"2,200.00",14/08/2013,R,GOODFELLOWS LETTING & MANAG.  
820,Housing Services,Bed / breakfast accommodation,Homelessness Prevention                 ,N47171,Transfer Payments             ,Housing Benefits              ,FA12,Rent Deposits                           ,"2,700.00",08/08/2013,R,DICKSONS ESTATE AGENTS        
821,Housing Services,Hsg Dept Supp Staff & Costs,Housing Needs & Enablg-central          ,N51000,Supplies & Services           ,Services                      ,DF14,Doctors and other fees                  ,"1,119.39",02/08/2013,R,REDACTED
822,Housing Services,Hsg Dept Supp Staff & Costs,Housing Needs & Enablg-central          ,N51000,Supplies & Services           ,Services                      ,DF32,Customer Survey                         ,713,02/08/2013,R,G4S ASSESM'T SERVICES (UK) LTD
823,Highways & Transport Services,Saf mtc prin/oth rds not split,Highways GM Contract                    ,P04006,Third Party Payments          ,Private Contractors           ,EH02,Miscellaneous Hired Services            ,"6,757.75",01/07/2013,R,ADVANCED TREE SERVICES LTD    
824,Highways & Transport Services,Saf mtc prin/oth rds not split,Highways GM Contract                    ,P04006,Third Party Payments          ,Private Contractors           ,EH02,Miscellaneous Hired Services            ,"6,486.75",01/07/2013,R,ADVANCED TREE SERVICES LTD    
825,Highways & Transport Services,Saf mtc prin/oth rds not split,Highways GM Contract                    ,P04006,Third Party Payments          ,Private Contractors           ,EH02,Miscellaneous Hired Services            ,"1,817.00",01/07/2013,R,ADVANCED TREE SERVICES LTD    
826,Highways & Transport Services,Saf mtc prin/oth rds not split,Highways GM Contract                    ,P04006,Third Party Payments          ,Private Contractors           ,EH02,Miscellaneous Hired Services            ,"12,873.45",31/07/2013,R,COMPLETE WEED CONTROL         
827,Cultural Env Reg&Plan Services,Parks & Open Spaces,Park Utilities                          ,P04007,Premises Related Expenditure  ,Energy Costs                  ,BB02,Electricity                             ,602.09,06/08/2013,R,EDF ENERGY 1 LIMITED          
828,Cultural Env Reg&Plan Services,Parks & Open Spaces,Park Utilities                          ,P04007,Premises Related Expenditure  ,Energy Costs                  ,BB03,Gas (incl. Butane)                      ,894.48,04/06/2013,R,GAZPROM MARKETING&TRADING LTD 
829,Cultural Env Reg&Plan Services,Parks & Open Spaces,Park Utilities                          ,P04007,Premises Related Expenditure  ,Energy Costs                  ,BB03,Gas (incl. Butane)                      ,983.76,16/04/2013,R,KENT COUNTY COUNCIL           
830,Cultural Env Reg&Plan Services,Parks & Open Spaces,Park Utilities                          ,P04007,Premises Related Expenditure  ,Water Services                ,BE01,Use of Water (Metered)                  ,982.33,26/07/2013,R,THAMES WATER UTILITIES LTD    
831,Cultural Env Reg&Plan Services,Mgt & Sup (Cult),Leisure Developmt Manager               ,P04061,Supplies & Services           ,Services                      ,DF03,Consultants                             ,525.08,31/07/2013,R,FMG CONSULTING LTD            
832,Cultural Env Reg&Plan Services,Mgt & Sup (Cult),Leisure Developmt Manager               ,P04061,Supplies & Services           ,Expenses                      ,DH50,Special Projects                        ,"6,000.00",18/06/2013,R,MANGO CREATIVE STUDIO LTD     
833,Cultural Env Reg&Plan Services,Sports Dev & Community Rec,BMX TRACK                               ,P04900,Premises Related Expenditure  ,RepairsAlterations&MtceOfBldgs,BA06,Repairs & Maintenance General           ,656,15/08/2013,R,KINGSBRIDGE CONSTRUCTION (UK) 
834,Cultural Env Reg&Plan Services,Parks & Open Spaces,"Pks,Rec Grds (Unloc)                    ",P05005,Premises Related Expenditure  ,Energy Costs                  ,BB02,ELECTRICITY                             ,964.23,01/07/2013,R,SCOTTISHPOWER                 
835,Cultural Env Reg&Plan Services,Parks & Open Spaces,"Pks,Rec Grds (Unloc)                    ",P05005,Premises Related Expenditure  ,Ground Maintenance Costs      ,BL50,TREE WORK & CONSERVATION                ,"1,900.00",29/07/2013,R,A.COLEBROOK ARBORICULTURE CON.
836,Cultural Env Reg&Plan Services,Parks & Open Spaces,"Pks,Rec Grds (Unloc)                    ",P05005,Premises Related Expenditure  ,Ground Maintenance Costs      ,BL50,TREE WORK & CONSERVATION                ,"2,660.00",29/07/2013,R,A.COLEBROOK ARBORICULTURE CON.
837,Cultural Env Reg&Plan Services,Parks & Open Spaces,"Pks,Rec Grds (Unloc)                    ",P05005,Premises Related Expenditure  ,Ground Maintenance Costs      ,BL50,TREE WORK & CONSERVATION                ,"1,848.00",28/06/2013,R,TRANSF'M L/SCAPE DESIGN & CONS
838,Cultural Env Reg&Plan Services,Parks & Open Spaces,"Pks,Rec Grds (Unloc)                    ",P05005,Premises Related Expenditure  ,Ground Maintenance Costs      ,BL50,TREE WORK & CONSERVATION                ,780,01/08/2013,R,WIMBLEDON TREE SURGEONS       
839,Cultural Env Reg&Plan Services,Parks & Open Spaces,"Pks,Rec Grds (Unloc)                    ",P05005,Premises Related Expenditure  ,Ground Maintenance Costs      ,BL50,TREE WORK & CONSERVATION                ,924,28/06/2013,R,TRANSF'M L/SCAPE DESIGN & CONS
840,Cultural Env Reg&Plan Services,Parks & Open Spaces,"Pks,Rec Grds (Unloc)                    ",P05005,Supplies & Services           ,Equip Furniture/Materials     ,DA04,Materials                               ,"7,120.00",17/07/2013,R,TAYLOR BUILDING COMPANY LTD   
841,Cultural Env Reg&Plan Services,Parks & Open Spaces,"Pks,Rec Grds (Unloc)                    ",P05005,Supplies & Services           ,Equip Furniture/Materials     ,DA53,SPECIALIST EQUIPMENT                    ,"3,896.00",31/07/2013,R,EARTH ANCHORS LTD             
842,Cultural Env Reg&Plan Services,Sports Dev & Community Rec,Leisure Development                     ,P05068,Third Party Payments          ,Private Contractors           ,EH02,Miscellaneous Hired Services            ,"1,800.00",30/07/2013,R,RIDGWAY STABLES               
843,Cultural Env Reg&Plan Services,Sports Dev & Community Rec,Leisure Development                     ,P05068,Third Party Payments          ,Private Contractors           ,EH02,Miscellaneous Hired Services            ,"1,260.00",23/07/2013,R,RIDGWAY STABLES               
844,Cultural Env Reg&Plan Services,Sports Dev & Community Rec,Leisure Development                     ,P05068,Third Party Payments          ,Private Contractors           ,EH02,Miscellaneous Hired Services            ,"1,800.00",06/08/2013,R,RIDGWAY STABLES               
845,Cultural Env Reg&Plan Services,Sports Dev & Community Rec,Leisure Development                     ,P05068,Third Party Payments          ,Private Contractors           ,EH02,Miscellaneous Hired Services            ,"1,620.00",13/08/2013,R,RIDGWAY STABLES               
846,Cultural Env Reg&Plan Services,Sports Dev & Community Rec,Leisure Development                     ,P05068,Third Party Payments          ,Private Contractors           ,EH02,Miscellaneous Hired Services            ,"1,350.00",20/08/2013,R,RIDGWAY STABLES               
847,Cultural Env Reg&Plan Services,Parks & Open Spaces,BRIDGE INSPECTION SURVEY                ,P05098,Premises Related Expenditure  ,RepairsAlterations&MtceOfBldgs,BA59,Periodic Inspections                    ,"3,550.00",29/07/2013,R,TAYLOR BUILDING COMPANY LTD   
848,Cultural Env Reg&Plan Services,Parks & Open Spaces,BRIDGE INSPECTION SURVEY                ,P05098,Premises Related Expenditure  ,RepairsAlterations&MtceOfBldgs,BA59,Periodic Inspections                    ,"2,340.00",31/07/2013,R,TAYLOR BUILDING COMPANY LTD   
849,Cultural Env Reg&Plan Services,Parks & Open Spaces,Mitcham Parks                           ,P05109,Premises Related Expenditure  ,Ground Maintenance Costs      ,BL03,Maintenance of Grounds                  ,600,02/08/2013,R,BARKLANDS TREE SPECIALISTS    
850,Cultural Env Reg&Plan Services,Parks & Open Spaces,Mitcham Parks                           ,P05109,Premises Related Expenditure  ,Ground Maintenance Costs      ,BL03,Maintenance of Grounds                  ,"4,090.00",25/07/2013,R,WEED MANAGEMENT               
851,Cultural Env Reg&Plan Services,Parks & Open Spaces,Wimbledon Parks                         ,P05111,Premises Related Expenditure  ,Ground Maintenance Costs      ,BL02,Maintenance of Paths                    ,"1,845.00",24/07/2013,R,REDDINGTON & SONS             
852,Cultural Env Reg&Plan Services,Parks & Open Spaces,Wimbledon Parks                         ,P05111,Supplies & Services           ,Equip Furniture/Materials     ,DA04,Materials                               ,880.2,01/08/2013,R,MADDISON WATER TECHNOLOGY     
853,Cultural Env Reg&Plan Services,Parks & Open Spaces,Wimbledon Parks                         ,P05111,Supplies & Services           ,Equip Furniture/Materials     ,DA09,Equip-Purchases                         ,"1,688.32",15/08/2013,R,LANDSCAPE SUPPLY COMPANY      
854,Cultural Env Reg&Plan Services,Parks & Open Spaces,Wimbledon Parks                         ,P05111,Supplies & Services           ,Equip Furniture/Materials     ,DA09,Equip-Purchases                         ,"2,391.70",23/05/2013,R,GLASDON UK LTD                
855,Cultural Env Reg&Plan Services,Parks & Open Spaces,Wimbledon Parks                         ,P05111,Supplies & Services           ,Equip Furniture/Materials     ,DA09,Equip-Purchases                         ,"1,047.23",31/07/2013,R,LANDSCAPE SUPPLY COMPANY      
856,Cultural Env Reg&Plan Services,Parks & Open Spaces,Wimbledon Parks                         ,P05111,Supplies & Services           ,Equip Furniture/Materials     ,DA09,Equip-Purchases                         ,"2,100.00",31/07/2013,R,ERNEST DOE & SONS LTD         
857,Cultural Env Reg&Plan Services,Parks & Open Spaces,Wimbledon Parks                         ,P05111,Supplies & Services           ,Services                      ,DF30,Activities Programme                    ,505,05/08/2013,R,B. Y. INNOVATIONS LTD         
